Publisher Label,Publisher URI,"Directorate code","Directorate","Service code","Service","Revenue or capital code","Revenue capital","Cost centre","Cost centre description","Bvsub Category","Bvsub description","Bvsum code","Bvsum description","Account code","Account description","Transaction No","Period","Transaction Date","Amount","Classification code","Classification description","Supplier ID","Supplier description","Company registration number","Company registration number Uri","VAT registration number"
"London Borough of Redbridge","http://opendatacommunities.org/doc/london-borough-council/redbridge","3BNONSCHFUND","Non-School Funding","3CNONSCH","Non Schools","REV","Revenue","R3962","Early Years - 3 and 4 Year Olds","05-THIRD","Third Party Payments","05A","Independent units within the council","6517","Non-Maintained Schools","3523446","201905",24/08/2018 00:00:00,10904,"53120","Nursery Schools","REDACTED DATA","TREE HOUSE NURSERY SCHOOL LTD","3948398","http://opencorporates.com/companies/gb/3948398",""
"London Borough of Redbridge","http://opendatacommunities.org/doc/london-borough-council/redbridge","6BSOCIALSERV","Social Services","6CCHILLOOKED","Children Looked After","REV","Revenue","R2179","CQF - CaMHS Early Intervention in Schools","05-THIRD","Third Party Payments","05A","Independent units within the council","6513","Agency & Contracted Services","60380335","201905",17/07/2018 00:00:00,10752,"42200","Health Authorities","REDACTED DATA","NORTH EAST LONDON NHS FOUNDATION TRUST","",,"654404447"
"London Borough of Redbridge","http://opendatacommunities.org/doc/london-borough-council/redbridge","9BNONBVO","Outside the BVACOP Objective Structure","9CNONBVO","Outside the BVACOP Objective Structure","CAP","Capital","C4345","Snaresbrook primary School gates and fencing","99-NONBV","Capital, Balance Sheet and Control","50A","Capital - Employee Costs","9000","Employee Costs - Architects","60382001","201905",28/06/2018 00:00:00,8925,"11400","Building Services","REDACTED DATA","JOHN ROWAN AND PARTNERS LLP","OC302030","http://opencorporates.com/companies/gb/OC302030","229079447"
"London Borough of Redbridge","http://opendatacommunities.org/doc/london-borough-council/redbridge","9BNONBVO","Outside the BVACOP Objective Structure","9CNONBVO","Outside the BVACOP Objective Structure","REV","Revenue","R7702","Vehicle Workshop","03-TRANSPORT","Transport","03A","Direct - transport costs","5007","Tyres & Tubes","666555","201905",30/06/2018 00:00:00,358.16,"81240","Tyre Mnfrs and Distributors","REDACTED DATA","ATS EUROMASTER LIMITED","4303731","http://opencorporates.com/companies/gb/4303731","813051180"
"London Borough of Redbridge","http://opendatacommunities.org/doc/london-borough-council/redbridge","9BNONBVO","Outside the BVACOP Objective Structure","9CNONBVO","Outside the BVACOP Objective Structure","REV","Revenue","R7702","Vehicle Workshop","03-TRANSPORT","Transport","03A","Direct - transport costs","5007","Tyres & Tubes","666555","201905",30/06/2018 00:00:00,358.16,"81240","Tyre Mnfrs and Distributors","REDACTED DATA","ATS EUROMASTER LIMITED","4303731","http://opencorporates.com/companies/gb/4303731","813051180"
"London Borough of Redbridge","http://opendatacommunities.org/doc/london-borough-council/redbridge","9BNONBVO","Outside the BVACOP Objective Structure","9CNONBVO","Outside the BVACOP Objective Structure","REV","Revenue","R7702","Vehicle Workshop","03-TRANSPORT","Transport","03A","Direct - transport costs","5007","Tyres & Tubes","666555","201905",30/06/2018 00:00:00,2481.92,"81240","Tyre Mnfrs and Distributors","REDACTED DATA","ATS EUROMASTER LIMITED","4303731","http://opencorporates.com/companies/gb/4303731","813051180"
"London Borough of Redbridge","http://opendatacommunities.org/doc/london-borough-council/redbridge","9BNONBVO","Outside the BVACOP Objective Structure","9CNONBVO","Outside the BVACOP Objective Structure","REV","Revenue","R7702","Vehicle Workshop","03-TRANSPORT","Transport","03A","Direct - transport costs","5007","Tyres & Tubes","666555","201905",30/06/2018 00:00:00,1063.68,"81240","Tyre Mnfrs and Distributors","REDACTED DATA","ATS EUROMASTER LIMITED","4303731","http://opencorporates.com/companies/gb/4303731","813051180"
"London Borough of Redbridge","http://opendatacommunities.org/doc/london-borough-council/redbridge","9BNONBVO","Outside the BVACOP Objective Structure","9CNONBVO","Outside the BVACOP Objective Structure","REV","Revenue","R7702","Vehicle Workshop","03-TRANSPORT","Transport","03A","Direct - transport costs","5007","Tyres & Tubes","666555","201905",30/06/2018 00:00:00,667.48,"81240","Tyre Mnfrs and Distributors","REDACTED DATA","ATS EUROMASTER LIMITED","4303731","http://opencorporates.com/companies/gb/4303731","813051180"
"London Borough of Redbridge","http://opendatacommunities.org/doc/london-borough-council/redbridge","9BNONBVO","Outside the BVACOP Objective Structure","9CNONBVO","Outside the BVACOP Objective Structure","REV","Revenue","R7702","Vehicle Workshop","03-TRANSPORT","Transport","03A","Direct - transport costs","5007","Tyres & Tubes","666555","201905",30/06/2018 00:00:00,716.32,"81240","Tyre Mnfrs and Distributors","REDACTED DATA","ATS EUROMASTER LIMITED","4303731","http://opencorporates.com/companies/gb/4303731","813051180"
"London Borough of Redbridge","http://opendatacommunities.org/doc/london-borough-council/redbridge","9BNONBVO","Outside the BVACOP Objective Structure","9CNONBVO","Outside the BVACOP Objective Structure","REV","Revenue","R7702","Vehicle Workshop","03-TRANSPORT","Transport","03A","Direct - transport costs","5007","Tyres & Tubes","666555","201905",30/06/2018 00:00:00,70.25,"81240","Tyre Mnfrs and Distributors","REDACTED DATA","ATS EUROMASTER LIMITED","4303731","http://opencorporates.com/companies/gb/4303731","813051180"
"London Borough of Redbridge","http://opendatacommunities.org/doc/london-borough-council/redbridge","9BNONBVO","Outside the BVACOP Objective Structure","9CNONBVO","Outside the BVACOP Objective Structure","REV","Revenue","R7702","Vehicle Workshop","03-TRANSPORT","Transport","03A","Direct - transport costs","5007","Tyres & Tubes","666555","201905",30/06/2018 00:00:00,358.16,"81240","Tyre Mnfrs and Distributors","REDACTED DATA","ATS EUROMASTER LIMITED","4303731","http://opencorporates.com/companies/gb/4303731","813051180"
"London Borough of Redbridge","http://opendatacommunities.org/doc/london-borough-council/redbridge","9BNONBVO","Outside the BVACOP Objective Structure","9CNONBVO","Outside the BVACOP Objective Structure","REV","Revenue","R7702","Vehicle Workshop","03-TRANSPORT","Transport","03A","Direct - transport costs","5007","Tyres & Tubes","666555","201905",30/06/2018 00:00:00,358.16,"81240","Tyre Mnfrs and Distributors","REDACTED DATA","ATS EUROMASTER LIMITED","4303731","http://opencorporates.com/companies/gb/4303731","813051180"
"London Borough of Redbridge","http://opendatacommunities.org/doc/london-borough-council/redbridge","9BNONBVO","Outside the BVACOP Objective Structure","9CNONBVO","Outside the BVACOP Objective Structure","REV","Revenue","R7702","Vehicle Workshop","03-TRANSPORT","Transport","03A","Direct - transport costs","5007","Tyres & Tubes","666555","201905",30/06/2018 00:00:00,-1074.48,"81240","Tyre Mnfrs and Distributors","REDACTED DATA","ATS EUROMASTER LIMITED","4303731","http://opencorporates.com/companies/gb/4303731","813051180"
"London Borough of Redbridge","http://opendatacommunities.org/doc/london-borough-council/redbridge","9BNONBVO","Outside the BVACOP Objective Structure","9CNONBVO","Outside the BVACOP Objective Structure","REV","Revenue","R7702","Vehicle Workshop","03-TRANSPORT","Transport","03A","Direct - transport costs","5007","Tyres & Tubes","666555","201905",30/06/2018 00:00:00,1074.48,"81240","Tyre Mnfrs and Distributors","REDACTED DATA","ATS EUROMASTER LIMITED","4303731","http://opencorporates.com/companies/gb/4303731","813051180"
"London Borough of Redbridge","http://opendatacommunities.org/doc/london-borough-council/redbridge","9BNONBVO","Outside the BVACOP Objective Structure","9CNONBVO","Outside the BVACOP Objective Structure","REV","Revenue","R7702","Vehicle Workshop","03-TRANSPORT","Transport","03A","Direct - transport costs","5007","Tyres & Tubes","666555","201905",30/06/2018 00:00:00,-1074.48,"81240","Tyre Mnfrs and Distributors","REDACTED DATA","ATS EUROMASTER LIMITED","4303731","http://opencorporates.com/companies/gb/4303731","813051180"
"London Borough of Redbridge","http://opendatacommunities.org/doc/london-borough-council/redbridge","9BNONBVO","Outside the BVACOP Objective Structure","9CNONBVO","Outside the BVACOP Objective Structure","REV","Revenue","R7702","Vehicle Workshop","03-TRANSPORT","Transport","03A","Direct - transport costs","5007","Tyres & Tubes","666555","201905",30/06/2018 00:00:00,1074.48,"81240","Tyre Mnfrs and Distributors","REDACTED DATA","ATS EUROMASTER LIMITED","4303731","http://opencorporates.com/companies/gb/4303731","813051180"
"London Borough of Redbridge","http://opendatacommunities.org/doc/london-borough-council/redbridge","9BNONBVO","Outside the BVACOP Objective Structure","9CNONBVO","Outside the BVACOP Objective Structure","REV","Revenue","R7702","Vehicle Workshop","03-TRANSPORT","Transport","03A","Direct - transport costs","5007","Tyres & Tubes","666555","201905",30/06/2018 00:00:00,709.12,"81240","Tyre Mnfrs and Distributors","REDACTED DATA","ATS EUROMASTER LIMITED","4303731","http://opencorporates.com/companies/gb/4303731","813051180"
"London Borough of Redbridge","http://opendatacommunities.org/doc/london-borough-council/redbridge","9BNONBVO","Outside the BVACOP Objective Structure","9CNONBVO","Outside the BVACOP Objective Structure","REV","Revenue","R7702","Vehicle Workshop","04-SUPPLIES","Supplies And Services","04A","Equipment, furniture and materials","5502","Equipment Purchase","666555","201905",30/06/2018 00:00:00,1334.96,"81240","Tyre Mnfrs and Distributors","REDACTED DATA","ATS EUROMASTER LIMITED","4303731","http://opencorporates.com/companies/gb/4303731","813051180"
"London Borough of Redbridge","http://opendatacommunities.org/doc/london-borough-council/redbridge","9BNONBVO","Outside the BVACOP Objective Structure","9CNONBVO","Outside the BVACOP Objective Structure","REV","Revenue","R7702","Vehicle Workshop","04-SUPPLIES","Supplies And Services","04A","Equipment, furniture and materials","5502","Equipment Purchase","666555","201905",30/06/2018 00:00:00,354.56,"81240","Tyre Mnfrs and Distributors","REDACTED DATA","ATS EUROMASTER LIMITED","4303731","http://opencorporates.com/companies/gb/4303731","813051180"
"London Borough of Redbridge","http://opendatacommunities.org/doc/london-borough-council/redbridge","9BNONBVO","Outside the BVACOP Objective Structure","9CNONBVO","Outside the BVACOP Objective Structure","REV","Revenue","R7702","Vehicle Workshop","04-SUPPLIES","Supplies And Services","04A","Equipment, furniture and materials","5502","Equipment Purchase","666555","201905",30/06/2018 00:00:00,60,"81240","Tyre Mnfrs and Distributors","REDACTED DATA","ATS EUROMASTER LIMITED","4303731","http://opencorporates.com/companies/gb/4303731","813051180"
"London Borough of Redbridge","http://opendatacommunities.org/doc/london-borough-council/redbridge","9BNONBVO","Outside the BVACOP Objective Structure","9CNONBVO","Outside the BVACOP Objective Structure","REV","Revenue","R7702","Vehicle Workshop","04-SUPPLIES","Supplies And Services","04A","Equipment, furniture and materials","5502","Equipment Purchase","666555","201905",30/06/2018 00:00:00,32.86,"81240","Tyre Mnfrs and Distributors","REDACTED DATA","ATS EUROMASTER LIMITED","4303731","http://opencorporates.com/companies/gb/4303731","813051180"
"London Borough of Redbridge","http://opendatacommunities.org/doc/london-borough-council/redbridge","3BINDSCHFUND","Individual School Funds","3CNONSCH","Non Schools","REV","Revenue","R2001","Secondary Schools SEN Top Up Fees","05-THIRD","Third Party Payments","05G","Other establishments","7430","LBR Pre 16 Top Up","3521207","201905",24/05/2018 00:00:00,10614.35,"67346","Schools and Colleges - Grant Maintained and Selfgoverning","REDACTED DATA","ARK SCHOOLS T/A ISAAC NEWTON ACADEMY","",,"859151405"
"London Borough of Redbridge","http://opendatacommunities.org/doc/london-borough-council/redbridge","9BNONBVO","Outside the BVACOP Objective Structure","9CNONBVO","Outside the BVACOP Objective Structure","REV","Revenue","R7602","Street Cleansing","01-EMPLOYEES","Employees","01A","Direct employee expenses","409","Agency Staff Pay","60382016","201905",07/08/2018 00:00:00,8842.6,"31230","Employment and Recruitment Agencies","REDACTED DATA","FUTURE FORCE ENTERPRISES LTD","3773406","http://opencorporates.com/companies/gb/3773406","912280061"
"London Borough of Redbridge","http://opendatacommunities.org/doc/london-borough-council/redbridge","6BADULTSOCIA","Adult Social Care","6CADLEARNDIS","Adults Under 65 with Learning Disabilities","REV","Revenue","R4188","LD - Residential Care","05-THIRD","Third Party Payments","05F","Voluntary associations","6802","Residential Homes","90980384","201905",07/08/2018 00:00:00,11887.84,"17020","Charities and Voluntary Organisations","REDACTED DATA","VIBRANCE","7094318","http://opencorporates.com/companies/gb/7094318",""
"London Borough of Redbridge","http://opendatacommunities.org/doc/london-borough-council/redbridge","6BADULTSOCIA","Adult Social Care","6CADLEARNDIS","Adults Under 65 with Learning Disabilities","REV","Revenue","R4188","LD - Residential Care","09-INCOME","Income","09C","Customer and Client Receipts","8555","Accommodation Charges","90980384","201905",07/08/2018 00:00:00,-1263.04,"17020","Charities and Voluntary Organisations","REDACTED DATA","VIBRANCE","7094318","http://opencorporates.com/companies/gb/7094318",""
"London Borough of Redbridge","http://opendatacommunities.org/doc/london-borough-council/redbridge","6BADULTSOCIA","Adult Social Care","6CADLEARNDIS","Adults Under 65 with Learning Disabilities","REV","Revenue","R4188","LD - Residential Care","09-INCOME","Income","09C","Customer and Client Receipts","8555","Accommodation Charges","90980384","201905",07/08/2018 00:00:00,-80.22,"17020","Charities and Voluntary Organisations","REDACTED DATA","VIBRANCE","7094318","http://opencorporates.com/companies/gb/7094318",""
"London Borough of Redbridge","http://opendatacommunities.org/doc/london-borough-council/redbridge","3BNONSCHFUND","Non-School Funding","3CNONSCH","Non Schools","REV","Revenue","R3962","Early Years - 3 and 4 Year Olds","05-THIRD","Third Party Payments","05A","Independent units within the council","6517","Non-Maintained Schools","3523457","201905",24/08/2018 00:00:00,10539.75,"53120","Nursery Schools","REDACTED DATA","OXFORD DAY NURSERY LTD","8100587","http://opencorporates.com/companies/gb/8100587",""
"London Borough of Redbridge","http://opendatacommunities.org/doc/london-borough-council/redbridge","6BADULTSOCIA","Adult Social Care","6CADLEARNDIS","Adults Under 65 with Learning Disabilities","REV","Revenue","R4188","LD - Residential Care","05-THIRD","Third Party Payments","05F","Voluntary associations","6802","Residential Homes","90980546","201905",07/08/2018 00:00:00,10528.84,"43419","Home Care Services","REDACTED DATA","ZERO THREE CARE HOMES LLP","OC308106","http://opencorporates.com/companies/gb/OC308106",""
"London Borough of Redbridge","http://opendatacommunities.org/doc/london-borough-council/redbridge","9BNONBVO","Outside the BVACOP Objective Structure","9CNONBVO","Outside the BVACOP Objective Structure","CAP","Capital","C2221","Street Lighting Renewals LBR","99-NONBV","Capital, Balance Sheet and Control","50E","Capital - Contract Payments","9160","Highways Lighting","3523199","201905",23/08/2018 00:00:00,770,"21555","Construction Contractors - General","REDACTED DATA","SKANSKA CONSTRUCTION UK LTD","191408","http://opencorporates.com/companies/gb/191408","378403142"
"London Borough of Redbridge","http://opendatacommunities.org/doc/london-borough-council/redbridge","9BNONBVO","Outside the BVACOP Objective Structure","9CNONBVO","Outside the BVACOP Objective Structure","CAP","Capital","C2265","LED street light Replacement","99-NONBV","Capital, Balance Sheet and Control","50E","Capital - Contract Payments","9160","Highways Lighting","3523199","201905",23/08/2018 00:00:00,7992.6,"21555","Construction Contractors - General","REDACTED DATA","SKANSKA CONSTRUCTION UK LTD","191408","http://opencorporates.com/companies/gb/191408","378403142"
"London Borough of Redbridge","http://opendatacommunities.org/doc/london-borough-council/redbridge","6BADULTSOCIA","Adult Social Care","6CADLEARNDIS","Adults Under 65 with Learning Disabilities","REV","Revenue","R4185","LD - Supported Living","06-TRANSFER","Transfer Payments","06B","Social Services Clients","7066","Supportive Lodgings (Transfer Payments)","90980423","201905",07/08/2018 00:00:00,10663.6,"64710","Residential Care Homes","REDACTED DATA","UK CARE SERVICES (SUPPORTED LIVING) LTD","10645547","http://opencorporates.com/companies/gb/10645547",""
"London Borough of Redbridge","http://opendatacommunities.org/doc/london-borough-council/redbridge","6BADULTSOCIA","Adult Social Care","6CADLEARNDIS","Adults Under 65 with Learning Disabilities","REV","Revenue","R4185","LD - Supported Living","09-INCOME","Income","09C","Customer and Client Receipts","8553","Care Package Charges","90980423","201905",07/08/2018 00:00:00,-159.32,"64710","Residential Care Homes","REDACTED DATA","UK CARE SERVICES (SUPPORTED LIVING) LTD","10645547","http://opencorporates.com/companies/gb/10645547",""
"London Borough of Redbridge","http://opendatacommunities.org/doc/london-borough-council/redbridge","6BADULTSOCIA","Adult Social Care","6CADPHYSDIS","Adults Under 65 with Phys Disab or Sensory Impair","REV","Revenue","R4186","PD Residential","05-THIRD","Third Party Payments","05F","Voluntary associations","6802","Residential Homes","90980035","201905",31/07/2018 00:00:00,11554.68,"64710","Residential Care Homes","REDACTED DATA","COOPER TARRY PARTNERS LLP","OC383937","http://opencorporates.com/companies/gb/OC383937",""
"London Borough of Redbridge","http://opendatacommunities.org/doc/london-borough-council/redbridge","6BADULTSOCIA","Adult Social Care","6CADPHYSDIS","Adults Under 65 with Phys Disab or Sensory Impair","REV","Revenue","R4186","PD Residential","09-INCOME","Income","09C","Customer and Client Receipts","8555","Accommodation Charges","90980035","201905",31/07/2018 00:00:00,-1074.43,"64710","Residential Care Homes","REDACTED DATA","COOPER TARRY PARTNERS LLP","OC383937","http://opencorporates.com/companies/gb/OC383937",""
"London Borough of Redbridge","http://opendatacommunities.org/doc/london-borough-council/redbridge","6BSOCIALSERV","Social Services","6CCHILLOOKED","Children Looked After","REV","Revenue","R2179","CQF - CaMHS Early Intervention in Schools","05-THIRD","Third Party Payments","05A","Independent units within the council","6513","Agency & Contracted Services","60380334","201905",17/07/2018 00:00:00,10425,"42200","Health Authorities","REDACTED DATA","NORTH EAST LONDON NHS FOUNDATION TRUST","",,"654404447"
"London Borough of Redbridge","http://opendatacommunities.org/doc/london-borough-council/redbridge","6BADULTSOCIA","Adult Social Care","6CADLEARNDIS","Adults Under 65 with Learning Disabilities","REV","Revenue","R4188","LD - Residential Care","05-THIRD","Third Party Payments","05F","Voluntary associations","6802","Residential Homes","90980382","201905",07/08/2018 00:00:00,11887.84,"17020","Charities and Voluntary Organisations","REDACTED DATA","VIBRANCE","7094318","http://opencorporates.com/companies/gb/7094318",""
"London Borough of Redbridge","http://opendatacommunities.org/doc/london-borough-council/redbridge","6BADULTSOCIA","Adult Social Care","6CADLEARNDIS","Adults Under 65 with Learning Disabilities","REV","Revenue","R4188","LD - Residential Care","09-INCOME","Income","09C","Customer and Client Receipts","8555","Accommodation Charges","90980382","201905",07/08/2018 00:00:00,-868,"17020","Charities and Voluntary Organisations","REDACTED DATA","VIBRANCE","7094318","http://opencorporates.com/companies/gb/7094318",""
"London Borough of Redbridge","http://opendatacommunities.org/doc/london-borough-council/redbridge","6BADULTSOCIA","Adult Social Care","6CADLEARNDIS","Adults Under 65 with Learning Disabilities","REV","Revenue","R4188","LD - Residential Care","09-INCOME","Income","09C","Customer and Client Receipts","8555","Accommodation Charges","90980382","201905",07/08/2018 00:00:00,-630.7,"17020","Charities and Voluntary Organisations","REDACTED DATA","VIBRANCE","7094318","http://opencorporates.com/companies/gb/7094318",""
"London Borough of Redbridge","http://opendatacommunities.org/doc/london-borough-council/redbridge","3BNONSCHFUND","Non-School Funding","3CNONSCH","Non Schools","REV","Revenue","R3962","Early Years - 3 and 4 Year Olds","05-THIRD","Third Party Payments","05A","Independent units within the council","6517","Non-Maintained Schools","3523455","201905",24/08/2018 00:00:00,10363.5,"59760","Playgroups, Nurseries and Creches","REDACTED DATA","SNARESBROOK PREPARATORY SCHOOL LTD","1888014","http://opencorporates.com/companies/gb/1888014",""
"London Borough of Redbridge","http://opendatacommunities.org/doc/london-borough-council/redbridge","6BADULTSOCIA","Adult Social Care","6CADMENHLTH","Adults Under 65 with Mental Health Needs","REV","Revenue","R4463","Mental Health Capacity Act and Safeguarding Adults","04-SUPPLIES","Supplies And Services","04H","Grants and subscriptions","5954","Professional Fees","60382256","201905",26/06/2018 00:00:00,10267.45,"26710","Doctors","REDACTED DATA","GERONTOLOGICAL CONCERNS LTD","7228369","http://opencorporates.com/companies/gb/7228369",""
"London Borough of Redbridge","http://opendatacommunities.org/doc/london-borough-council/redbridge","3BLEACENTFND","LEA Centrally Held School Funds","3CNONSCH","Non Schools","REV","Revenue","R2234","Colleges and ISP Top up fees","05-THIRD","Third Party Payments","05G","Other establishments","7433","OOB Post 16 Top Up","60383275","201905",31/07/2018 00:00:00,10217.23,"20342","Colleges - Higher Education","REDACTED DATA","SEEVIC COLLEGE","120/E50044","http://opencorporates.com/companies/gb/120/E50044",""
"London Borough of Redbridge","http://opendatacommunities.org/doc/london-borough-council/redbridge","6BADULTSOCIA","Adult Social Care","6COLDINCMENT","Older People (65 or over) incl. Older Mentally Ill","REV","Revenue","R4378","OP Residential","05-THIRD","Third Party Payments","05F","Voluntary associations","6802","Residential Homes","90980302","201905",07/08/2018 00:00:00,649.14,"64710","Residential Care Homes","REDACTED DATA","ABBELEIGH HOUSE R.C.H","",,""
"London Borough of Redbridge","http://opendatacommunities.org/doc/london-borough-council/redbridge","6BADULTSOCIA","Adult Social Care","6COLDINCMENT","Older People (65 or over) incl. Older Mentally Ill","REV","Revenue","R4378","OP Residential","05-THIRD","Third Party Payments","05F","Voluntary associations","6802","Residential Homes","90980302","201905",07/08/2018 00:00:00,12745.92,"64710","Residential Care Homes","REDACTED DATA","ABBELEIGH HOUSE R.C.H","",,""
"London Borough of Redbridge","http://opendatacommunities.org/doc/london-borough-council/redbridge","6BADULTSOCIA","Adult Social Care","6COLDINCMENT","Older People (65 or over) incl. Older Mentally Ill","REV","Revenue","R4378","OP Residential","05-THIRD","Third Party Payments","05F","Voluntary associations","6802","Residential Homes","90980302","201905",07/08/2018 00:00:00,486.86,"64710","Residential Care Homes","REDACTED DATA","ABBELEIGH HOUSE R.C.H","",,""
"London Borough of Redbridge","http://opendatacommunities.org/doc/london-borough-council/redbridge","6BADULTSOCIA","Adult Social Care","6COLDINCMENT","Older People (65 or over) incl. Older Mentally Ill","REV","Revenue","R4378","OP Residential","09-INCOME","Income","09C","Customer and Client Receipts","8555","Accommodation Charges","90980302","201905",07/08/2018 00:00:00,-132.19,"64710","Residential Care Homes","REDACTED DATA","ABBELEIGH HOUSE R.C.H","",,""
"London Borough of Redbridge","http://opendatacommunities.org/doc/london-borough-council/redbridge","6BADULTSOCIA","Adult Social Care","6COLDINCMENT","Older People (65 or over) incl. Older Mentally Ill","REV","Revenue","R4378","OP Residential","09-INCOME","Income","09C","Customer and Client Receipts","8555","Accommodation Charges","90980302","201905",07/08/2018 00:00:00,-176.25,"64710","Residential Care Homes","REDACTED DATA","ABBELEIGH HOUSE R.C.H","",,""
"London Borough of Redbridge","http://opendatacommunities.org/doc/london-borough-council/redbridge","6BADULTSOCIA","Adult Social Care","6COLDINCMENT","Older People (65 or over) incl. Older Mentally Ill","REV","Revenue","R4378","OP Residential","09-INCOME","Income","09C","Customer and Client Receipts","8555","Accommodation Charges","90980302","201905",07/08/2018 00:00:00,-3392.84,"64710","Residential Care Homes","REDACTED DATA","ABBELEIGH HOUSE R.C.H","",,""
"London Borough of Redbridge","http://opendatacommunities.org/doc/london-borough-council/redbridge","3BNONSCHFUND","Non-School Funding","3CNONSCH","Non Schools","REV","Revenue","R3963","Early Years - 2 Year Olds - Statutory Place Funding","05-THIRD","Third Party Payments","05A","Independent units within the council","6517","Non-Maintained Schools","3523356","201905",24/08/2018 00:00:00,10166.78,"53120","Nursery Schools","REDACTED DATA","OXFORD DAY NURSERY LTD","8100587","http://opencorporates.com/companies/gb/8100587",""
"London Borough of Redbridge","http://opendatacommunities.org/doc/london-borough-council/redbridge","6BADULTSOCIA","Adult Social Care","6COLDINCMENT","Older People (65 or over) incl. Older Mentally Ill","REV","Revenue","R4378","OP Residential","05-THIRD","Third Party Payments","05F","Voluntary associations","6802","Residential Homes","90980379","201905",07/08/2018 00:00:00,11217.36,"17020","Charities and Voluntary Organisations","REDACTED DATA","OUTWARD","2151434","http://opencorporates.com/companies/gb/2151434",""
"London Borough of Redbridge","http://opendatacommunities.org/doc/london-borough-council/redbridge","6BADULTSOCIA","Adult Social Care","6COLDINCMENT","Older People (65 or over) incl. Older Mentally Ill","REV","Revenue","R4378","OP Residential","09-INCOME","Income","09C","Customer and Client Receipts","8555","Accommodation Charges","90980379","201905",07/08/2018 00:00:00,-1104.8,"17020","Charities and Voluntary Organisations","REDACTED DATA","OUTWARD","2151434","http://opencorporates.com/companies/gb/2151434",""
"London Borough of Redbridge","http://opendatacommunities.org/doc/london-borough-council/redbridge","9BNONBVO","Outside the BVACOP Objective Structure","9CNONBVO","Outside the BVACOP Objective Structure","REV","Revenue","R7602","Street Cleansing","01-EMPLOYEES","Employees","01A","Direct employee expenses","409","Agency Staff Pay","60381442","201905",01/08/2018 00:00:00,8421.74,"31230","Employment and Recruitment Agencies","REDACTED DATA","FUTURE FORCE ENTERPRISES LTD","3773406","http://opencorporates.com/companies/gb/3773406","912280061"
"London Borough of Redbridge","http://opendatacommunities.org/doc/london-borough-council/redbridge","6BADULTSOCIA","Adult Social Care","6COLDINCMENT","Older People (65 or over) incl. Older Mentally Ill","REV","Revenue","R4410","OP Voluntary Contracts","05-THIRD","Third Party Payments","05F","Voluntary associations","6800","Voluntary Organisations","90980029","201905",16/07/2018 00:00:00,-9972.56,"22570","Counselling and Advice Services","REDACTED DATA","AGE CONCERN REDBRIDGE T/AS AGEUK REDBRIDGE","CHARITY 1088435","http://opencorporates.com/companies/gb/CHARITY 1088435",""
"London Borough of Redbridge","http://opendatacommunities.org/doc/london-borough-council/redbridge","6BADULTSOCIA","Adult Social Care","6COLDINCMENT","Older People (65 or over) incl. Older Mentally Ill","REV","Revenue","R4410","OP Voluntary Contracts","05-THIRD","Third Party Payments","05F","Voluntary associations","6800","Voluntary Organisations","90980029","201905",16/07/2018 00:00:00,876.71,"22570","Counselling and Advice Services","REDACTED DATA","AGE CONCERN REDBRIDGE T/AS AGEUK REDBRIDGE","CHARITY 1088435","http://opencorporates.com/companies/gb/CHARITY 1088435",""
"London Borough of Redbridge","http://opendatacommunities.org/doc/london-borough-council/redbridge","6BADULTSOCIA","Adult Social Care","6COLDINCMENT","Older People (65 or over) incl. Older Mentally Ill","REV","Revenue","R4410","OP Voluntary Contracts","05-THIRD","Third Party Payments","05F","Voluntary associations","6800","Voluntary Organisations","90980029","201905",16/07/2018 00:00:00,19178,"22570","Counselling and Advice Services","REDACTED DATA","AGE CONCERN REDBRIDGE T/AS AGEUK REDBRIDGE","CHARITY 1088435","http://opencorporates.com/companies/gb/CHARITY 1088435",""
"London Borough of Redbridge","http://opendatacommunities.org/doc/london-borough-council/redbridge","6BADULTSOCIA","Adult Social Care","6CADLEARNDIS","Adults Under 65 with Learning Disabilities","REV","Revenue","R4188","LD - Residential Care","05-THIRD","Third Party Payments","05F","Voluntary associations","6802","Residential Homes","90980455","201905",07/08/2018 00:00:00,10578.36,"64710","Residential Care Homes","REDACTED DATA","ALPAM HOMES","",,""
"London Borough of Redbridge","http://opendatacommunities.org/doc/london-borough-council/redbridge","5BGFHOUSING","General Fund Housing","5CHOMELESS","Homelessness","REV","Revenue","R5630","HAC Temporary Accomodation","05-THIRD","Third Party Payments","05H","Private contractors","6900","Nightly Let Plus Charges","3521436","201905",05/08/2018 00:00:00,930,"31230","Employment and Recruitment Agencies","REDACTED DATA","ADAM HTT LIMITED T/A ADAM","7718565","http://opencorporates.com/companies/gb/7718565","198573349"
"London Borough of Redbridge","http://opendatacommunities.org/doc/london-borough-council/redbridge","5BGFHOUSING","General Fund Housing","5CHOMELESS","Homelessness","REV","Revenue","R5630","HAC Temporary Accomodation","05-THIRD","Third Party Payments","05H","Private contractors","6900","Nightly Let Plus Charges","3521436","201905",05/08/2018 00:00:00,930,"31230","Employment and Recruitment Agencies","REDACTED DATA","ADAM HTT LIMITED T/A ADAM","7718565","http://opencorporates.com/companies/gb/7718565","198573349"
"London Borough of Redbridge","http://opendatacommunities.org/doc/london-borough-council/redbridge","5BGFHOUSING","General Fund Housing","5CHOMELESS","Homelessness","REV","Revenue","R5630","HAC Temporary Accomodation","05-THIRD","Third Party Payments","05H","Private contractors","6900","Nightly Let Plus Charges","3521436","201905",05/08/2018 00:00:00,1705,"31230","Employment and Recruitment Agencies","REDACTED DATA","ADAM HTT LIMITED T/A ADAM","7718565","http://opencorporates.com/companies/gb/7718565","198573349"
"London Borough of Redbridge","http://opendatacommunities.org/doc/london-borough-council/redbridge","5BGFHOUSING","General Fund Housing","5CHOMELESS","Homelessness","REV","Revenue","R5630","HAC Temporary Accomodation","05-THIRD","Third Party Payments","05H","Private contractors","6900","Nightly Let Plus Charges","3521436","201905",05/08/2018 00:00:00,1705,"31230","Employment and Recruitment Agencies","REDACTED DATA","ADAM HTT LIMITED T/A ADAM","7718565","http://opencorporates.com/companies/gb/7718565","198573349"
"London Borough of Redbridge","http://opendatacommunities.org/doc/london-borough-council/redbridge","5BGFHOUSING","General Fund Housing","5CHOMELESS","Homelessness","REV","Revenue","R5630","HAC Temporary Accomodation","05-THIRD","Third Party Payments","05H","Private contractors","6900","Nightly Let Plus Charges","3521436","201905",05/08/2018 00:00:00,2015,"31230","Employment and Recruitment Agencies","REDACTED DATA","ADAM HTT LIMITED T/A ADAM","7718565","http://opencorporates.com/companies/gb/7718565","198573349"
"London Borough of Redbridge","http://opendatacommunities.org/doc/london-borough-council/redbridge","5BGFHOUSING","General Fund Housing","5CHOMELESS","Homelessness","REV","Revenue","R5630","HAC Temporary Accomodation","05-THIRD","Third Party Payments","05H","Private contractors","6900","Nightly Let Plus Charges","3521436","201905",05/08/2018 00:00:00,2015,"31230","Employment and Recruitment Agencies","REDACTED DATA","ADAM HTT LIMITED T/A ADAM","7718565","http://opencorporates.com/companies/gb/7718565","198573349"
"London Borough of Redbridge","http://opendatacommunities.org/doc/london-borough-council/redbridge","5BGFHOUSING","General Fund Housing","5CHOMELESS","Homelessness","REV","Revenue","R5630","HAC Temporary Accomodation","05-THIRD","Third Party Payments","05H","Private contractors","6900","Nightly Let Plus Charges","3521436","201905",05/08/2018 00:00:00,1550,"31230","Employment and Recruitment Agencies","REDACTED DATA","ADAM HTT LIMITED T/A ADAM","7718565","http://opencorporates.com/companies/gb/7718565","198573349"
"London Borough of Redbridge","http://opendatacommunities.org/doc/london-borough-council/redbridge","5BGFHOUSING","General Fund Housing","5CHOMELESS","Homelessness","REV","Revenue","R5630","HAC Temporary Accomodation","05-THIRD","Third Party Payments","05H","Private contractors","6900","Nightly Let Plus Charges","3521436","201905",05/08/2018 00:00:00,2635,"31230","Employment and Recruitment Agencies","REDACTED DATA","ADAM HTT LIMITED T/A ADAM","7718565","http://opencorporates.com/companies/gb/7718565","198573349"
"London Borough of Redbridge","http://opendatacommunities.org/doc/london-borough-council/redbridge","5BGFHOUSING","General Fund Housing","5CHOMELESS","Homelessness","REV","Revenue","R5630","HAC Temporary Accomodation","05-THIRD","Third Party Payments","05H","Private contractors","6900","Nightly Let Plus Charges","3521436","201905",05/08/2018 00:00:00,1178,"31230","Employment and Recruitment Agencies","REDACTED DATA","ADAM HTT LIMITED T/A ADAM","7718565","http://opencorporates.com/companies/gb/7718565","198573349"
"London Borough of Redbridge","http://opendatacommunities.org/doc/london-borough-council/redbridge","5BGFHOUSING","General Fund Housing","5CHOMELESS","Homelessness","REV","Revenue","R5630","HAC Temporary Accomodation","05-THIRD","Third Party Payments","05H","Private contractors","6900","Nightly Let Plus Charges","3521436","201905",05/08/2018 00:00:00,1860,"31230","Employment and Recruitment Agencies","REDACTED DATA","ADAM HTT LIMITED T/A ADAM","7718565","http://opencorporates.com/companies/gb/7718565","198573349"
"London Borough of Redbridge","http://opendatacommunities.org/doc/london-borough-council/redbridge","5BGFHOUSING","General Fund Housing","5CHOMELESS","Homelessness","REV","Revenue","R5630","HAC Temporary Accomodation","05-THIRD","Third Party Payments","05H","Private contractors","6900","Nightly Let Plus Charges","3521436","201905",05/08/2018 00:00:00,405,"31230","Employment and Recruitment Agencies","REDACTED DATA","ADAM HTT LIMITED T/A ADAM","7718565","http://opencorporates.com/companies/gb/7718565","198573349"
"London Borough of Redbridge","http://opendatacommunities.org/doc/london-borough-council/redbridge","6BADULTSOCIA","Adult Social Care","6CADLEARNDIS","Adults Under 65 with Learning Disabilities","REV","Revenue","R4188","LD - Residential Care","09-INCOME","Income","09C","Customer and Client Receipts","8555","Accommodation Charges","90980455","201905",07/08/2018 00:00:00,-552.4,"64710","Residential Care Homes","REDACTED DATA","ALPAM HOMES","",,""
"London Borough of Redbridge","http://opendatacommunities.org/doc/london-borough-council/redbridge","9BNONBVO","Outside the BVACOP Objective Structure","9CNONBVO","Outside the BVACOP Objective Structure","BAL","Balance Sheet","B0350","Office Depot Barclaycard","99-NONBV","Capital, Balance Sheet and Control","50Q","Other Balances & Reserves","9912","Personal Account - Creditor","70103045","201905",10/08/2018 00:00:00,9999.69,"22910","Credit Cards and Discount Cards","REDACTED DATA","COMPANY BARCLAYCARD","1026167","http://opencorporates.com/companies/gb/1026167","673478594"
"London Borough of Redbridge","http://opendatacommunities.org/doc/london-borough-council/redbridge","4BPUBLICTRAN","Public Transport","4CPARKING","Parking Services","REV","Revenue","R7037","Attendants Parking Enforcement","05-THIRD","Third Party Payments","05H","Private contractors","6911","Parking and Traffic Enforcement Contract","60379777","201904",12/07/2018 00:00:00,8327.39,"13750","Car Parking and Garaging","REDACTED DATA","APCOA PARKING (UK) LTD","2572947","http://opencorporates.com/companies/gb/2572947","674177607"
"London Borough of Redbridge","http://opendatacommunities.org/doc/london-borough-council/redbridge","4BPUBLICTRAN","Public Transport","4CPARKING","Parking Services","REV","Revenue","R7037","Attendants Parking Enforcement","05-THIRD","Third Party Payments","05H","Private contractors","6911","Parking and Traffic Enforcement Contract","60379777","201904",12/07/2018 00:00:00,8327.39,"13750","Car Parking and Garaging","REDACTED DATA","APCOA PARKING (UK) LTD","2572947","http://opencorporates.com/companies/gb/2572947","674177607"
"London Borough of Redbridge","http://opendatacommunities.org/doc/london-borough-council/redbridge","6BSOCIALSERV","Social Services","6CCHILLOOKED","Children Looked After","REV","Revenue","R2117","SEN and CD Care and Support Packages Social Care","06-TRANSFER","Transfer Payments","06B","Social Services Clients","7053","Direct Payments","3520748","201905",03/08/2018 00:00:00,9975,"56800","Payroll Services","REDACTED DATA","DAVID HOWARD FUNDING ACCOUNT","3345093","http://opencorporates.com/companies/gb/3345093","788554956"
"London Borough of Redbridge","http://opendatacommunities.org/doc/london-borough-council/redbridge","6BADULTSOCIA","Adult Social Care","6CADLEARNDIS","Adults Under 65 with Learning Disabilities","REV","Revenue","R4185","LD - Supported Living","06-TRANSFER","Transfer Payments","06B","Social Services Clients","7066","Supportive Lodgings (Transfer Payments)","90980073","201905",31/07/2018 00:00:00,10151.62,"64710","Residential Care Homes","REDACTED DATA","ESTUARY HOUSING ASSOCIATION","",,"100121018"
"London Borough of Redbridge","http://opendatacommunities.org/doc/london-borough-council/redbridge","6BADULTSOCIA","Adult Social Care","6CADLEARNDIS","Adults Under 65 with Learning Disabilities","REV","Revenue","R4185","LD - Supported Living","09-INCOME","Income","09C","Customer and Client Receipts","8553","Care Package Charges","90980073","201905",31/07/2018 00:00:00,-241.69,"64710","Residential Care Homes","REDACTED DATA","ESTUARY HOUSING ASSOCIATION","",,"100121018"
"London Borough of Redbridge","http://opendatacommunities.org/doc/london-borough-council/redbridge","3BNONSCHFUND","Non-School Funding","3CNONSCH","Non Schools","REV","Revenue","R3962","Early Years - 3 and 4 Year Olds","05-THIRD","Third Party Payments","05A","Independent units within the council","6517","Non-Maintained Schools","3523426","201905",24/08/2018 00:00:00,9870,"59760","Playgroups, Nurseries and Creches","REDACTED DATA","LITTLE RASCALS (ILFORD) LTD","5813376","http://opencorporates.com/companies/gb/5813376",""
"London Borough of Redbridge","http://opendatacommunities.org/doc/london-borough-council/redbridge","6BADULTSOCIA","Adult Social Care","6CADLEARNDIS","Adults Under 65 with Learning Disabilities","REV","Revenue","R4188","LD - Residential Care","05-THIRD","Third Party Payments","05F","Voluntary associations","6802","Residential Homes","90980531","201905",07/08/2018 00:00:00,10263.48,"64710","Residential Care Homes","REDACTED DATA","CMG HOMES LTD (CLEVELAND HOUSE)","2992839","http://opencorporates.com/companies/gb/2992839",""
"London Borough of Redbridge","http://opendatacommunities.org/doc/london-borough-council/redbridge","6BADULTSOCIA","Adult Social Care","6CADLEARNDIS","Adults Under 65 with Learning Disabilities","REV","Revenue","R4188","LD - Residential Care","09-INCOME","Income","09C","Customer and Client Receipts","8555","Accommodation Charges","90980531","201905",07/08/2018 00:00:00,-409,"64710","Residential Care Homes","REDACTED DATA","CMG HOMES LTD (CLEVELAND HOUSE)","2992839","http://opencorporates.com/companies/gb/2992839",""
"London Borough of Redbridge","http://opendatacommunities.org/doc/london-borough-council/redbridge","6BPUBHEALTH","Public Health","6CSEXHEALTH","Sexual Health","REV","Revenue","R4804","STI Testing & Treatment","05-THIRD","Third Party Payments","05D","Health authorities","6703","Hospital Trusts","60382227","201905",01/08/2018 00:00:00,9820.31,"42200","Health Authorities","REDACTED DATA","HOMERTON UNIVERSITY HOSPITAL NHS FOUNDATION TRUST","",,""
"London Borough of Redbridge","http://opendatacommunities.org/doc/london-borough-council/redbridge","5BGFHOUSING","General Fund Housing","5CHOMELESS","Homelessness","REV","Revenue","R5630","HAC Temporary Accomodation","05-THIRD","Third Party Payments","05H","Private contractors","6900","Nightly Let Plus Charges","3521436","201905",05/08/2018 00:00:00,1464.75,"31230","Employment and Recruitment Agencies","REDACTED DATA","ADAM HTT LIMITED T/A ADAM","7718565","http://opencorporates.com/companies/gb/7718565","198573349"
"London Borough of Redbridge","http://opendatacommunities.org/doc/london-borough-council/redbridge","5BGFHOUSING","General Fund Housing","5CHOMELESS","Homelessness","REV","Revenue","R5630","HAC Temporary Accomodation","05-THIRD","Third Party Payments","05H","Private contractors","6900","Nightly Let Plus Charges","3521436","201905",05/08/2018 00:00:00,1550,"31230","Employment and Recruitment Agencies","REDACTED DATA","ADAM HTT LIMITED T/A ADAM","7718565","http://opencorporates.com/companies/gb/7718565","198573349"
"London Borough of Redbridge","http://opendatacommunities.org/doc/london-borough-council/redbridge","5BGFHOUSING","General Fund Housing","5CHOMELESS","Homelessness","REV","Revenue","R5630","HAC Temporary Accomodation","05-THIRD","Third Party Payments","05H","Private contractors","6900","Nightly Let Plus Charges","3521436","201905",05/08/2018 00:00:00,1860,"31230","Employment and Recruitment Agencies","REDACTED DATA","ADAM HTT LIMITED T/A ADAM","7718565","http://opencorporates.com/companies/gb/7718565","198573349"
"London Borough of Redbridge","http://opendatacommunities.org/doc/london-borough-council/redbridge","5BGFHOUSING","General Fund Housing","5CHOMELESS","Homelessness","REV","Revenue","R5630","HAC Temporary Accomodation","05-THIRD","Third Party Payments","05H","Private contractors","6900","Nightly Let Plus Charges","3521436","201905",31/07/2018 00:00:00,-570,"31230","Employment and Recruitment Agencies","REDACTED DATA","ADAM HTT LIMITED T/A ADAM","7718565","http://opencorporates.com/companies/gb/7718565","198573349"
"London Borough of Redbridge","http://opendatacommunities.org/doc/london-borough-council/redbridge","5BGFHOUSING","General Fund Housing","5CHOMELESS","Homelessness","REV","Revenue","R5630","HAC Temporary Accomodation","05-THIRD","Third Party Payments","05H","Private contractors","6900","Nightly Let Plus Charges","3521436","201905",31/07/2018 00:00:00,836,"31230","Employment and Recruitment Agencies","REDACTED DATA","ADAM HTT LIMITED T/A ADAM","7718565","http://opencorporates.com/companies/gb/7718565","198573349"
"London Borough of Redbridge","http://opendatacommunities.org/doc/london-borough-council/redbridge","5BGFHOUSING","General Fund Housing","5CHOMELESS","Homelessness","REV","Revenue","R5630","HAC Temporary Accomodation","05-THIRD","Third Party Payments","05H","Private contractors","6900","Nightly Let Plus Charges","3521436","201905",05/08/2018 00:00:00,1302,"31230","Employment and Recruitment Agencies","REDACTED DATA","ADAM HTT LIMITED T/A ADAM","7718565","http://opencorporates.com/companies/gb/7718565","198573349"
"London Borough of Redbridge","http://opendatacommunities.org/doc/london-borough-council/redbridge","5BGFHOUSING","General Fund Housing","5CHOMELESS","Homelessness","REV","Revenue","R5630","HAC Temporary Accomodation","05-THIRD","Third Party Payments","05H","Private contractors","6900","Nightly Let Plus Charges","3521436","201905",05/08/2018 00:00:00,1116,"31230","Employment and Recruitment Agencies","REDACTED DATA","ADAM HTT LIMITED T/A ADAM","7718565","http://opencorporates.com/companies/gb/7718565","198573349"
"London Borough of Redbridge","http://opendatacommunities.org/doc/london-borough-council/redbridge","5BGFHOUSING","General Fund Housing","5CHOMELESS","Homelessness","REV","Revenue","R5630","HAC Temporary Accomodation","05-THIRD","Third Party Payments","05H","Private contractors","6900","Nightly Let Plus Charges","3521436","201905",05/08/2018 00:00:00,1878.6,"31230","Employment and Recruitment Agencies","REDACTED DATA","ADAM HTT LIMITED T/A ADAM","7718565","http://opencorporates.com/companies/gb/7718565","198573349"
"London Borough of Redbridge","http://opendatacommunities.org/doc/london-borough-council/redbridge","5BGFHOUSING","General Fund Housing","5CHOMELESS","Homelessness","REV","Revenue","R5630","HAC Temporary Accomodation","05-THIRD","Third Party Payments","05H","Private contractors","6900","Nightly Let Plus Charges","3521436","201905",05/08/2018 00:00:00,2015,"31230","Employment and Recruitment Agencies","REDACTED DATA","ADAM HTT LIMITED T/A ADAM","7718565","http://opencorporates.com/companies/gb/7718565","198573349"
"London Borough of Redbridge","http://opendatacommunities.org/doc/london-borough-council/redbridge","5BGFHOUSING","General Fund Housing","5CHOMELESS","Homelessness","REV","Revenue","R5630","HAC Temporary Accomodation","05-THIRD","Third Party Payments","05H","Private contractors","6900","Nightly Let Plus Charges","3521436","201905",05/08/2018 00:00:00,930,"31230","Employment and Recruitment Agencies","REDACTED DATA","ADAM HTT LIMITED T/A ADAM","7718565","http://opencorporates.com/companies/gb/7718565","198573349"
"London Borough of Redbridge","http://opendatacommunities.org/doc/london-borough-council/redbridge","5BGFHOUSING","General Fund Housing","5CHOMELESS","Homelessness","REV","Revenue","R5630","HAC Temporary Accomodation","05-THIRD","Third Party Payments","05H","Private contractors","6900","Nightly Let Plus Charges","3521436","201905",05/08/2018 00:00:00,1302,"31230","Employment and Recruitment Agencies","REDACTED DATA","ADAM HTT LIMITED T/A ADAM","7718565","http://opencorporates.com/companies/gb/7718565","198573349"
"London Borough of Redbridge","http://opendatacommunities.org/doc/london-borough-council/redbridge","6BADULTSOCIA","Adult Social Care","6CADLEARNDIS","Adults Under 65 with Learning Disabilities","REV","Revenue","R4188","LD - Residential Care","05-THIRD","Third Party Payments","05F","Voluntary associations","6802","Residential Homes","90980353","201905",07/08/2018 00:00:00,16754.76,"64710","Residential Care Homes","REDACTED DATA","ALYSON HOUSE RCH LTD","10311835","http://opencorporates.com/companies/gb/10311835",""
"London Borough of Redbridge","http://opendatacommunities.org/doc/london-borough-council/redbridge","6BADULTSOCIA","Adult Social Care","6CADLEARNDIS","Adults Under 65 with Learning Disabilities","REV","Revenue","R4188","LD - Residential Care","05-THIRD","Third Party Payments","05F","Voluntary associations","6802","Residential Homes","90980353","201905",07/08/2018 00:00:00,-5584.92,"64710","Residential Care Homes","REDACTED DATA","ALYSON HOUSE RCH LTD","10311835","http://opencorporates.com/companies/gb/10311835",""
"London Borough of Redbridge","http://opendatacommunities.org/doc/london-borough-council/redbridge","6BADULTSOCIA","Adult Social Care","6CADLEARNDIS","Adults Under 65 with Learning Disabilities","REV","Revenue","R4188","LD - Residential Care","09-INCOME","Income","09C","Customer and Client Receipts","8555","Accommodation Charges","90980353","201905",07/08/2018 00:00:00,-1840.5,"64710","Residential Care Homes","REDACTED DATA","ALYSON HOUSE RCH LTD","10311835","http://opencorporates.com/companies/gb/10311835",""
"London Borough of Redbridge","http://opendatacommunities.org/doc/london-borough-council/redbridge","6BADULTSOCIA","Adult Social Care","6CADLEARNDIS","Adults Under 65 with Learning Disabilities","REV","Revenue","R4188","LD - Residential Care","09-INCOME","Income","09C","Customer and Client Receipts","8555","Accommodation Charges","90980353","201905",07/08/2018 00:00:00,490.5,"64710","Residential Care Homes","REDACTED DATA","ALYSON HOUSE RCH LTD","10311835","http://opencorporates.com/companies/gb/10311835",""
"London Borough of Redbridge","http://opendatacommunities.org/doc/london-borough-council/redbridge","6BADULTSOCIA","Adult Social Care","6CADPHYSDIS","Adults Under 65 with Phys Disab or Sensory Impair","REV","Revenue","R4214","PD Direct Payments","06-TRANSFER","Transfer Payments","06B","Social Services Clients","7053","Direct Payments","3522422","201905",20/08/2018 00:00:00,-7706.45,"90005","Home Care Services DP","REDACTED DATA","REDACTED DATA","",,""
"London Borough of Redbridge","http://opendatacommunities.org/doc/london-borough-council/redbridge","6BADULTSOCIA","Adult Social Care","6CADPHYSDIS","Adults Under 65 with Phys Disab or Sensory Impair","REV","Revenue","R4214","PD Direct Payments","06-TRANSFER","Transfer Payments","06B","Social Services Clients","7053","Direct Payments","3522422","201905",20/08/2018 00:00:00,17531.25,"90005","Home Care Services DP","REDACTED DATA","REDACTED DATA","",,""
"London Borough of Redbridge","http://opendatacommunities.org/doc/london-borough-council/redbridge","6BADULTSOCIA","Adult Social Care","6CADPHYSDIS","Adults Under 65 with Phys Disab or Sensory Impair","REV","Revenue","R4214","PD Direct Payments","09-INCOME","Income","09C","Customer and Client Receipts","8545","Direct Payments Income","3522422","201905",20/08/2018 00:00:00,192.39,"90005","Home Care Services DP","REDACTED DATA","REDACTED DATA","",,""
"London Borough of Redbridge","http://opendatacommunities.org/doc/london-borough-council/redbridge","6BADULTSOCIA","Adult Social Care","6CADPHYSDIS","Adults Under 65 with Phys Disab or Sensory Impair","REV","Revenue","R4214","PD Direct Payments","09-INCOME","Income","09C","Customer and Client Receipts","8545","Direct Payments Income","3522422","201905",20/08/2018 00:00:00,-231.71,"90005","Home Care Services DP","REDACTED DATA","REDACTED DATA","",,""
"London Borough of Redbridge","http://opendatacommunities.org/doc/london-borough-council/redbridge","3BNONSCHFUND","Non-School Funding","3CNONSCH","Non Schools","REV","Revenue","R3962","Early Years - 3 and 4 Year Olds","05-THIRD","Third Party Payments","05A","Independent units within the council","6517","Non-Maintained Schools","3523516","201905",24/08/2018 00:00:00,9729,"67981","Schools - Local Authority","REDACTED DATA","WINSTON WAY ACADEMY","",,""
"London Borough of Redbridge","http://opendatacommunities.org/doc/london-borough-council/redbridge","1BOTHEROPI&E","Other Operating Income & Expenditure","1CTRADSURDEF","Trading Account Surpluses & Deficits","REV","Revenue","R9152","Operational Accounting","01-EMPLOYEES","Employees","01A","Direct employee expenses","4","Agency Staff - Pay","60382709","201905",04/07/2018 00:00:00,8076,"1961","Advertising - Agencies","REDACTED DATA","PENNA PLC (PENNA COMMUNICATIONS)","1912150","http://opencorporates.com/companies/gb/1912150","605849719"
"London Borough of Redbridge","http://opendatacommunities.org/doc/london-borough-council/redbridge","9BNONBVO","Outside the BVACOP Objective Structure","9CNONBVO","Outside the BVACOP Objective Structure","CAP","Capital","C2152","HRA Sites Phase 3A (Stanway, Rayleigh, Coppice - Luminus)","99-NONBV","Capital, Balance Sheet and Control","50E","Capital - Contract Payments","9150","Main Contract","60380785","201904",24/07/2018 00:00:00,9680.72,"44140","House Builders","REDACTED DATA","LUMINUS DEVELOPMENTS LTD","4581669","http://opencorporates.com/companies/gb/4581669","991290888"
"London Borough of Redbridge","http://opendatacommunities.org/doc/london-borough-council/redbridge","5BGFHOUSING","General Fund Housing","5CHOMELESS","Homelessness","REV","Revenue","R5630","HAC Temporary Accomodation","05-THIRD","Third Party Payments","05H","Private contractors","6900","Nightly Let Plus Charges","3521436","201905",05/08/2018 00:00:00,1302,"31230","Employment and Recruitment Agencies","REDACTED DATA","ADAM HTT LIMITED T/A ADAM","7718565","http://opencorporates.com/companies/gb/7718565","198573349"
"London Borough of Redbridge","http://opendatacommunities.org/doc/london-borough-council/redbridge","5BGFHOUSING","General Fund Housing","5CHOMELESS","Homelessness","REV","Revenue","R5630","HAC Temporary Accomodation","05-THIRD","Third Party Payments","05H","Private contractors","6900","Nightly Let Plus Charges","3521436","201905",05/08/2018 00:00:00,1302,"31230","Employment and Recruitment Agencies","REDACTED DATA","ADAM HTT LIMITED T/A ADAM","7718565","http://opencorporates.com/companies/gb/7718565","198573349"
"London Borough of Redbridge","http://opendatacommunities.org/doc/london-borough-council/redbridge","5BGFHOUSING","General Fund Housing","5CHOMELESS","Homelessness","REV","Revenue","R5630","HAC Temporary Accomodation","05-THIRD","Third Party Payments","05H","Private contractors","6900","Nightly Let Plus Charges","3521436","201905",30/07/2018 00:00:00,714,"31230","Employment and Recruitment Agencies","REDACTED DATA","ADAM HTT LIMITED T/A ADAM","7718565","http://opencorporates.com/companies/gb/7718565","198573349"
"London Borough of Redbridge","http://opendatacommunities.org/doc/london-borough-council/redbridge","5BGFHOUSING","General Fund Housing","5CHOMELESS","Homelessness","REV","Revenue","R5630","HAC Temporary Accomodation","05-THIRD","Third Party Payments","05H","Private contractors","6900","Nightly Let Plus Charges","3521436","201905",05/08/2018 00:00:00,958.83,"31230","Employment and Recruitment Agencies","REDACTED DATA","ADAM HTT LIMITED T/A ADAM","7718565","http://opencorporates.com/companies/gb/7718565","198573349"
"London Borough of Redbridge","http://opendatacommunities.org/doc/london-borough-council/redbridge","5BGFHOUSING","General Fund Housing","5CHOMELESS","Homelessness","REV","Revenue","R5630","HAC Temporary Accomodation","05-THIRD","Third Party Payments","05H","Private contractors","6900","Nightly Let Plus Charges","3521436","201905",05/08/2018 00:00:00,1178,"31230","Employment and Recruitment Agencies","REDACTED DATA","ADAM HTT LIMITED T/A ADAM","7718565","http://opencorporates.com/companies/gb/7718565","198573349"
"London Borough of Redbridge","http://opendatacommunities.org/doc/london-borough-council/redbridge","5BGFHOUSING","General Fund Housing","5CHOMELESS","Homelessness","REV","Revenue","R5630","HAC Temporary Accomodation","05-THIRD","Third Party Payments","05H","Private contractors","6900","Nightly Let Plus Charges","3521436","201905",05/08/2018 00:00:00,1705,"31230","Employment and Recruitment Agencies","REDACTED DATA","ADAM HTT LIMITED T/A ADAM","7718565","http://opencorporates.com/companies/gb/7718565","198573349"
"London Borough of Redbridge","http://opendatacommunities.org/doc/london-borough-council/redbridge","5BGFHOUSING","General Fund Housing","5CHOMELESS","Homelessness","REV","Revenue","R5630","HAC Temporary Accomodation","05-THIRD","Third Party Payments","05H","Private contractors","6900","Nightly Let Plus Charges","3521436","201905",05/08/2018 00:00:00,1178,"31230","Employment and Recruitment Agencies","REDACTED DATA","ADAM HTT LIMITED T/A ADAM","7718565","http://opencorporates.com/companies/gb/7718565","198573349"
"London Borough of Redbridge","http://opendatacommunities.org/doc/london-borough-council/redbridge","5BGFHOUSING","General Fund Housing","5CHOMELESS","Homelessness","REV","Revenue","R5630","HAC Temporary Accomodation","05-THIRD","Third Party Payments","05H","Private contractors","6900","Nightly Let Plus Charges","3521436","201905",05/08/2018 00:00:00,1488,"31230","Employment and Recruitment Agencies","REDACTED DATA","ADAM HTT LIMITED T/A ADAM","7718565","http://opencorporates.com/companies/gb/7718565","198573349"
"London Borough of Redbridge","http://opendatacommunities.org/doc/london-borough-council/redbridge","5BGFHOUSING","General Fund Housing","5CHOMELESS","Homelessness","REV","Revenue","R5630","HAC Temporary Accomodation","05-THIRD","Third Party Payments","05H","Private contractors","6900","Nightly Let Plus Charges","3521436","201905",05/08/2018 00:00:00,1705,"31230","Employment and Recruitment Agencies","REDACTED DATA","ADAM HTT LIMITED T/A ADAM","7718565","http://opencorporates.com/companies/gb/7718565","198573349"
"London Borough of Redbridge","http://opendatacommunities.org/doc/london-borough-council/redbridge","5BGFHOUSING","General Fund Housing","5CHOMELESS","Homelessness","REV","Revenue","R5630","HAC Temporary Accomodation","05-THIRD","Third Party Payments","05H","Private contractors","6900","Nightly Let Plus Charges","3521436","201905",05/08/2018 00:00:00,930,"31230","Employment and Recruitment Agencies","REDACTED DATA","ADAM HTT LIMITED T/A ADAM","7718565","http://opencorporates.com/companies/gb/7718565","198573349"
"London Borough of Redbridge","http://opendatacommunities.org/doc/london-borough-council/redbridge","5BGFHOUSING","General Fund Housing","5CHOMELESS","Homelessness","REV","Revenue","R5630","HAC Temporary Accomodation","05-THIRD","Third Party Payments","05H","Private contractors","6900","Nightly Let Plus Charges","3521436","201905",05/08/2018 00:00:00,930,"31230","Employment and Recruitment Agencies","REDACTED DATA","ADAM HTT LIMITED T/A ADAM","7718565","http://opencorporates.com/companies/gb/7718565","198573349"
"London Borough of Redbridge","http://opendatacommunities.org/doc/london-borough-council/redbridge","5BGFHOUSING","General Fund Housing","5CHOMELESS","Homelessness","REV","Revenue","R5630","HAC Temporary Accomodation","05-THIRD","Third Party Payments","05H","Private contractors","6900","Nightly Let Plus Charges","3521436","201905",05/08/2018 00:00:00,1705,"31230","Employment and Recruitment Agencies","REDACTED DATA","ADAM HTT LIMITED T/A ADAM","7718565","http://opencorporates.com/companies/gb/7718565","198573349"
"London Borough of Redbridge","http://opendatacommunities.org/doc/london-borough-council/redbridge","5BGFHOUSING","General Fund Housing","5CHOMELESS","Homelessness","REV","Revenue","R5630","HAC Temporary Accomodation","05-THIRD","Third Party Payments","05H","Private contractors","6900","Nightly Let Plus Charges","3521436","201905",05/08/2018 00:00:00,1705,"31230","Employment and Recruitment Agencies","REDACTED DATA","ADAM HTT LIMITED T/A ADAM","7718565","http://opencorporates.com/companies/gb/7718565","198573349"
"London Borough of Redbridge","http://opendatacommunities.org/doc/london-borough-council/redbridge","5BGFHOUSING","General Fund Housing","5CHOMELESS","Homelessness","REV","Revenue","R5630","HAC Temporary Accomodation","05-THIRD","Third Party Payments","05H","Private contractors","6900","Nightly Let Plus Charges","3521436","201905",05/08/2018 00:00:00,1705,"31230","Employment and Recruitment Agencies","REDACTED DATA","ADAM HTT LIMITED T/A ADAM","7718565","http://opencorporates.com/companies/gb/7718565","198573349"
"London Borough of Redbridge","http://opendatacommunities.org/doc/london-borough-council/redbridge","5BGFHOUSING","General Fund Housing","5CHOMELESS","Homelessness","REV","Revenue","R5630","HAC Temporary Accomodation","05-THIRD","Third Party Payments","05H","Private contractors","6900","Nightly Let Plus Charges","3521436","201905",05/08/2018 00:00:00,1705,"31230","Employment and Recruitment Agencies","REDACTED DATA","ADAM HTT LIMITED T/A ADAM","7718565","http://opencorporates.com/companies/gb/7718565","198573349"
"London Borough of Redbridge","http://opendatacommunities.org/doc/london-borough-council/redbridge","5BGFHOUSING","General Fund Housing","5CHOMELESS","Homelessness","REV","Revenue","R5630","HAC Temporary Accomodation","05-THIRD","Third Party Payments","05H","Private contractors","6900","Nightly Let Plus Charges","3521436","201905",05/08/2018 00:00:00,1705,"31230","Employment and Recruitment Agencies","REDACTED DATA","ADAM HTT LIMITED T/A ADAM","7718565","http://opencorporates.com/companies/gb/7718565","198573349"
"London Borough of Redbridge","http://opendatacommunities.org/doc/london-borough-council/redbridge","5BGFHOUSING","General Fund Housing","5CHOMELESS","Homelessness","REV","Revenue","R5630","HAC Temporary Accomodation","05-THIRD","Third Party Payments","05H","Private contractors","6900","Nightly Let Plus Charges","3521436","201905",05/08/2018 00:00:00,1395,"31230","Employment and Recruitment Agencies","REDACTED DATA","ADAM HTT LIMITED T/A ADAM","7718565","http://opencorporates.com/companies/gb/7718565","198573349"
"London Borough of Redbridge","http://opendatacommunities.org/doc/london-borough-council/redbridge","5BGFHOUSING","General Fund Housing","5CHOMELESS","Homelessness","REV","Revenue","R5630","HAC Temporary Accomodation","05-THIRD","Third Party Payments","05H","Private contractors","6900","Nightly Let Plus Charges","3521436","201905",05/08/2018 00:00:00,930,"31230","Employment and Recruitment Agencies","REDACTED DATA","ADAM HTT LIMITED T/A ADAM","7718565","http://opencorporates.com/companies/gb/7718565","198573349"
"London Borough of Redbridge","http://opendatacommunities.org/doc/london-borough-council/redbridge","5BGFHOUSING","General Fund Housing","5CHOMELESS","Homelessness","REV","Revenue","R5630","HAC Temporary Accomodation","05-THIRD","Third Party Payments","05H","Private contractors","6900","Nightly Let Plus Charges","3521436","201905",05/08/2018 00:00:00,1705,"31230","Employment and Recruitment Agencies","REDACTED DATA","ADAM HTT LIMITED T/A ADAM","7718565","http://opencorporates.com/companies/gb/7718565","198573349"
"London Borough of Redbridge","http://opendatacommunities.org/doc/london-borough-council/redbridge","5BGFHOUSING","General Fund Housing","5CHOMELESS","Homelessness","REV","Revenue","R5630","HAC Temporary Accomodation","05-THIRD","Third Party Payments","05H","Private contractors","6900","Nightly Let Plus Charges","3521436","201905",05/08/2018 00:00:00,1705,"31230","Employment and Recruitment Agencies","REDACTED DATA","ADAM HTT LIMITED T/A ADAM","7718565","http://opencorporates.com/companies/gb/7718565","198573349"
"London Borough of Redbridge","http://opendatacommunities.org/doc/london-borough-council/redbridge","5BGFHOUSING","General Fund Housing","5CHOMELESS","Homelessness","REV","Revenue","R5630","HAC Temporary Accomodation","05-THIRD","Third Party Payments","05H","Private contractors","6900","Nightly Let Plus Charges","3521436","201905",05/08/2018 00:00:00,1705,"31230","Employment and Recruitment Agencies","REDACTED DATA","ADAM HTT LIMITED T/A ADAM","7718565","http://opencorporates.com/companies/gb/7718565","198573349"
"London Borough of Redbridge","http://opendatacommunities.org/doc/london-borough-council/redbridge","5BGFHOUSING","General Fund Housing","5CHOMELESS","Homelessness","REV","Revenue","R5630","HAC Temporary Accomodation","05-THIRD","Third Party Payments","05H","Private contractors","6900","Nightly Let Plus Charges","3521436","201905",05/08/2018 00:00:00,1550,"31230","Employment and Recruitment Agencies","REDACTED DATA","ADAM HTT LIMITED T/A ADAM","7718565","http://opencorporates.com/companies/gb/7718565","198573349"
"London Borough of Redbridge","http://opendatacommunities.org/doc/london-borough-council/redbridge","5BGFHOUSING","General Fund Housing","5CHOMELESS","Homelessness","REV","Revenue","R5630","HAC Temporary Accomodation","05-THIRD","Third Party Payments","05H","Private contractors","6900","Nightly Let Plus Charges","3521436","201905",05/08/2018 00:00:00,1085,"31230","Employment and Recruitment Agencies","REDACTED DATA","ADAM HTT LIMITED T/A ADAM","7718565","http://opencorporates.com/companies/gb/7718565","198573349"
"London Borough of Redbridge","http://opendatacommunities.org/doc/london-borough-council/redbridge","5BGFHOUSING","General Fund Housing","5CHOMELESS","Homelessness","REV","Revenue","R5630","HAC Temporary Accomodation","05-THIRD","Third Party Payments","05H","Private contractors","6900","Nightly Let Plus Charges","3521436","201905",05/08/2018 00:00:00,1767,"31230","Employment and Recruitment Agencies","REDACTED DATA","ADAM HTT LIMITED T/A ADAM","7718565","http://opencorporates.com/companies/gb/7718565","198573349"
"London Borough of Redbridge","http://opendatacommunities.org/doc/london-borough-council/redbridge","5BGFHOUSING","General Fund Housing","5CHOMELESS","Homelessness","REV","Revenue","R5630","HAC Temporary Accomodation","05-THIRD","Third Party Payments","05H","Private contractors","6900","Nightly Let Plus Charges","3521436","201905",05/08/2018 00:00:00,1085,"31230","Employment and Recruitment Agencies","REDACTED DATA","ADAM HTT LIMITED T/A ADAM","7718565","http://opencorporates.com/companies/gb/7718565","198573349"
"London Borough of Redbridge","http://opendatacommunities.org/doc/london-borough-council/redbridge","5BGFHOUSING","General Fund Housing","5CHOMELESS","Homelessness","REV","Revenue","R5630","HAC Temporary Accomodation","05-THIRD","Third Party Payments","05H","Private contractors","6900","Nightly Let Plus Charges","3521436","201905",05/08/2018 00:00:00,1441.5,"31230","Employment and Recruitment Agencies","REDACTED DATA","ADAM HTT LIMITED T/A ADAM","7718565","http://opencorporates.com/companies/gb/7718565","198573349"
"London Borough of Redbridge","http://opendatacommunities.org/doc/london-borough-council/redbridge","5BGFHOUSING","General Fund Housing","5CHOMELESS","Homelessness","REV","Revenue","R5630","HAC Temporary Accomodation","05-THIRD","Third Party Payments","05H","Private contractors","6900","Nightly Let Plus Charges","3521436","201905",05/08/2018 00:00:00,1798,"31230","Employment and Recruitment Agencies","REDACTED DATA","ADAM HTT LIMITED T/A ADAM","7718565","http://opencorporates.com/companies/gb/7718565","198573349"
"London Borough of Redbridge","http://opendatacommunities.org/doc/london-borough-council/redbridge","5BGFHOUSING","General Fund Housing","5CHOMELESS","Homelessness","REV","Revenue","R5630","HAC Temporary Accomodation","05-THIRD","Third Party Payments","05H","Private contractors","6900","Nightly Let Plus Charges","3521436","201905",05/08/2018 00:00:00,1878.6,"31230","Employment and Recruitment Agencies","REDACTED DATA","ADAM HTT LIMITED T/A ADAM","7718565","http://opencorporates.com/companies/gb/7718565","198573349"
"London Borough of Redbridge","http://opendatacommunities.org/doc/london-borough-council/redbridge","5BGFHOUSING","General Fund Housing","5CHOMELESS","Homelessness","REV","Revenue","R5630","HAC Temporary Accomodation","05-THIRD","Third Party Payments","05H","Private contractors","6900","Nightly Let Plus Charges","3521436","201905",05/08/2018 00:00:00,1426,"31230","Employment and Recruitment Agencies","REDACTED DATA","ADAM HTT LIMITED T/A ADAM","7718565","http://opencorporates.com/companies/gb/7718565","198573349"
"London Borough of Redbridge","http://opendatacommunities.org/doc/london-borough-council/redbridge","5BGFHOUSING","General Fund Housing","5CHOMELESS","Homelessness","REV","Revenue","R5630","HAC Temporary Accomodation","05-THIRD","Third Party Payments","05H","Private contractors","6900","Nightly Let Plus Charges","3521436","201905",13/07/2018 00:00:00,-1140,"31230","Employment and Recruitment Agencies","REDACTED DATA","ADAM HTT LIMITED T/A ADAM","7718565","http://opencorporates.com/companies/gb/7718565","198573349"
"London Borough of Redbridge","http://opendatacommunities.org/doc/london-borough-council/redbridge","5BGFHOUSING","General Fund Housing","5CHOMELESS","Homelessness","REV","Revenue","R5630","HAC Temporary Accomodation","05-THIRD","Third Party Payments","05H","Private contractors","6900","Nightly Let Plus Charges","3521436","201905",05/08/2018 00:00:00,899,"31230","Employment and Recruitment Agencies","REDACTED DATA","ADAM HTT LIMITED T/A ADAM","7718565","http://opencorporates.com/companies/gb/7718565","198573349"
"London Borough of Redbridge","http://opendatacommunities.org/doc/london-borough-council/redbridge","5BGFHOUSING","General Fund Housing","5CHOMELESS","Homelessness","REV","Revenue","R5630","HAC Temporary Accomodation","05-THIRD","Third Party Payments","05H","Private contractors","6900","Nightly Let Plus Charges","3521436","201905",05/08/2018 00:00:00,1671.83,"31230","Employment and Recruitment Agencies","REDACTED DATA","ADAM HTT LIMITED T/A ADAM","7718565","http://opencorporates.com/companies/gb/7718565","198573349"
"London Borough of Redbridge","http://opendatacommunities.org/doc/london-borough-council/redbridge","5BGFHOUSING","General Fund Housing","5CHOMELESS","Homelessness","REV","Revenue","R5630","HAC Temporary Accomodation","05-THIRD","Third Party Payments","05H","Private contractors","6900","Nightly Let Plus Charges","3521436","201905",05/08/2018 00:00:00,1395,"31230","Employment and Recruitment Agencies","REDACTED DATA","ADAM HTT LIMITED T/A ADAM","7718565","http://opencorporates.com/companies/gb/7718565","198573349"
"London Borough of Redbridge","http://opendatacommunities.org/doc/london-borough-council/redbridge","5BGFHOUSING","General Fund Housing","5CHOMELESS","Homelessness","REV","Revenue","R5630","HAC Temporary Accomodation","05-THIRD","Third Party Payments","05H","Private contractors","6900","Nightly Let Plus Charges","3521436","201905",05/08/2018 00:00:00,1953,"31230","Employment and Recruitment Agencies","REDACTED DATA","ADAM HTT LIMITED T/A ADAM","7718565","http://opencorporates.com/companies/gb/7718565","198573349"
"London Borough of Redbridge","http://opendatacommunities.org/doc/london-borough-council/redbridge","5BGFHOUSING","General Fund Housing","5CHOMELESS","Homelessness","REV","Revenue","R5630","HAC Temporary Accomodation","05-THIRD","Third Party Payments","05H","Private contractors","6900","Nightly Let Plus Charges","3521436","201905",10/07/2018 00:00:00,-1395,"31230","Employment and Recruitment Agencies","REDACTED DATA","ADAM HTT LIMITED T/A ADAM","7718565","http://opencorporates.com/companies/gb/7718565","198573349"
"London Borough of Redbridge","http://opendatacommunities.org/doc/london-borough-council/redbridge","5BGFHOUSING","General Fund Housing","5CHOMELESS","Homelessness","REV","Revenue","R5630","HAC Temporary Accomodation","05-THIRD","Third Party Payments","05H","Private contractors","6900","Nightly Let Plus Charges","3521436","201905",05/08/2018 00:00:00,825.53,"31230","Employment and Recruitment Agencies","REDACTED DATA","ADAM HTT LIMITED T/A ADAM","7718565","http://opencorporates.com/companies/gb/7718565","198573349"
"London Borough of Redbridge","http://opendatacommunities.org/doc/london-borough-council/redbridge","5BGFHOUSING","General Fund Housing","5CHOMELESS","Homelessness","REV","Revenue","R5630","HAC Temporary Accomodation","05-THIRD","Third Party Payments","05H","Private contractors","6900","Nightly Let Plus Charges","3521436","201905",05/08/2018 00:00:00,1550,"31230","Employment and Recruitment Agencies","REDACTED DATA","ADAM HTT LIMITED T/A ADAM","7718565","http://opencorporates.com/companies/gb/7718565","198573349"
"London Borough of Redbridge","http://opendatacommunities.org/doc/london-borough-council/redbridge","5BGFHOUSING","General Fund Housing","5CHOMELESS","Homelessness","REV","Revenue","R5630","HAC Temporary Accomodation","05-THIRD","Third Party Payments","05H","Private contractors","6900","Nightly Let Plus Charges","3521436","201905",05/08/2018 00:00:00,930,"31230","Employment and Recruitment Agencies","REDACTED DATA","ADAM HTT LIMITED T/A ADAM","7718565","http://opencorporates.com/companies/gb/7718565","198573349"
"London Borough of Redbridge","http://opendatacommunities.org/doc/london-borough-council/redbridge","5BGFHOUSING","General Fund Housing","5CHOMELESS","Homelessness","REV","Revenue","R5630","HAC Temporary Accomodation","05-THIRD","Third Party Payments","05H","Private contractors","6900","Nightly Let Plus Charges","3521436","201905",05/08/2018 00:00:00,930,"31230","Employment and Recruitment Agencies","REDACTED DATA","ADAM HTT LIMITED T/A ADAM","7718565","http://opencorporates.com/companies/gb/7718565","198573349"
"London Borough of Redbridge","http://opendatacommunities.org/doc/london-borough-council/redbridge","5BGFHOUSING","General Fund Housing","5CHOMELESS","Homelessness","REV","Revenue","R5630","HAC Temporary Accomodation","05-THIRD","Third Party Payments","05H","Private contractors","6900","Nightly Let Plus Charges","3521436","201905",05/08/2018 00:00:00,930,"31230","Employment and Recruitment Agencies","REDACTED DATA","ADAM HTT LIMITED T/A ADAM","7718565","http://opencorporates.com/companies/gb/7718565","198573349"
"London Borough of Redbridge","http://opendatacommunities.org/doc/london-borough-council/redbridge","5BGFHOUSING","General Fund Housing","5CHOMELESS","Homelessness","REV","Revenue","R5630","HAC Temporary Accomodation","05-THIRD","Third Party Payments","05H","Private contractors","6900","Nightly Let Plus Charges","3521436","201905",05/08/2018 00:00:00,930,"31230","Employment and Recruitment Agencies","REDACTED DATA","ADAM HTT LIMITED T/A ADAM","7718565","http://opencorporates.com/companies/gb/7718565","198573349"
"London Borough of Redbridge","http://opendatacommunities.org/doc/london-borough-council/redbridge","5BGFHOUSING","General Fund Housing","5CHOMELESS","Homelessness","REV","Revenue","R5630","HAC Temporary Accomodation","05-THIRD","Third Party Payments","05H","Private contractors","6900","Nightly Let Plus Charges","3521436","201905",30/07/2018 00:00:00,-1260,"31230","Employment and Recruitment Agencies","REDACTED DATA","ADAM HTT LIMITED T/A ADAM","7718565","http://opencorporates.com/companies/gb/7718565","198573349"
"London Borough of Redbridge","http://opendatacommunities.org/doc/london-borough-council/redbridge","5BGFHOUSING","General Fund Housing","5CHOMELESS","Homelessness","REV","Revenue","R5630","HAC Temporary Accomodation","05-THIRD","Third Party Payments","05H","Private contractors","6900","Nightly Let Plus Charges","3521436","201905",05/08/2018 00:00:00,797.94,"31230","Employment and Recruitment Agencies","REDACTED DATA","ADAM HTT LIMITED T/A ADAM","7718565","http://opencorporates.com/companies/gb/7718565","198573349"
"London Borough of Redbridge","http://opendatacommunities.org/doc/london-borough-council/redbridge","5BGFHOUSING","General Fund Housing","5CHOMELESS","Homelessness","REV","Revenue","R5630","HAC Temporary Accomodation","05-THIRD","Third Party Payments","05H","Private contractors","6900","Nightly Let Plus Charges","3521436","201905",05/08/2018 00:00:00,797.94,"31230","Employment and Recruitment Agencies","REDACTED DATA","ADAM HTT LIMITED T/A ADAM","7718565","http://opencorporates.com/companies/gb/7718565","198573349"
"London Borough of Redbridge","http://opendatacommunities.org/doc/london-borough-council/redbridge","5BGFHOUSING","General Fund Housing","5CHOMELESS","Homelessness","REV","Revenue","R5630","HAC Temporary Accomodation","05-THIRD","Third Party Payments","05H","Private contractors","6900","Nightly Let Plus Charges","3521436","201905",05/08/2018 00:00:00,1441.5,"31230","Employment and Recruitment Agencies","REDACTED DATA","ADAM HTT LIMITED T/A ADAM","7718565","http://opencorporates.com/companies/gb/7718565","198573349"
"London Borough of Redbridge","http://opendatacommunities.org/doc/london-borough-council/redbridge","5BGFHOUSING","General Fund Housing","5CHOMELESS","Homelessness","REV","Revenue","R5630","HAC Temporary Accomodation","05-THIRD","Third Party Payments","05H","Private contractors","6900","Nightly Let Plus Charges","3521436","201905",05/08/2018 00:00:00,1085,"31230","Employment and Recruitment Agencies","REDACTED DATA","ADAM HTT LIMITED T/A ADAM","7718565","http://opencorporates.com/companies/gb/7718565","198573349"
"London Borough of Redbridge","http://opendatacommunities.org/doc/london-borough-council/redbridge","5BGFHOUSING","General Fund Housing","5CHOMELESS","Homelessness","REV","Revenue","R5630","HAC Temporary Accomodation","05-THIRD","Third Party Payments","05H","Private contractors","6900","Nightly Let Plus Charges","3521436","201905",05/08/2018 00:00:00,1550,"31230","Employment and Recruitment Agencies","REDACTED DATA","ADAM HTT LIMITED T/A ADAM","7718565","http://opencorporates.com/companies/gb/7718565","198573349"
"London Borough of Redbridge","http://opendatacommunities.org/doc/london-borough-council/redbridge","5BGFHOUSING","General Fund Housing","5CHOMELESS","Homelessness","REV","Revenue","R5630","HAC Temporary Accomodation","05-THIRD","Third Party Payments","05H","Private contractors","6900","Nightly Let Plus Charges","3521436","201905",05/08/2018 00:00:00,1860,"31230","Employment and Recruitment Agencies","REDACTED DATA","ADAM HTT LIMITED T/A ADAM","7718565","http://opencorporates.com/companies/gb/7718565","198573349"
"London Borough of Redbridge","http://opendatacommunities.org/doc/london-borough-council/redbridge","5BGFHOUSING","General Fund Housing","5CHOMELESS","Homelessness","REV","Revenue","R5630","HAC Temporary Accomodation","05-THIRD","Third Party Payments","05H","Private contractors","6900","Nightly Let Plus Charges","3521436","201905",30/07/2018 00:00:00,184,"31230","Employment and Recruitment Agencies","REDACTED DATA","ADAM HTT LIMITED T/A ADAM","7718565","http://opencorporates.com/companies/gb/7718565","198573349"
"London Borough of Redbridge","http://opendatacommunities.org/doc/london-borough-council/redbridge","5BGFHOUSING","General Fund Housing","5CHOMELESS","Homelessness","REV","Revenue","R5630","HAC Temporary Accomodation","05-THIRD","Third Party Payments","05H","Private contractors","6900","Nightly Let Plus Charges","3521436","201905",05/08/2018 00:00:00,1478.7,"31230","Employment and Recruitment Agencies","REDACTED DATA","ADAM HTT LIMITED T/A ADAM","7718565","http://opencorporates.com/companies/gb/7718565","198573349"
"London Borough of Redbridge","http://opendatacommunities.org/doc/london-borough-council/redbridge","5BGFHOUSING","General Fund Housing","5CHOMELESS","Homelessness","REV","Revenue","R5630","HAC Temporary Accomodation","05-THIRD","Third Party Payments","05H","Private contractors","6900","Nightly Let Plus Charges","3521436","201905",05/08/2018 00:00:00,1674,"31230","Employment and Recruitment Agencies","REDACTED DATA","ADAM HTT LIMITED T/A ADAM","7718565","http://opencorporates.com/companies/gb/7718565","198573349"
"London Borough of Redbridge","http://opendatacommunities.org/doc/london-borough-council/redbridge","5BGFHOUSING","General Fund Housing","5CHOMELESS","Homelessness","REV","Revenue","R5630","HAC Temporary Accomodation","05-THIRD","Third Party Payments","05H","Private contractors","6900","Nightly Let Plus Charges","3521436","201905",05/08/2018 00:00:00,1674,"31230","Employment and Recruitment Agencies","REDACTED DATA","ADAM HTT LIMITED T/A ADAM","7718565","http://opencorporates.com/companies/gb/7718565","198573349"
"London Borough of Redbridge","http://opendatacommunities.org/doc/london-borough-council/redbridge","5BGFHOUSING","General Fund Housing","5CHOMELESS","Homelessness","REV","Revenue","R5630","HAC Temporary Accomodation","05-THIRD","Third Party Payments","05H","Private contractors","6900","Nightly Let Plus Charges","3521436","201905",05/08/2018 00:00:00,1333,"31230","Employment and Recruitment Agencies","REDACTED DATA","ADAM HTT LIMITED T/A ADAM","7718565","http://opencorporates.com/companies/gb/7718565","198573349"
"London Borough of Redbridge","http://opendatacommunities.org/doc/london-borough-council/redbridge","5BGFHOUSING","General Fund Housing","5CHOMELESS","Homelessness","REV","Revenue","R5630","HAC Temporary Accomodation","05-THIRD","Third Party Payments","05H","Private contractors","6900","Nightly Let Plus Charges","3521436","201905",05/08/2018 00:00:00,1891,"31230","Employment and Recruitment Agencies","REDACTED DATA","ADAM HTT LIMITED T/A ADAM","7718565","http://opencorporates.com/companies/gb/7718565","198573349"
"London Borough of Redbridge","http://opendatacommunities.org/doc/london-borough-council/redbridge","5BGFHOUSING","General Fund Housing","5CHOMELESS","Homelessness","REV","Revenue","R5630","HAC Temporary Accomodation","05-THIRD","Third Party Payments","05H","Private contractors","6900","Nightly Let Plus Charges","3521436","201905",05/08/2018 00:00:00,1116,"31230","Employment and Recruitment Agencies","REDACTED DATA","ADAM HTT LIMITED T/A ADAM","7718565","http://opencorporates.com/companies/gb/7718565","198573349"
"London Borough of Redbridge","http://opendatacommunities.org/doc/london-borough-council/redbridge","5BGFHOUSING","General Fund Housing","5CHOMELESS","Homelessness","REV","Revenue","R5630","HAC Temporary Accomodation","05-THIRD","Third Party Payments","05H","Private contractors","6900","Nightly Let Plus Charges","3521436","201905",05/08/2018 00:00:00,1705,"31230","Employment and Recruitment Agencies","REDACTED DATA","ADAM HTT LIMITED T/A ADAM","7718565","http://opencorporates.com/companies/gb/7718565","198573349"
"London Borough of Redbridge","http://opendatacommunities.org/doc/london-borough-council/redbridge","5BGFHOUSING","General Fund Housing","5CHOMELESS","Homelessness","REV","Revenue","R5630","HAC Temporary Accomodation","05-THIRD","Third Party Payments","05H","Private contractors","6900","Nightly Let Plus Charges","3521436","201905",05/08/2018 00:00:00,440,"31230","Employment and Recruitment Agencies","REDACTED DATA","ADAM HTT LIMITED T/A ADAM","7718565","http://opencorporates.com/companies/gb/7718565","198573349"
"London Borough of Redbridge","http://opendatacommunities.org/doc/london-borough-council/redbridge","5BGFHOUSING","General Fund Housing","5CHOMELESS","Homelessness","REV","Revenue","R5630","HAC Temporary Accomodation","05-THIRD","Third Party Payments","05H","Private contractors","6900","Nightly Let Plus Charges","3521436","201905",05/08/2018 00:00:00,1705,"31230","Employment and Recruitment Agencies","REDACTED DATA","ADAM HTT LIMITED T/A ADAM","7718565","http://opencorporates.com/companies/gb/7718565","198573349"
"London Borough of Redbridge","http://opendatacommunities.org/doc/london-borough-council/redbridge","5BGFHOUSING","General Fund Housing","5CHOMELESS","Homelessness","REV","Revenue","R5630","HAC Temporary Accomodation","05-THIRD","Third Party Payments","05H","Private contractors","6900","Nightly Let Plus Charges","3521436","201905",05/08/2018 00:00:00,930,"31230","Employment and Recruitment Agencies","REDACTED DATA","ADAM HTT LIMITED T/A ADAM","7718565","http://opencorporates.com/companies/gb/7718565","198573349"
"London Borough of Redbridge","http://opendatacommunities.org/doc/london-borough-council/redbridge","5BGFHOUSING","General Fund Housing","5CHOMELESS","Homelessness","REV","Revenue","R5630","HAC Temporary Accomodation","05-THIRD","Third Party Payments","05H","Private contractors","6900","Nightly Let Plus Charges","3521436","201905",05/08/2018 00:00:00,1674,"31230","Employment and Recruitment Agencies","REDACTED DATA","ADAM HTT LIMITED T/A ADAM","7718565","http://opencorporates.com/companies/gb/7718565","198573349"
"London Borough of Redbridge","http://opendatacommunities.org/doc/london-borough-council/redbridge","5BGFHOUSING","General Fund Housing","5CHOMELESS","Homelessness","REV","Revenue","R5630","HAC Temporary Accomodation","05-THIRD","Third Party Payments","05H","Private contractors","6900","Nightly Let Plus Charges","3521436","201905",05/08/2018 00:00:00,1860,"31230","Employment and Recruitment Agencies","REDACTED DATA","ADAM HTT LIMITED T/A ADAM","7718565","http://opencorporates.com/companies/gb/7718565","198573349"
"London Borough of Redbridge","http://opendatacommunities.org/doc/london-borough-council/redbridge","5BGFHOUSING","General Fund Housing","5CHOMELESS","Homelessness","REV","Revenue","R5630","HAC Temporary Accomodation","05-THIRD","Third Party Payments","05H","Private contractors","6900","Nightly Let Plus Charges","3521436","201905",05/08/2018 00:00:00,1395,"31230","Employment and Recruitment Agencies","REDACTED DATA","ADAM HTT LIMITED T/A ADAM","7718565","http://opencorporates.com/companies/gb/7718565","198573349"
"London Borough of Redbridge","http://opendatacommunities.org/doc/london-borough-council/redbridge","5BGFHOUSING","General Fund Housing","5CHOMELESS","Homelessness","REV","Revenue","R5630","HAC Temporary Accomodation","05-THIRD","Third Party Payments","05H","Private contractors","6900","Nightly Let Plus Charges","3521436","201905",05/08/2018 00:00:00,1395,"31230","Employment and Recruitment Agencies","REDACTED DATA","ADAM HTT LIMITED T/A ADAM","7718565","http://opencorporates.com/companies/gb/7718565","198573349"
"London Borough of Redbridge","http://opendatacommunities.org/doc/london-borough-council/redbridge","5BGFHOUSING","General Fund Housing","5CHOMELESS","Homelessness","REV","Revenue","R5630","HAC Temporary Accomodation","05-THIRD","Third Party Payments","05H","Private contractors","6900","Nightly Let Plus Charges","3521436","201905",05/08/2018 00:00:00,1674,"31230","Employment and Recruitment Agencies","REDACTED DATA","ADAM HTT LIMITED T/A ADAM","7718565","http://opencorporates.com/companies/gb/7718565","198573349"
"London Borough of Redbridge","http://opendatacommunities.org/doc/london-borough-council/redbridge","5BGFHOUSING","General Fund Housing","5CHOMELESS","Homelessness","REV","Revenue","R5630","HAC Temporary Accomodation","05-THIRD","Third Party Payments","05H","Private contractors","6900","Nightly Let Plus Charges","3521436","201905",05/08/2018 00:00:00,914.5,"31230","Employment and Recruitment Agencies","REDACTED DATA","ADAM HTT LIMITED T/A ADAM","7718565","http://opencorporates.com/companies/gb/7718565","198573349"
"London Borough of Redbridge","http://opendatacommunities.org/doc/london-borough-council/redbridge","5BGFHOUSING","General Fund Housing","5CHOMELESS","Homelessness","REV","Revenue","R5630","HAC Temporary Accomodation","05-THIRD","Third Party Payments","05H","Private contractors","6900","Nightly Let Plus Charges","3521436","201905",13/07/2018 00:00:00,-1288,"31230","Employment and Recruitment Agencies","REDACTED DATA","ADAM HTT LIMITED T/A ADAM","7718565","http://opencorporates.com/companies/gb/7718565","198573349"
"London Borough of Redbridge","http://opendatacommunities.org/doc/london-borough-council/redbridge","5BGFHOUSING","General Fund Housing","5CHOMELESS","Homelessness","REV","Revenue","R5630","HAC Temporary Accomodation","05-THIRD","Third Party Payments","05H","Private contractors","6900","Nightly Let Plus Charges","3521436","201905",13/07/2018 00:00:00,-1426,"31230","Employment and Recruitment Agencies","REDACTED DATA","ADAM HTT LIMITED T/A ADAM","7718565","http://opencorporates.com/companies/gb/7718565","198573349"
"London Borough of Redbridge","http://opendatacommunities.org/doc/london-borough-council/redbridge","5BGFHOUSING","General Fund Housing","5CHOMELESS","Homelessness","REV","Revenue","R5630","HAC Temporary Accomodation","05-THIRD","Third Party Payments","05H","Private contractors","6900","Nightly Let Plus Charges","3521436","201905",05/08/2018 00:00:00,1550,"31230","Employment and Recruitment Agencies","REDACTED DATA","ADAM HTT LIMITED T/A ADAM","7718565","http://opencorporates.com/companies/gb/7718565","198573349"
"London Borough of Redbridge","http://opendatacommunities.org/doc/london-borough-council/redbridge","5BGFHOUSING","General Fund Housing","5CHOMELESS","Homelessness","REV","Revenue","R5630","HAC Temporary Accomodation","05-THIRD","Third Party Payments","05H","Private contractors","6900","Nightly Let Plus Charges","3521436","201905",05/08/2018 00:00:00,958.83,"31230","Employment and Recruitment Agencies","REDACTED DATA","ADAM HTT LIMITED T/A ADAM","7718565","http://opencorporates.com/companies/gb/7718565","198573349"
"London Borough of Redbridge","http://opendatacommunities.org/doc/london-borough-council/redbridge","5BGFHOUSING","General Fund Housing","5CHOMELESS","Homelessness","REV","Revenue","R5630","HAC Temporary Accomodation","05-THIRD","Third Party Payments","05H","Private contractors","6900","Nightly Let Plus Charges","3521436","201905",05/08/2018 00:00:00,1395,"31230","Employment and Recruitment Agencies","REDACTED DATA","ADAM HTT LIMITED T/A ADAM","7718565","http://opencorporates.com/companies/gb/7718565","198573349"
"London Borough of Redbridge","http://opendatacommunities.org/doc/london-borough-council/redbridge","5BGFHOUSING","General Fund Housing","5CHOMELESS","Homelessness","REV","Revenue","R5630","HAC Temporary Accomodation","05-THIRD","Third Party Payments","05H","Private contractors","6900","Nightly Let Plus Charges","3521436","201905",05/08/2018 00:00:00,1705,"31230","Employment and Recruitment Agencies","REDACTED DATA","ADAM HTT LIMITED T/A ADAM","7718565","http://opencorporates.com/companies/gb/7718565","198573349"
"London Borough of Redbridge","http://opendatacommunities.org/doc/london-borough-council/redbridge","5BGFHOUSING","General Fund Housing","5CHOMELESS","Homelessness","REV","Revenue","R5630","HAC Temporary Accomodation","05-THIRD","Third Party Payments","05H","Private contractors","6900","Nightly Let Plus Charges","3521436","201905",05/08/2018 00:00:00,1550,"31230","Employment and Recruitment Agencies","REDACTED DATA","ADAM HTT LIMITED T/A ADAM","7718565","http://opencorporates.com/companies/gb/7718565","198573349"
"London Borough of Redbridge","http://opendatacommunities.org/doc/london-borough-council/redbridge","5BGFHOUSING","General Fund Housing","5CHOMELESS","Homelessness","REV","Revenue","R5630","HAC Temporary Accomodation","05-THIRD","Third Party Payments","05H","Private contractors","6900","Nightly Let Plus Charges","3521436","201905",05/08/2018 00:00:00,2015,"31230","Employment and Recruitment Agencies","REDACTED DATA","ADAM HTT LIMITED T/A ADAM","7718565","http://opencorporates.com/companies/gb/7718565","198573349"
"London Borough of Redbridge","http://opendatacommunities.org/doc/london-borough-council/redbridge","5BGFHOUSING","General Fund Housing","5CHOMELESS","Homelessness","REV","Revenue","R5630","HAC Temporary Accomodation","05-THIRD","Third Party Payments","05H","Private contractors","6900","Nightly Let Plus Charges","3521436","201905",05/08/2018 00:00:00,2015,"31230","Employment and Recruitment Agencies","REDACTED DATA","ADAM HTT LIMITED T/A ADAM","7718565","http://opencorporates.com/companies/gb/7718565","198573349"
"London Borough of Redbridge","http://opendatacommunities.org/doc/london-borough-council/redbridge","5BGFHOUSING","General Fund Housing","5CHOMELESS","Homelessness","REV","Revenue","R5630","HAC Temporary Accomodation","05-THIRD","Third Party Payments","05H","Private contractors","6900","Nightly Let Plus Charges","3521436","201905",05/08/2018 00:00:00,1550,"31230","Employment and Recruitment Agencies","REDACTED DATA","ADAM HTT LIMITED T/A ADAM","7718565","http://opencorporates.com/companies/gb/7718565","198573349"
"London Borough of Redbridge","http://opendatacommunities.org/doc/london-borough-council/redbridge","5BGFHOUSING","General Fund Housing","5CHOMELESS","Homelessness","REV","Revenue","R5630","HAC Temporary Accomodation","05-THIRD","Third Party Payments","05H","Private contractors","6900","Nightly Let Plus Charges","3521436","201905",05/08/2018 00:00:00,1178,"31230","Employment and Recruitment Agencies","REDACTED DATA","ADAM HTT LIMITED T/A ADAM","7718565","http://opencorporates.com/companies/gb/7718565","198573349"
"London Borough of Redbridge","http://opendatacommunities.org/doc/london-borough-council/redbridge","5BGFHOUSING","General Fund Housing","5CHOMELESS","Homelessness","REV","Revenue","R5630","HAC Temporary Accomodation","05-THIRD","Third Party Payments","05H","Private contractors","6900","Nightly Let Plus Charges","3521436","201905",05/08/2018 00:00:00,797.94,"31230","Employment and Recruitment Agencies","REDACTED DATA","ADAM HTT LIMITED T/A ADAM","7718565","http://opencorporates.com/companies/gb/7718565","198573349"
"London Borough of Redbridge","http://opendatacommunities.org/doc/london-borough-council/redbridge","5BGFHOUSING","General Fund Housing","5CHOMELESS","Homelessness","REV","Revenue","R5630","HAC Temporary Accomodation","05-THIRD","Third Party Payments","05H","Private contractors","6900","Nightly Let Plus Charges","3521436","201905",05/08/2018 00:00:00,1178,"31230","Employment and Recruitment Agencies","REDACTED DATA","ADAM HTT LIMITED T/A ADAM","7718565","http://opencorporates.com/companies/gb/7718565","198573349"
"London Borough of Redbridge","http://opendatacommunities.org/doc/london-borough-council/redbridge","5BGFHOUSING","General Fund Housing","5CHOMELESS","Homelessness","REV","Revenue","R5630","HAC Temporary Accomodation","05-THIRD","Third Party Payments","05H","Private contractors","6900","Nightly Let Plus Charges","3521436","201905",05/08/2018 00:00:00,797.94,"31230","Employment and Recruitment Agencies","REDACTED DATA","ADAM HTT LIMITED T/A ADAM","7718565","http://opencorporates.com/companies/gb/7718565","198573349"
"London Borough of Redbridge","http://opendatacommunities.org/doc/london-borough-council/redbridge","5BGFHOUSING","General Fund Housing","5CHOMELESS","Homelessness","REV","Revenue","R5630","HAC Temporary Accomodation","05-THIRD","Third Party Payments","05H","Private contractors","6900","Nightly Let Plus Charges","3521436","201905",05/08/2018 00:00:00,1178,"31230","Employment and Recruitment Agencies","REDACTED DATA","ADAM HTT LIMITED T/A ADAM","7718565","http://opencorporates.com/companies/gb/7718565","198573349"
"London Borough of Redbridge","http://opendatacommunities.org/doc/london-borough-council/redbridge","5BGFHOUSING","General Fund Housing","5CHOMELESS","Homelessness","REV","Revenue","R5630","HAC Temporary Accomodation","05-THIRD","Third Party Payments","05H","Private contractors","6900","Nightly Let Plus Charges","3521436","201905",05/08/2018 00:00:00,1395,"31230","Employment and Recruitment Agencies","REDACTED DATA","ADAM HTT LIMITED T/A ADAM","7718565","http://opencorporates.com/companies/gb/7718565","198573349"
"London Borough of Redbridge","http://opendatacommunities.org/doc/london-borough-council/redbridge","5BGFHOUSING","General Fund Housing","5CHOMELESS","Homelessness","REV","Revenue","R5630","HAC Temporary Accomodation","05-THIRD","Third Party Payments","05H","Private contractors","6900","Nightly Let Plus Charges","3521436","201905",05/08/2018 00:00:00,899,"31230","Employment and Recruitment Agencies","REDACTED DATA","ADAM HTT LIMITED T/A ADAM","7718565","http://opencorporates.com/companies/gb/7718565","198573349"
"London Borough of Redbridge","http://opendatacommunities.org/doc/london-borough-council/redbridge","5BGFHOUSING","General Fund Housing","5CHOMELESS","Homelessness","REV","Revenue","R5630","HAC Temporary Accomodation","05-THIRD","Third Party Payments","05H","Private contractors","6900","Nightly Let Plus Charges","3521436","201905",05/08/2018 00:00:00,930,"31230","Employment and Recruitment Agencies","REDACTED DATA","ADAM HTT LIMITED T/A ADAM","7718565","http://opencorporates.com/companies/gb/7718565","198573349"
"London Borough of Redbridge","http://opendatacommunities.org/doc/london-borough-council/redbridge","5BGFHOUSING","General Fund Housing","5CHOMELESS","Homelessness","REV","Revenue","R5630","HAC Temporary Accomodation","05-THIRD","Third Party Payments","05H","Private contractors","6900","Nightly Let Plus Charges","3521436","201905",05/08/2018 00:00:00,930,"31230","Employment and Recruitment Agencies","REDACTED DATA","ADAM HTT LIMITED T/A ADAM","7718565","http://opencorporates.com/companies/gb/7718565","198573349"
"London Borough of Redbridge","http://opendatacommunities.org/doc/london-borough-council/redbridge","5BGFHOUSING","General Fund Housing","5CHOMELESS","Homelessness","REV","Revenue","R5630","HAC Temporary Accomodation","05-THIRD","Third Party Payments","05H","Private contractors","6900","Nightly Let Plus Charges","3521436","201905",05/08/2018 00:00:00,1891,"31230","Employment and Recruitment Agencies","REDACTED DATA","ADAM HTT LIMITED T/A ADAM","7718565","http://opencorporates.com/companies/gb/7718565","198573349"
"London Borough of Redbridge","http://opendatacommunities.org/doc/london-borough-council/redbridge","5BGFHOUSING","General Fund Housing","5CHOMELESS","Homelessness","REV","Revenue","R5630","HAC Temporary Accomodation","05-THIRD","Third Party Payments","05H","Private contractors","6900","Nightly Let Plus Charges","3521436","201905",05/08/2018 00:00:00,1395,"31230","Employment and Recruitment Agencies","REDACTED DATA","ADAM HTT LIMITED T/A ADAM","7718565","http://opencorporates.com/companies/gb/7718565","198573349"
"London Borough of Redbridge","http://opendatacommunities.org/doc/london-borough-council/redbridge","5BGFHOUSING","General Fund Housing","5CHOMELESS","Homelessness","REV","Revenue","R5630","HAC Temporary Accomodation","05-THIRD","Third Party Payments","05H","Private contractors","6900","Nightly Let Plus Charges","3521436","201905",05/08/2018 00:00:00,1395,"31230","Employment and Recruitment Agencies","REDACTED DATA","ADAM HTT LIMITED T/A ADAM","7718565","http://opencorporates.com/companies/gb/7718565","198573349"
"London Borough of Redbridge","http://opendatacommunities.org/doc/london-borough-council/redbridge","5BGFHOUSING","General Fund Housing","5CHOMELESS","Homelessness","REV","Revenue","R5630","HAC Temporary Accomodation","05-THIRD","Third Party Payments","05H","Private contractors","6900","Nightly Let Plus Charges","3521436","201905",05/08/2018 00:00:00,1178,"31230","Employment and Recruitment Agencies","REDACTED DATA","ADAM HTT LIMITED T/A ADAM","7718565","http://opencorporates.com/companies/gb/7718565","198573349"
"London Borough of Redbridge","http://opendatacommunities.org/doc/london-borough-council/redbridge","5BGFHOUSING","General Fund Housing","5CHOMELESS","Homelessness","REV","Revenue","R5630","HAC Temporary Accomodation","05-THIRD","Third Party Payments","05H","Private contractors","6900","Nightly Let Plus Charges","3521436","201905",05/08/2018 00:00:00,930,"31230","Employment and Recruitment Agencies","REDACTED DATA","ADAM HTT LIMITED T/A ADAM","7718565","http://opencorporates.com/companies/gb/7718565","198573349"
"London Borough of Redbridge","http://opendatacommunities.org/doc/london-borough-council/redbridge","5BGFHOUSING","General Fund Housing","5CHOMELESS","Homelessness","REV","Revenue","R5630","HAC Temporary Accomodation","05-THIRD","Third Party Payments","05H","Private contractors","6900","Nightly Let Plus Charges","3521436","201905",05/08/2018 00:00:00,1116,"31230","Employment and Recruitment Agencies","REDACTED DATA","ADAM HTT LIMITED T/A ADAM","7718565","http://opencorporates.com/companies/gb/7718565","198573349"
"London Borough of Redbridge","http://opendatacommunities.org/doc/london-borough-council/redbridge","5BGFHOUSING","General Fund Housing","5CHOMELESS","Homelessness","REV","Revenue","R5630","HAC Temporary Accomodation","05-THIRD","Third Party Payments","05H","Private contractors","6900","Nightly Let Plus Charges","3521436","201905",05/08/2018 00:00:00,1178,"31230","Employment and Recruitment Agencies","REDACTED DATA","ADAM HTT LIMITED T/A ADAM","7718565","http://opencorporates.com/companies/gb/7718565","198573349"
"London Borough of Redbridge","http://opendatacommunities.org/doc/london-borough-council/redbridge","5BGFHOUSING","General Fund Housing","5CHOMELESS","Homelessness","REV","Revenue","R5630","HAC Temporary Accomodation","05-THIRD","Third Party Payments","05H","Private contractors","6900","Nightly Let Plus Charges","3521436","201905",05/08/2018 00:00:00,1333,"31230","Employment and Recruitment Agencies","REDACTED DATA","ADAM HTT LIMITED T/A ADAM","7718565","http://opencorporates.com/companies/gb/7718565","198573349"
"London Borough of Redbridge","http://opendatacommunities.org/doc/london-borough-council/redbridge","5BGFHOUSING","General Fund Housing","5CHOMELESS","Homelessness","REV","Revenue","R5630","HAC Temporary Accomodation","05-THIRD","Third Party Payments","05H","Private contractors","6900","Nightly Let Plus Charges","3521436","201905",05/08/2018 00:00:00,1395,"31230","Employment and Recruitment Agencies","REDACTED DATA","ADAM HTT LIMITED T/A ADAM","7718565","http://opencorporates.com/companies/gb/7718565","198573349"
"London Borough of Redbridge","http://opendatacommunities.org/doc/london-borough-council/redbridge","5BGFHOUSING","General Fund Housing","5CHOMELESS","Homelessness","REV","Revenue","R5630","HAC Temporary Accomodation","05-THIRD","Third Party Payments","05H","Private contractors","6900","Nightly Let Plus Charges","3521436","201905",05/08/2018 00:00:00,1333,"31230","Employment and Recruitment Agencies","REDACTED DATA","ADAM HTT LIMITED T/A ADAM","7718565","http://opencorporates.com/companies/gb/7718565","198573349"
"London Borough of Redbridge","http://opendatacommunities.org/doc/london-borough-council/redbridge","5BGFHOUSING","General Fund Housing","5CHOMELESS","Homelessness","REV","Revenue","R5630","HAC Temporary Accomodation","05-THIRD","Third Party Payments","05H","Private contractors","6900","Nightly Let Plus Charges","3521436","201905",05/08/2018 00:00:00,1705,"31230","Employment and Recruitment Agencies","REDACTED DATA","ADAM HTT LIMITED T/A ADAM","7718565","http://opencorporates.com/companies/gb/7718565","198573349"
"London Borough of Redbridge","http://opendatacommunities.org/doc/london-borough-council/redbridge","5BGFHOUSING","General Fund Housing","5CHOMELESS","Homelessness","REV","Revenue","R5630","HAC Temporary Accomodation","05-THIRD","Third Party Payments","05H","Private contractors","6900","Nightly Let Plus Charges","3521436","201905",05/08/2018 00:00:00,1674,"31230","Employment and Recruitment Agencies","REDACTED DATA","ADAM HTT LIMITED T/A ADAM","7718565","http://opencorporates.com/companies/gb/7718565","198573349"
"London Borough of Redbridge","http://opendatacommunities.org/doc/london-borough-council/redbridge","5BGFHOUSING","General Fund Housing","5CHOMELESS","Homelessness","REV","Revenue","R5630","HAC Temporary Accomodation","05-THIRD","Third Party Payments","05H","Private contractors","6900","Nightly Let Plus Charges","3521436","201905",05/08/2018 00:00:00,1302,"31230","Employment and Recruitment Agencies","REDACTED DATA","ADAM HTT LIMITED T/A ADAM","7718565","http://opencorporates.com/companies/gb/7718565","198573349"
"London Borough of Redbridge","http://opendatacommunities.org/doc/london-borough-council/redbridge","5BGFHOUSING","General Fund Housing","5CHOMELESS","Homelessness","REV","Revenue","R5630","HAC Temporary Accomodation","05-THIRD","Third Party Payments","05H","Private contractors","6900","Nightly Let Plus Charges","3521436","201905",05/08/2018 00:00:00,1395,"31230","Employment and Recruitment Agencies","REDACTED DATA","ADAM HTT LIMITED T/A ADAM","7718565","http://opencorporates.com/companies/gb/7718565","198573349"
"London Borough of Redbridge","http://opendatacommunities.org/doc/london-borough-council/redbridge","5BGFHOUSING","General Fund Housing","5CHOMELESS","Homelessness","REV","Revenue","R5630","HAC Temporary Accomodation","05-THIRD","Third Party Payments","05H","Private contractors","6900","Nightly Let Plus Charges","3521436","201905",05/08/2018 00:00:00,1178,"31230","Employment and Recruitment Agencies","REDACTED DATA","ADAM HTT LIMITED T/A ADAM","7718565","http://opencorporates.com/companies/gb/7718565","198573349"
"London Borough of Redbridge","http://opendatacommunities.org/doc/london-borough-council/redbridge","5BGFHOUSING","General Fund Housing","5CHOMELESS","Homelessness","REV","Revenue","R5630","HAC Temporary Accomodation","05-THIRD","Third Party Payments","05H","Private contractors","6900","Nightly Let Plus Charges","3521436","201905",05/08/2018 00:00:00,1178,"31230","Employment and Recruitment Agencies","REDACTED DATA","ADAM HTT LIMITED T/A ADAM","7718565","http://opencorporates.com/companies/gb/7718565","198573349"
"London Borough of Redbridge","http://opendatacommunities.org/doc/london-borough-council/redbridge","5BGFHOUSING","General Fund Housing","5CHOMELESS","Homelessness","REV","Revenue","R5630","HAC Temporary Accomodation","05-THIRD","Third Party Payments","05H","Private contractors","6900","Nightly Let Plus Charges","3521436","201905",05/08/2018 00:00:00,1705,"31230","Employment and Recruitment Agencies","REDACTED DATA","ADAM HTT LIMITED T/A ADAM","7718565","http://opencorporates.com/companies/gb/7718565","198573349"
"London Borough of Redbridge","http://opendatacommunities.org/doc/london-borough-council/redbridge","5BGFHOUSING","General Fund Housing","5CHOMELESS","Homelessness","REV","Revenue","R5630","HAC Temporary Accomodation","05-THIRD","Third Party Payments","05H","Private contractors","6900","Nightly Let Plus Charges","3521436","201905",05/08/2018 00:00:00,2015,"31230","Employment and Recruitment Agencies","REDACTED DATA","ADAM HTT LIMITED T/A ADAM","7718565","http://opencorporates.com/companies/gb/7718565","198573349"
"London Borough of Redbridge","http://opendatacommunities.org/doc/london-borough-council/redbridge","5BGFHOUSING","General Fund Housing","5CHOMELESS","Homelessness","REV","Revenue","R5630","HAC Temporary Accomodation","05-THIRD","Third Party Payments","05H","Private contractors","6900","Nightly Let Plus Charges","3521436","201905",05/08/2018 00:00:00,2015,"31230","Employment and Recruitment Agencies","REDACTED DATA","ADAM HTT LIMITED T/A ADAM","7718565","http://opencorporates.com/companies/gb/7718565","198573349"
"London Borough of Redbridge","http://opendatacommunities.org/doc/london-borough-council/redbridge","5BGFHOUSING","General Fund Housing","5CHOMELESS","Homelessness","REV","Revenue","R5630","HAC Temporary Accomodation","05-THIRD","Third Party Payments","05H","Private contractors","6900","Nightly Let Plus Charges","3521436","201905",05/08/2018 00:00:00,1705,"31230","Employment and Recruitment Agencies","REDACTED DATA","ADAM HTT LIMITED T/A ADAM","7718565","http://opencorporates.com/companies/gb/7718565","198573349"
"London Borough of Redbridge","http://opendatacommunities.org/doc/london-borough-council/redbridge","5BGFHOUSING","General Fund Housing","5CHOMELESS","Homelessness","REV","Revenue","R5630","HAC Temporary Accomodation","05-THIRD","Third Party Payments","05H","Private contractors","6900","Nightly Let Plus Charges","3521436","201905",05/08/2018 00:00:00,2015,"31230","Employment and Recruitment Agencies","REDACTED DATA","ADAM HTT LIMITED T/A ADAM","7718565","http://opencorporates.com/companies/gb/7718565","198573349"
"London Borough of Redbridge","http://opendatacommunities.org/doc/london-borough-council/redbridge","5BGFHOUSING","General Fund Housing","5CHOMELESS","Homelessness","REV","Revenue","R5630","HAC Temporary Accomodation","05-THIRD","Third Party Payments","05H","Private contractors","6900","Nightly Let Plus Charges","3521436","201905",05/08/2018 00:00:00,1364,"31230","Employment and Recruitment Agencies","REDACTED DATA","ADAM HTT LIMITED T/A ADAM","7718565","http://opencorporates.com/companies/gb/7718565","198573349"
"London Borough of Redbridge","http://opendatacommunities.org/doc/london-borough-council/redbridge","5BGFHOUSING","General Fund Housing","5CHOMELESS","Homelessness","REV","Revenue","R5630","HAC Temporary Accomodation","05-THIRD","Third Party Payments","05H","Private contractors","6900","Nightly Let Plus Charges","3521436","201905",05/08/2018 00:00:00,713,"31230","Employment and Recruitment Agencies","REDACTED DATA","ADAM HTT LIMITED T/A ADAM","7718565","http://opencorporates.com/companies/gb/7718565","198573349"
"London Borough of Redbridge","http://opendatacommunities.org/doc/london-borough-council/redbridge","5BGFHOUSING","General Fund Housing","5CHOMELESS","Homelessness","REV","Revenue","R5630","HAC Temporary Accomodation","05-THIRD","Third Party Payments","05H","Private contractors","6900","Nightly Let Plus Charges","3521436","201905",05/08/2018 00:00:00,1178,"31230","Employment and Recruitment Agencies","REDACTED DATA","ADAM HTT LIMITED T/A ADAM","7718565","http://opencorporates.com/companies/gb/7718565","198573349"
"London Borough of Redbridge","http://opendatacommunities.org/doc/london-borough-council/redbridge","5BGFHOUSING","General Fund Housing","5CHOMELESS","Homelessness","REV","Revenue","R5630","HAC Temporary Accomodation","05-THIRD","Third Party Payments","05H","Private contractors","6900","Nightly Let Plus Charges","3521436","201905",05/08/2018 00:00:00,1860,"31230","Employment and Recruitment Agencies","REDACTED DATA","ADAM HTT LIMITED T/A ADAM","7718565","http://opencorporates.com/companies/gb/7718565","198573349"
"London Borough of Redbridge","http://opendatacommunities.org/doc/london-borough-council/redbridge","5BGFHOUSING","General Fund Housing","5CHOMELESS","Homelessness","REV","Revenue","R5630","HAC Temporary Accomodation","05-THIRD","Third Party Payments","05H","Private contractors","6900","Nightly Let Plus Charges","3521436","201905",05/08/2018 00:00:00,570,"31230","Employment and Recruitment Agencies","REDACTED DATA","ADAM HTT LIMITED T/A ADAM","7718565","http://opencorporates.com/companies/gb/7718565","198573349"
"London Borough of Redbridge","http://opendatacommunities.org/doc/london-borough-council/redbridge","5BGFHOUSING","General Fund Housing","5CHOMELESS","Homelessness","REV","Revenue","R5630","HAC Temporary Accomodation","05-THIRD","Third Party Payments","05H","Private contractors","6900","Nightly Let Plus Charges","3521436","201905",05/08/2018 00:00:00,1116,"31230","Employment and Recruitment Agencies","REDACTED DATA","ADAM HTT LIMITED T/A ADAM","7718565","http://opencorporates.com/companies/gb/7718565","198573349"
"London Borough of Redbridge","http://opendatacommunities.org/doc/london-borough-council/redbridge","5BGFHOUSING","General Fund Housing","5CHOMELESS","Homelessness","REV","Revenue","R5630","HAC Temporary Accomodation","05-THIRD","Third Party Payments","05H","Private contractors","6900","Nightly Let Plus Charges","3521436","201905",05/08/2018 00:00:00,1333,"31230","Employment and Recruitment Agencies","REDACTED DATA","ADAM HTT LIMITED T/A ADAM","7718565","http://opencorporates.com/companies/gb/7718565","198573349"
"London Borough of Redbridge","http://opendatacommunities.org/doc/london-borough-council/redbridge","5BGFHOUSING","General Fund Housing","5CHOMELESS","Homelessness","REV","Revenue","R5630","HAC Temporary Accomodation","05-THIRD","Third Party Payments","05H","Private contractors","6900","Nightly Let Plus Charges","3521436","201905",05/08/2018 00:00:00,1612,"31230","Employment and Recruitment Agencies","REDACTED DATA","ADAM HTT LIMITED T/A ADAM","7718565","http://opencorporates.com/companies/gb/7718565","198573349"
"London Borough of Redbridge","http://opendatacommunities.org/doc/london-borough-council/redbridge","5BGFHOUSING","General Fund Housing","5CHOMELESS","Homelessness","REV","Revenue","R5630","HAC Temporary Accomodation","05-THIRD","Third Party Payments","05H","Private contractors","6900","Nightly Let Plus Charges","3521436","201905",05/08/2018 00:00:00,1441.5,"31230","Employment and Recruitment Agencies","REDACTED DATA","ADAM HTT LIMITED T/A ADAM","7718565","http://opencorporates.com/companies/gb/7718565","198573349"
"London Borough of Redbridge","http://opendatacommunities.org/doc/london-borough-council/redbridge","5BGFHOUSING","General Fund Housing","5CHOMELESS","Homelessness","REV","Revenue","R5630","HAC Temporary Accomodation","05-THIRD","Third Party Payments","05H","Private contractors","6900","Nightly Let Plus Charges","3521436","201905",05/08/2018 00:00:00,1674,"31230","Employment and Recruitment Agencies","REDACTED DATA","ADAM HTT LIMITED T/A ADAM","7718565","http://opencorporates.com/companies/gb/7718565","198573349"
"London Borough of Redbridge","http://opendatacommunities.org/doc/london-borough-council/redbridge","5BGFHOUSING","General Fund Housing","5CHOMELESS","Homelessness","REV","Revenue","R5630","HAC Temporary Accomodation","05-THIRD","Third Party Payments","05H","Private contractors","6900","Nightly Let Plus Charges","3521436","201905",05/08/2018 00:00:00,1085,"31230","Employment and Recruitment Agencies","REDACTED DATA","ADAM HTT LIMITED T/A ADAM","7718565","http://opencorporates.com/companies/gb/7718565","198573349"
"London Borough of Redbridge","http://opendatacommunities.org/doc/london-borough-council/redbridge","5BGFHOUSING","General Fund Housing","5CHOMELESS","Homelessness","REV","Revenue","R5630","HAC Temporary Accomodation","05-THIRD","Third Party Payments","05H","Private contractors","6900","Nightly Let Plus Charges","3521436","201905",05/08/2018 00:00:00,899,"31230","Employment and Recruitment Agencies","REDACTED DATA","ADAM HTT LIMITED T/A ADAM","7718565","http://opencorporates.com/companies/gb/7718565","198573349"
"London Borough of Redbridge","http://opendatacommunities.org/doc/london-borough-council/redbridge","5BGFHOUSING","General Fund Housing","5CHOMELESS","Homelessness","REV","Revenue","R5630","HAC Temporary Accomodation","05-THIRD","Third Party Payments","05H","Private contractors","6900","Nightly Let Plus Charges","3521436","201905",05/08/2018 00:00:00,1441.5,"31230","Employment and Recruitment Agencies","REDACTED DATA","ADAM HTT LIMITED T/A ADAM","7718565","http://opencorporates.com/companies/gb/7718565","198573349"
"London Borough of Redbridge","http://opendatacommunities.org/doc/london-borough-council/redbridge","5BGFHOUSING","General Fund Housing","5CHOMELESS","Homelessness","REV","Revenue","R5630","HAC Temporary Accomodation","05-THIRD","Third Party Payments","05H","Private contractors","6900","Nightly Let Plus Charges","3521436","201905",05/08/2018 00:00:00,1395,"31230","Employment and Recruitment Agencies","REDACTED DATA","ADAM HTT LIMITED T/A ADAM","7718565","http://opencorporates.com/companies/gb/7718565","198573349"
"London Borough of Redbridge","http://opendatacommunities.org/doc/london-borough-council/redbridge","5BGFHOUSING","General Fund Housing","5CHOMELESS","Homelessness","REV","Revenue","R5630","HAC Temporary Accomodation","05-THIRD","Third Party Payments","05H","Private contractors","6900","Nightly Let Plus Charges","3521436","201905",05/08/2018 00:00:00,1178,"31230","Employment and Recruitment Agencies","REDACTED DATA","ADAM HTT LIMITED T/A ADAM","7718565","http://opencorporates.com/companies/gb/7718565","198573349"
"London Borough of Redbridge","http://opendatacommunities.org/doc/london-borough-council/redbridge","5BGFHOUSING","General Fund Housing","5CHOMELESS","Homelessness","REV","Revenue","R5630","HAC Temporary Accomodation","05-THIRD","Third Party Payments","05H","Private contractors","6900","Nightly Let Plus Charges","3521436","201905",05/08/2018 00:00:00,1085,"31230","Employment and Recruitment Agencies","REDACTED DATA","ADAM HTT LIMITED T/A ADAM","7718565","http://opencorporates.com/companies/gb/7718565","198573349"
"London Borough of Redbridge","http://opendatacommunities.org/doc/london-borough-council/redbridge","5BGFHOUSING","General Fund Housing","5CHOMELESS","Homelessness","REV","Revenue","R5630","HAC Temporary Accomodation","05-THIRD","Third Party Payments","05H","Private contractors","6900","Nightly Let Plus Charges","3521436","201905",05/08/2018 00:00:00,1550,"31230","Employment and Recruitment Agencies","REDACTED DATA","ADAM HTT LIMITED T/A ADAM","7718565","http://opencorporates.com/companies/gb/7718565","198573349"
"London Borough of Redbridge","http://opendatacommunities.org/doc/london-borough-council/redbridge","5BGFHOUSING","General Fund Housing","5CHOMELESS","Homelessness","REV","Revenue","R5630","HAC Temporary Accomodation","05-THIRD","Third Party Payments","05H","Private contractors","6900","Nightly Let Plus Charges","3521436","201905",05/08/2018 00:00:00,1395,"31230","Employment and Recruitment Agencies","REDACTED DATA","ADAM HTT LIMITED T/A ADAM","7718565","http://opencorporates.com/companies/gb/7718565","198573349"
"London Borough of Redbridge","http://opendatacommunities.org/doc/london-borough-council/redbridge","5BGFHOUSING","General Fund Housing","5CHOMELESS","Homelessness","REV","Revenue","R5630","HAC Temporary Accomodation","05-THIRD","Third Party Payments","05H","Private contractors","6900","Nightly Let Plus Charges","3521436","201905",05/08/2018 00:00:00,1612,"31230","Employment and Recruitment Agencies","REDACTED DATA","ADAM HTT LIMITED T/A ADAM","7718565","http://opencorporates.com/companies/gb/7718565","198573349"
"London Borough of Redbridge","http://opendatacommunities.org/doc/london-borough-council/redbridge","5BGFHOUSING","General Fund Housing","5CHOMELESS","Homelessness","REV","Revenue","R5630","HAC Temporary Accomodation","05-THIRD","Third Party Payments","05H","Private contractors","6900","Nightly Let Plus Charges","3521436","201905",05/08/2018 00:00:00,1395,"31230","Employment and Recruitment Agencies","REDACTED DATA","ADAM HTT LIMITED T/A ADAM","7718565","http://opencorporates.com/companies/gb/7718565","198573349"
"London Borough of Redbridge","http://opendatacommunities.org/doc/london-borough-council/redbridge","5BGFHOUSING","General Fund Housing","5CHOMELESS","Homelessness","REV","Revenue","R5630","HAC Temporary Accomodation","05-THIRD","Third Party Payments","05H","Private contractors","6900","Nightly Let Plus Charges","3521436","201905",05/08/2018 00:00:00,1224.5,"31230","Employment and Recruitment Agencies","REDACTED DATA","ADAM HTT LIMITED T/A ADAM","7718565","http://opencorporates.com/companies/gb/7718565","198573349"
"London Borough of Redbridge","http://opendatacommunities.org/doc/london-borough-council/redbridge","5BGFHOUSING","General Fund Housing","5CHOMELESS","Homelessness","REV","Revenue","R5630","HAC Temporary Accomodation","05-THIRD","Third Party Payments","05H","Private contractors","6900","Nightly Let Plus Charges","3521436","201905",10/07/2018 00:00:00,-1350,"31230","Employment and Recruitment Agencies","REDACTED DATA","ADAM HTT LIMITED T/A ADAM","7718565","http://opencorporates.com/companies/gb/7718565","198573349"
"London Borough of Redbridge","http://opendatacommunities.org/doc/london-borough-council/redbridge","5BGFHOUSING","General Fund Housing","5CHOMELESS","Homelessness","REV","Revenue","R5630","HAC Temporary Accomodation","05-THIRD","Third Party Payments","05H","Private contractors","6900","Nightly Let Plus Charges","3521436","201905",10/07/2018 00:00:00,450,"31230","Employment and Recruitment Agencies","REDACTED DATA","ADAM HTT LIMITED T/A ADAM","7718565","http://opencorporates.com/companies/gb/7718565","198573349"
"London Borough of Redbridge","http://opendatacommunities.org/doc/london-borough-council/redbridge","5BGFHOUSING","General Fund Housing","5CHOMELESS","Homelessness","REV","Revenue","R5630","HAC Temporary Accomodation","05-THIRD","Third Party Payments","05H","Private contractors","6900","Nightly Let Plus Charges","3521436","201905",05/08/2018 00:00:00,1441.5,"31230","Employment and Recruitment Agencies","REDACTED DATA","ADAM HTT LIMITED T/A ADAM","7718565","http://opencorporates.com/companies/gb/7718565","198573349"
"London Borough of Redbridge","http://opendatacommunities.org/doc/london-borough-council/redbridge","5BGFHOUSING","General Fund Housing","5CHOMELESS","Homelessness","REV","Revenue","R5630","HAC Temporary Accomodation","05-THIRD","Third Party Payments","05H","Private contractors","6900","Nightly Let Plus Charges","3521436","201905",05/08/2018 00:00:00,1441.5,"31230","Employment and Recruitment Agencies","REDACTED DATA","ADAM HTT LIMITED T/A ADAM","7718565","http://opencorporates.com/companies/gb/7718565","198573349"
"London Borough of Redbridge","http://opendatacommunities.org/doc/london-borough-council/redbridge","5BGFHOUSING","General Fund Housing","5CHOMELESS","Homelessness","REV","Revenue","R5630","HAC Temporary Accomodation","05-THIRD","Third Party Payments","05H","Private contractors","6900","Nightly Let Plus Charges","3521436","201905",05/08/2018 00:00:00,899,"31230","Employment and Recruitment Agencies","REDACTED DATA","ADAM HTT LIMITED T/A ADAM","7718565","http://opencorporates.com/companies/gb/7718565","198573349"
"London Borough of Redbridge","http://opendatacommunities.org/doc/london-borough-council/redbridge","5BGFHOUSING","General Fund Housing","5CHOMELESS","Homelessness","REV","Revenue","R5630","HAC Temporary Accomodation","05-THIRD","Third Party Payments","05H","Private contractors","6900","Nightly Let Plus Charges","3521436","201905",05/08/2018 00:00:00,1441.5,"31230","Employment and Recruitment Agencies","REDACTED DATA","ADAM HTT LIMITED T/A ADAM","7718565","http://opencorporates.com/companies/gb/7718565","198573349"
"London Borough of Redbridge","http://opendatacommunities.org/doc/london-borough-council/redbridge","5BGFHOUSING","General Fund Housing","5CHOMELESS","Homelessness","REV","Revenue","R5630","HAC Temporary Accomodation","05-THIRD","Third Party Payments","05H","Private contractors","6900","Nightly Let Plus Charges","3521436","201905",05/08/2018 00:00:00,2046,"31230","Employment and Recruitment Agencies","REDACTED DATA","ADAM HTT LIMITED T/A ADAM","7718565","http://opencorporates.com/companies/gb/7718565","198573349"
"London Borough of Redbridge","http://opendatacommunities.org/doc/london-borough-council/redbridge","5BGFHOUSING","General Fund Housing","5CHOMELESS","Homelessness","REV","Revenue","R5630","HAC Temporary Accomodation","05-THIRD","Third Party Payments","05H","Private contractors","6900","Nightly Let Plus Charges","3521436","201905",05/08/2018 00:00:00,1503.5,"31230","Employment and Recruitment Agencies","REDACTED DATA","ADAM HTT LIMITED T/A ADAM","7718565","http://opencorporates.com/companies/gb/7718565","198573349"
"London Borough of Redbridge","http://opendatacommunities.org/doc/london-borough-council/redbridge","5BGFHOUSING","General Fund Housing","5CHOMELESS","Homelessness","REV","Revenue","R5630","HAC Temporary Accomodation","05-THIRD","Third Party Payments","05H","Private contractors","6900","Nightly Let Plus Charges","3521436","201905",05/08/2018 00:00:00,1550,"31230","Employment and Recruitment Agencies","REDACTED DATA","ADAM HTT LIMITED T/A ADAM","7718565","http://opencorporates.com/companies/gb/7718565","198573349"
"London Borough of Redbridge","http://opendatacommunities.org/doc/london-borough-council/redbridge","5BGFHOUSING","General Fund Housing","5CHOMELESS","Homelessness","REV","Revenue","R5630","HAC Temporary Accomodation","05-THIRD","Third Party Payments","05H","Private contractors","6900","Nightly Let Plus Charges","3521436","201905",05/08/2018 00:00:00,1705,"31230","Employment and Recruitment Agencies","REDACTED DATA","ADAM HTT LIMITED T/A ADAM","7718565","http://opencorporates.com/companies/gb/7718565","198573349"
"London Borough of Redbridge","http://opendatacommunities.org/doc/london-borough-council/redbridge","5BGFHOUSING","General Fund Housing","5CHOMELESS","Homelessness","REV","Revenue","R5630","HAC Temporary Accomodation","05-THIRD","Third Party Payments","05H","Private contractors","6900","Nightly Let Plus Charges","3521436","201905",05/08/2018 00:00:00,1705,"31230","Employment and Recruitment Agencies","REDACTED DATA","ADAM HTT LIMITED T/A ADAM","7718565","http://opencorporates.com/companies/gb/7718565","198573349"
"London Borough of Redbridge","http://opendatacommunities.org/doc/london-borough-council/redbridge","5BGFHOUSING","General Fund Housing","5CHOMELESS","Homelessness","REV","Revenue","R5630","HAC Temporary Accomodation","05-THIRD","Third Party Payments","05H","Private contractors","6900","Nightly Let Plus Charges","3521436","201905",05/08/2018 00:00:00,1395,"31230","Employment and Recruitment Agencies","REDACTED DATA","ADAM HTT LIMITED T/A ADAM","7718565","http://opencorporates.com/companies/gb/7718565","198573349"
"London Borough of Redbridge","http://opendatacommunities.org/doc/london-borough-council/redbridge","5BGFHOUSING","General Fund Housing","5CHOMELESS","Homelessness","REV","Revenue","R5630","HAC Temporary Accomodation","05-THIRD","Third Party Payments","05H","Private contractors","6900","Nightly Let Plus Charges","3521436","201905",05/08/2018 00:00:00,837,"31230","Employment and Recruitment Agencies","REDACTED DATA","ADAM HTT LIMITED T/A ADAM","7718565","http://opencorporates.com/companies/gb/7718565","198573349"
"London Borough of Redbridge","http://opendatacommunities.org/doc/london-borough-council/redbridge","5BGFHOUSING","General Fund Housing","5CHOMELESS","Homelessness","REV","Revenue","R5630","HAC Temporary Accomodation","05-THIRD","Third Party Payments","05H","Private contractors","6900","Nightly Let Plus Charges","3521436","201905",05/08/2018 00:00:00,1426,"31230","Employment and Recruitment Agencies","REDACTED DATA","ADAM HTT LIMITED T/A ADAM","7718565","http://opencorporates.com/companies/gb/7718565","198573349"
"London Borough of Redbridge","http://opendatacommunities.org/doc/london-borough-council/redbridge","5BGFHOUSING","General Fund Housing","5CHOMELESS","Homelessness","REV","Revenue","R5630","HAC Temporary Accomodation","05-THIRD","Third Party Payments","05H","Private contractors","6900","Nightly Let Plus Charges","3521436","201905",05/08/2018 00:00:00,775,"31230","Employment and Recruitment Agencies","REDACTED DATA","ADAM HTT LIMITED T/A ADAM","7718565","http://opencorporates.com/companies/gb/7718565","198573349"
"London Borough of Redbridge","http://opendatacommunities.org/doc/london-borough-council/redbridge","5BGFHOUSING","General Fund Housing","5CHOMELESS","Homelessness","REV","Revenue","R5630","HAC Temporary Accomodation","05-THIRD","Third Party Payments","05H","Private contractors","6900","Nightly Let Plus Charges","3521436","201905",05/08/2018 00:00:00,1023,"31230","Employment and Recruitment Agencies","REDACTED DATA","ADAM HTT LIMITED T/A ADAM","7718565","http://opencorporates.com/companies/gb/7718565","198573349"
"London Borough of Redbridge","http://opendatacommunities.org/doc/london-borough-council/redbridge","5BGFHOUSING","General Fund Housing","5CHOMELESS","Homelessness","REV","Revenue","R5630","HAC Temporary Accomodation","05-THIRD","Third Party Payments","05H","Private contractors","6900","Nightly Let Plus Charges","3521436","201905",05/08/2018 00:00:00,1767,"31230","Employment and Recruitment Agencies","REDACTED DATA","ADAM HTT LIMITED T/A ADAM","7718565","http://opencorporates.com/companies/gb/7718565","198573349"
"London Borough of Redbridge","http://opendatacommunities.org/doc/london-borough-council/redbridge","5BGFHOUSING","General Fund Housing","5CHOMELESS","Homelessness","REV","Revenue","R5630","HAC Temporary Accomodation","05-THIRD","Third Party Payments","05H","Private contractors","6900","Nightly Let Plus Charges","3521436","201905",05/08/2018 00:00:00,288,"31230","Employment and Recruitment Agencies","REDACTED DATA","ADAM HTT LIMITED T/A ADAM","7718565","http://opencorporates.com/companies/gb/7718565","198573349"
"London Borough of Redbridge","http://opendatacommunities.org/doc/london-borough-council/redbridge","5BGFHOUSING","General Fund Housing","5CHOMELESS","Homelessness","REV","Revenue","R5630","HAC Temporary Accomodation","05-THIRD","Third Party Payments","05H","Private contractors","6900","Nightly Let Plus Charges","3521436","201905",07/08/2018 00:00:00,-1250,"31230","Employment and Recruitment Agencies","REDACTED DATA","ADAM HTT LIMITED T/A ADAM","7718565","http://opencorporates.com/companies/gb/7718565","198573349"
"London Borough of Redbridge","http://opendatacommunities.org/doc/london-borough-council/redbridge","5BGFHOUSING","General Fund Housing","5CHOMELESS","Homelessness","REV","Revenue","R5630","HAC Temporary Accomodation","05-THIRD","Third Party Payments","05H","Private contractors","6900","Nightly Let Plus Charges","3521436","201905",07/08/2018 00:00:00,350,"31230","Employment and Recruitment Agencies","REDACTED DATA","ADAM HTT LIMITED T/A ADAM","7718565","http://opencorporates.com/companies/gb/7718565","198573349"
"London Borough of Redbridge","http://opendatacommunities.org/doc/london-borough-council/redbridge","5BGFHOUSING","General Fund Housing","5CHOMELESS","Homelessness","REV","Revenue","R5630","HAC Temporary Accomodation","05-THIRD","Third Party Payments","05H","Private contractors","6900","Nightly Let Plus Charges","3521436","201905",05/08/2018 00:00:00,1441.5,"31230","Employment and Recruitment Agencies","REDACTED DATA","ADAM HTT LIMITED T/A ADAM","7718565","http://opencorporates.com/companies/gb/7718565","198573349"
"London Borough of Redbridge","http://opendatacommunities.org/doc/london-borough-council/redbridge","5BGFHOUSING","General Fund Housing","5CHOMELESS","Homelessness","REV","Revenue","R5630","HAC Temporary Accomodation","05-THIRD","Third Party Payments","05H","Private contractors","6900","Nightly Let Plus Charges","3521436","201905",05/08/2018 00:00:00,1395,"31230","Employment and Recruitment Agencies","REDACTED DATA","ADAM HTT LIMITED T/A ADAM","7718565","http://opencorporates.com/companies/gb/7718565","198573349"
"London Borough of Redbridge","http://opendatacommunities.org/doc/london-borough-council/redbridge","5BGFHOUSING","General Fund Housing","5CHOMELESS","Homelessness","REV","Revenue","R5630","HAC Temporary Accomodation","05-THIRD","Third Party Payments","05H","Private contractors","6900","Nightly Let Plus Charges","3521436","201905",05/08/2018 00:00:00,1860,"31230","Employment and Recruitment Agencies","REDACTED DATA","ADAM HTT LIMITED T/A ADAM","7718565","http://opencorporates.com/companies/gb/7718565","198573349"
"London Borough of Redbridge","http://opendatacommunities.org/doc/london-borough-council/redbridge","5BGFHOUSING","General Fund Housing","5CHOMELESS","Homelessness","REV","Revenue","R5630","HAC Temporary Accomodation","05-THIRD","Third Party Payments","05H","Private contractors","6900","Nightly Let Plus Charges","3521436","201905",05/08/2018 00:00:00,817.47,"31230","Employment and Recruitment Agencies","REDACTED DATA","ADAM HTT LIMITED T/A ADAM","7718565","http://opencorporates.com/companies/gb/7718565","198573349"
"London Borough of Redbridge","http://opendatacommunities.org/doc/london-borough-council/redbridge","5BGFHOUSING","General Fund Housing","5CHOMELESS","Homelessness","REV","Revenue","R5630","HAC Temporary Accomodation","05-THIRD","Third Party Payments","05H","Private contractors","6900","Nightly Let Plus Charges","3521436","201905",05/08/2018 00:00:00,1060.51,"31230","Employment and Recruitment Agencies","REDACTED DATA","ADAM HTT LIMITED T/A ADAM","7718565","http://opencorporates.com/companies/gb/7718565","198573349"
"London Borough of Redbridge","http://opendatacommunities.org/doc/london-borough-council/redbridge","5BGFHOUSING","General Fund Housing","5CHOMELESS","Homelessness","REV","Revenue","R5630","HAC Temporary Accomodation","05-THIRD","Third Party Payments","05H","Private contractors","6900","Nightly Let Plus Charges","3521436","201905",05/08/2018 00:00:00,797.94,"31230","Employment and Recruitment Agencies","REDACTED DATA","ADAM HTT LIMITED T/A ADAM","7718565","http://opencorporates.com/companies/gb/7718565","198573349"
"London Borough of Redbridge","http://opendatacommunities.org/doc/london-borough-council/redbridge","5BGFHOUSING","General Fund Housing","5CHOMELESS","Homelessness","REV","Revenue","R5630","HAC Temporary Accomodation","05-THIRD","Third Party Payments","05H","Private contractors","6900","Nightly Let Plus Charges","3521436","201905",05/08/2018 00:00:00,1550,"31230","Employment and Recruitment Agencies","REDACTED DATA","ADAM HTT LIMITED T/A ADAM","7718565","http://opencorporates.com/companies/gb/7718565","198573349"
"London Borough of Redbridge","http://opendatacommunities.org/doc/london-borough-council/redbridge","5BGFHOUSING","General Fund Housing","5CHOMELESS","Homelessness","REV","Revenue","R5630","HAC Temporary Accomodation","05-THIRD","Third Party Payments","05H","Private contractors","6900","Nightly Let Plus Charges","3521436","201905",05/08/2018 00:00:00,1550,"31230","Employment and Recruitment Agencies","REDACTED DATA","ADAM HTT LIMITED T/A ADAM","7718565","http://opencorporates.com/companies/gb/7718565","198573349"
"London Borough of Redbridge","http://opendatacommunities.org/doc/london-borough-council/redbridge","5BGFHOUSING","General Fund Housing","5CHOMELESS","Homelessness","REV","Revenue","R5630","HAC Temporary Accomodation","05-THIRD","Third Party Payments","05H","Private contractors","6900","Nightly Let Plus Charges","3521436","201905",05/08/2018 00:00:00,1450,"31230","Employment and Recruitment Agencies","REDACTED DATA","ADAM HTT LIMITED T/A ADAM","7718565","http://opencorporates.com/companies/gb/7718565","198573349"
"London Borough of Redbridge","http://opendatacommunities.org/doc/london-borough-council/redbridge","5BGFHOUSING","General Fund Housing","5CHOMELESS","Homelessness","REV","Revenue","R5630","HAC Temporary Accomodation","05-THIRD","Third Party Payments","05H","Private contractors","6900","Nightly Let Plus Charges","3521436","201905",05/08/2018 00:00:00,1550,"31230","Employment and Recruitment Agencies","REDACTED DATA","ADAM HTT LIMITED T/A ADAM","7718565","http://opencorporates.com/companies/gb/7718565","198573349"
"London Borough of Redbridge","http://opendatacommunities.org/doc/london-borough-council/redbridge","5BGFHOUSING","General Fund Housing","5CHOMELESS","Homelessness","REV","Revenue","R5630","HAC Temporary Accomodation","05-THIRD","Third Party Payments","05H","Private contractors","6900","Nightly Let Plus Charges","3521436","201905",05/08/2018 00:00:00,1550,"31230","Employment and Recruitment Agencies","REDACTED DATA","ADAM HTT LIMITED T/A ADAM","7718565","http://opencorporates.com/companies/gb/7718565","198573349"
"London Borough of Redbridge","http://opendatacommunities.org/doc/london-borough-council/redbridge","5BGFHOUSING","General Fund Housing","5CHOMELESS","Homelessness","REV","Revenue","R5630","HAC Temporary Accomodation","05-THIRD","Third Party Payments","05H","Private contractors","6900","Nightly Let Plus Charges","3521436","201905",05/08/2018 00:00:00,1550,"31230","Employment and Recruitment Agencies","REDACTED DATA","ADAM HTT LIMITED T/A ADAM","7718565","http://opencorporates.com/companies/gb/7718565","198573349"
"London Borough of Redbridge","http://opendatacommunities.org/doc/london-borough-council/redbridge","5BGFHOUSING","General Fund Housing","5CHOMELESS","Homelessness","REV","Revenue","R5630","HAC Temporary Accomodation","05-THIRD","Third Party Payments","05H","Private contractors","6900","Nightly Let Plus Charges","3521436","201905",13/07/2018 00:00:00,380,"31230","Employment and Recruitment Agencies","REDACTED DATA","ADAM HTT LIMITED T/A ADAM","7718565","http://opencorporates.com/companies/gb/7718565","198573349"
"London Borough of Redbridge","http://opendatacommunities.org/doc/london-borough-council/redbridge","5BGFHOUSING","General Fund Housing","5CHOMELESS","Homelessness","REV","Revenue","R5630","HAC Temporary Accomodation","05-THIRD","Third Party Payments","05H","Private contractors","6900","Nightly Let Plus Charges","3521436","201905",05/08/2018 00:00:00,1860,"31230","Employment and Recruitment Agencies","REDACTED DATA","ADAM HTT LIMITED T/A ADAM","7718565","http://opencorporates.com/companies/gb/7718565","198573349"
"London Borough of Redbridge","http://opendatacommunities.org/doc/london-borough-council/redbridge","5BGFHOUSING","General Fund Housing","5CHOMELESS","Homelessness","REV","Revenue","R5630","HAC Temporary Accomodation","05-THIRD","Third Party Payments","05H","Private contractors","6900","Nightly Let Plus Charges","3521436","201905",05/08/2018 00:00:00,1116,"31230","Employment and Recruitment Agencies","REDACTED DATA","ADAM HTT LIMITED T/A ADAM","7718565","http://opencorporates.com/companies/gb/7718565","198573349"
"London Borough of Redbridge","http://opendatacommunities.org/doc/london-borough-council/redbridge","5BGFHOUSING","General Fund Housing","5CHOMELESS","Homelessness","REV","Revenue","R5630","HAC Temporary Accomodation","05-THIRD","Third Party Payments","05H","Private contractors","6900","Nightly Let Plus Charges","3521436","201905",09/07/2018 00:00:00,797.94,"31230","Employment and Recruitment Agencies","REDACTED DATA","ADAM HTT LIMITED T/A ADAM","7718565","http://opencorporates.com/companies/gb/7718565","198573349"
"London Borough of Redbridge","http://opendatacommunities.org/doc/london-borough-council/redbridge","5BGFHOUSING","General Fund Housing","5CHOMELESS","Homelessness","REV","Revenue","R5630","HAC Temporary Accomodation","05-THIRD","Third Party Payments","05H","Private contractors","6900","Nightly Let Plus Charges","3521436","201905",09/07/2018 00:00:00,772.2,"31230","Employment and Recruitment Agencies","REDACTED DATA","ADAM HTT LIMITED T/A ADAM","7718565","http://opencorporates.com/companies/gb/7718565","198573349"
"London Borough of Redbridge","http://opendatacommunities.org/doc/london-borough-council/redbridge","5BGFHOUSING","General Fund Housing","5CHOMELESS","Homelessness","REV","Revenue","R5630","HAC Temporary Accomodation","05-THIRD","Third Party Payments","05H","Private contractors","6900","Nightly Let Plus Charges","3521436","201905",05/08/2018 00:00:00,1441.5,"31230","Employment and Recruitment Agencies","REDACTED DATA","ADAM HTT LIMITED T/A ADAM","7718565","http://opencorporates.com/companies/gb/7718565","198573349"
"London Borough of Redbridge","http://opendatacommunities.org/doc/london-borough-council/redbridge","5BGFHOUSING","General Fund Housing","5CHOMELESS","Homelessness","REV","Revenue","R5630","HAC Temporary Accomodation","05-THIRD","Third Party Payments","05H","Private contractors","6900","Nightly Let Plus Charges","3521436","201905",05/08/2018 00:00:00,1860,"31230","Employment and Recruitment Agencies","REDACTED DATA","ADAM HTT LIMITED T/A ADAM","7718565","http://opencorporates.com/companies/gb/7718565","198573349"
"London Borough of Redbridge","http://opendatacommunities.org/doc/london-borough-council/redbridge","9BNONBVO","Outside the BVACOP Objective Structure","9CNONBVO","Outside the BVACOP Objective Structure","CAP","Capital","C2152","HRA Sites Phase 3A (Stanway, Rayleigh, Coppice - Luminus)","99-NONBV","Capital, Balance Sheet and Control","50E","Capital - Contract Payments","9150","Main Contract","60380785","201904",24/07/2018 00:00:00,9680.72,"44140","House Builders","REDACTED DATA","LUMINUS DEVELOPMENTS LTD","4581669","http://opencorporates.com/companies/gb/4581669","991290888"
"London Borough of Redbridge","http://opendatacommunities.org/doc/london-borough-council/redbridge","6BADULTSOCIA","Adult Social Care","6CADLEARNDIS","Adults Under 65 with Learning Disabilities","REV","Revenue","R4188","LD - Residential Care","05-THIRD","Third Party Payments","05F","Voluntary associations","6802","Residential Homes","90980651","201905",07/08/2018 00:00:00,10082.04,"17020","Charities and Voluntary Organisations","REDACTED DATA","NORWOOD SCHOOLS LTD","516901","http://opencorporates.com/companies/gb/516901","629720917"
"London Borough of Redbridge","http://opendatacommunities.org/doc/london-borough-council/redbridge","6BADULTSOCIA","Adult Social Care","6CADLEARNDIS","Adults Under 65 with Learning Disabilities","REV","Revenue","R4188","LD - Residential Care","09-INCOME","Income","09C","Customer and Client Receipts","8555","Accommodation Charges","90980651","201905",07/08/2018 00:00:00,-409,"17020","Charities and Voluntary Organisations","REDACTED DATA","NORWOOD SCHOOLS LTD","516901","http://opencorporates.com/companies/gb/516901","629720917"
"London Borough of Redbridge","http://opendatacommunities.org/doc/london-borough-council/redbridge","6BADULTSOCIA","Adult Social Care","6CADLEARNDIS","Adults Under 65 with Learning Disabilities","REV","Revenue","R4185","LD - Supported Living","06-TRANSFER","Transfer Payments","06B","Social Services Clients","7066","Supportive Lodgings (Transfer Payments)","90980145","201905",31/07/2018 00:00:00,6129.77,"17020","Charities and Voluntary Organisations","REDACTED DATA","MENCAP","550457","http://opencorporates.com/companies/gb/550457","233010136"
"London Borough of Redbridge","http://opendatacommunities.org/doc/london-borough-council/redbridge","6BADULTSOCIA","Adult Social Care","6CADLEARNDIS","Adults Under 65 with Learning Disabilities","REV","Revenue","R4185","LD - Supported Living","09-INCOME","Income","09C","Customer and Client Receipts","8553","Care Package Charges","90980145","201905",31/07/2018 00:00:00,-251.28,"17020","Charities and Voluntary Organisations","REDACTED DATA","MENCAP","550457","http://opencorporates.com/companies/gb/550457","233010136"
"London Borough of Redbridge","http://opendatacommunities.org/doc/london-borough-council/redbridge","6BADULTSOCIA","Adult Social Care","6COTHADSERV","Other Adult Services","REV","Revenue","R4201","LD - Care Packages","05-THIRD","Third Party Payments","05H","Private contractors","6910","Care Packages","90980145","201905",31/07/2018 00:00:00,3775.8,"17020","Charities and Voluntary Organisations","REDACTED DATA","MENCAP","550457","http://opencorporates.com/companies/gb/550457","233010136"
"London Borough of Redbridge","http://opendatacommunities.org/doc/london-borough-council/redbridge","5BGFHOUSING","General Fund Housing","5CHOMELESS","Homelessness","REV","Revenue","R5644","Canterbury","02-PREMISES","Premises","02A","Repairs, alteration and maintenance of buildings","3027","Miscellaneous Maintenance","60380866","201904",19/07/2018 00:00:00,8042.99,"11371","Building Refurbishment and Restoration Contractors","REDACTED DATA","MEARS LTD","2519234","http://opencorporates.com/companies/gb/2519234","682002758"
"London Borough of Redbridge","http://opendatacommunities.org/doc/london-borough-council/redbridge","5BGFHOUSING","General Fund Housing","5CHOMELESS","Homelessness","REV","Revenue","R5644","Canterbury","02-PREMISES","Premises","02A","Repairs, alteration and maintenance of buildings","3027","Miscellaneous Maintenance","60380866","201904",19/07/2018 00:00:00,8042.99,"11371","Building Refurbishment and Restoration Contractors","REDACTED DATA","MEARS LTD","2519234","http://opencorporates.com/companies/gb/2519234","682002758"
"London Borough of Redbridge","http://opendatacommunities.org/doc/london-borough-council/redbridge","6BADULTSOCIA","Adult Social Care","6CADLEARNDIS","Adults Under 65 with Learning Disabilities","REV","Revenue","R4188","LD - Residential Care","05-THIRD","Third Party Payments","05F","Voluntary associations","6802","Residential Homes","90980731","201905",07/08/2018 00:00:00,9978.12,"17020","Charities and Voluntary Organisations","REDACTED DATA","SENSE","1825301","http://opencorporates.com/companies/gb/1825301",""
"London Borough of Redbridge","http://opendatacommunities.org/doc/london-borough-council/redbridge","6BADULTSOCIA","Adult Social Care","6CADLEARNDIS","Adults Under 65 with Learning Disabilities","REV","Revenue","R4188","LD - Residential Care","09-INCOME","Income","09C","Customer and Client Receipts","8555","Accommodation Charges","90980731","201905",07/08/2018 00:00:00,-339,"17020","Charities and Voluntary Organisations","REDACTED DATA","SENSE","1825301","http://opencorporates.com/companies/gb/1825301",""
"London Borough of Redbridge","http://opendatacommunities.org/doc/london-borough-council/redbridge","3BNONSCHFUND","Non-School Funding","3CNONSCH","Non Schools","REV","Revenue","R3962","Early Years - 3 and 4 Year Olds","05-THIRD","Third Party Payments","05A","Independent units within the council","6517","Non-Maintained Schools","3523434","201905",24/08/2018 00:00:00,9623.25,"59760","Playgroups, Nurseries and Creches","REDACTED DATA","TRINITY HALL KINDERGARTEN (NURSERY ONE LTD)","",,""
"London Borough of Redbridge","http://opendatacommunities.org/doc/london-borough-council/redbridge","5BGFHOUSING","General Fund Housing","5CHOMELESS","Homelessness","REV","Revenue","R5630","HAC Temporary Accomodation","05-THIRD","Third Party Payments","05H","Private contractors","6900","Nightly Let Plus Charges","3521436","201905",05/08/2018 00:00:00,1265,"31230","Employment and Recruitment Agencies","REDACTED DATA","ADAM HTT LIMITED T/A ADAM","7718565","http://opencorporates.com/companies/gb/7718565","198573349"
"London Borough of Redbridge","http://opendatacommunities.org/doc/london-borough-council/redbridge","5BGFHOUSING","General Fund Housing","5CHOMELESS","Homelessness","REV","Revenue","R5630","HAC Temporary Accomodation","05-THIRD","Third Party Payments","05H","Private contractors","6900","Nightly Let Plus Charges","3521436","201905",05/08/2018 00:00:00,1085,"31230","Employment and Recruitment Agencies","REDACTED DATA","ADAM HTT LIMITED T/A ADAM","7718565","http://opencorporates.com/companies/gb/7718565","198573349"
"London Borough of Redbridge","http://opendatacommunities.org/doc/london-borough-council/redbridge","5BGFHOUSING","General Fund Housing","5CHOMELESS","Homelessness","REV","Revenue","R5630","HAC Temporary Accomodation","05-THIRD","Third Party Payments","05H","Private contractors","6900","Nightly Let Plus Charges","3521436","201905",30/07/2018 00:00:00,1341.84,"31230","Employment and Recruitment Agencies","REDACTED DATA","ADAM HTT LIMITED T/A ADAM","7718565","http://opencorporates.com/companies/gb/7718565","198573349"
"London Borough of Redbridge","http://opendatacommunities.org/doc/london-borough-council/redbridge","5BGFHOUSING","General Fund Housing","5CHOMELESS","Homelessness","REV","Revenue","R5630","HAC Temporary Accomodation","05-THIRD","Third Party Payments","05H","Private contractors","6900","Nightly Let Plus Charges","3521436","201905",05/08/2018 00:00:00,1395,"31230","Employment and Recruitment Agencies","REDACTED DATA","ADAM HTT LIMITED T/A ADAM","7718565","http://opencorporates.com/companies/gb/7718565","198573349"
"London Borough of Redbridge","http://opendatacommunities.org/doc/london-borough-council/redbridge","5BGFHOUSING","General Fund Housing","5CHOMELESS","Homelessness","REV","Revenue","R5630","HAC Temporary Accomodation","05-THIRD","Third Party Payments","05H","Private contractors","6900","Nightly Let Plus Charges","3521436","201905",05/08/2018 00:00:00,1550,"31230","Employment and Recruitment Agencies","REDACTED DATA","ADAM HTT LIMITED T/A ADAM","7718565","http://opencorporates.com/companies/gb/7718565","198573349"
"London Borough of Redbridge","http://opendatacommunities.org/doc/london-borough-council/redbridge","5BGFHOUSING","General Fund Housing","5CHOMELESS","Homelessness","REV","Revenue","R5630","HAC Temporary Accomodation","05-THIRD","Third Party Payments","05H","Private contractors","6900","Nightly Let Plus Charges","3521436","201905",05/08/2018 00:00:00,899,"31230","Employment and Recruitment Agencies","REDACTED DATA","ADAM HTT LIMITED T/A ADAM","7718565","http://opencorporates.com/companies/gb/7718565","198573349"
"London Borough of Redbridge","http://opendatacommunities.org/doc/london-borough-council/redbridge","5BGFHOUSING","General Fund Housing","5CHOMELESS","Homelessness","REV","Revenue","R5630","HAC Temporary Accomodation","05-THIRD","Third Party Payments","05H","Private contractors","6900","Nightly Let Plus Charges","3521436","201905",05/08/2018 00:00:00,1674,"31230","Employment and Recruitment Agencies","REDACTED DATA","ADAM HTT LIMITED T/A ADAM","7718565","http://opencorporates.com/companies/gb/7718565","198573349"
"London Borough of Redbridge","http://opendatacommunities.org/doc/london-borough-council/redbridge","5BGFHOUSING","General Fund Housing","5CHOMELESS","Homelessness","REV","Revenue","R5630","HAC Temporary Accomodation","05-THIRD","Third Party Payments","05H","Private contractors","6900","Nightly Let Plus Charges","3521436","201905",05/08/2018 00:00:00,1550,"31230","Employment and Recruitment Agencies","REDACTED DATA","ADAM HTT LIMITED T/A ADAM","7718565","http://opencorporates.com/companies/gb/7718565","198573349"
"London Borough of Redbridge","http://opendatacommunities.org/doc/london-borough-council/redbridge","5BGFHOUSING","General Fund Housing","5CHOMELESS","Homelessness","REV","Revenue","R5630","HAC Temporary Accomodation","05-THIRD","Third Party Payments","05H","Private contractors","6900","Nightly Let Plus Charges","3521436","201905",05/08/2018 00:00:00,1142.97,"31230","Employment and Recruitment Agencies","REDACTED DATA","ADAM HTT LIMITED T/A ADAM","7718565","http://opencorporates.com/companies/gb/7718565","198573349"
"London Borough of Redbridge","http://opendatacommunities.org/doc/london-borough-council/redbridge","5BGFHOUSING","General Fund Housing","5CHOMELESS","Homelessness","REV","Revenue","R5630","HAC Temporary Accomodation","05-THIRD","Third Party Payments","05H","Private contractors","6900","Nightly Let Plus Charges","3521436","201905",05/08/2018 00:00:00,797.94,"31230","Employment and Recruitment Agencies","REDACTED DATA","ADAM HTT LIMITED T/A ADAM","7718565","http://opencorporates.com/companies/gb/7718565","198573349"
"London Borough of Redbridge","http://opendatacommunities.org/doc/london-borough-council/redbridge","5BGFHOUSING","General Fund Housing","5CHOMELESS","Homelessness","REV","Revenue","R5630","HAC Temporary Accomodation","05-THIRD","Third Party Payments","05H","Private contractors","6900","Nightly Let Plus Charges","3521436","201905",05/08/2018 00:00:00,797.94,"31230","Employment and Recruitment Agencies","REDACTED DATA","ADAM HTT LIMITED T/A ADAM","7718565","http://opencorporates.com/companies/gb/7718565","198573349"
"London Borough of Redbridge","http://opendatacommunities.org/doc/london-borough-council/redbridge","5BGFHOUSING","General Fund Housing","5CHOMELESS","Homelessness","REV","Revenue","R5630","HAC Temporary Accomodation","05-THIRD","Third Party Payments","05H","Private contractors","6900","Nightly Let Plus Charges","3521436","201905",05/08/2018 00:00:00,958.83,"31230","Employment and Recruitment Agencies","REDACTED DATA","ADAM HTT LIMITED T/A ADAM","7718565","http://opencorporates.com/companies/gb/7718565","198573349"
"London Borough of Redbridge","http://opendatacommunities.org/doc/london-borough-council/redbridge","5BGFHOUSING","General Fund Housing","5CHOMELESS","Homelessness","REV","Revenue","R5630","HAC Temporary Accomodation","05-THIRD","Third Party Payments","05H","Private contractors","6900","Nightly Let Plus Charges","3521436","201905",05/08/2018 00:00:00,1671.83,"31230","Employment and Recruitment Agencies","REDACTED DATA","ADAM HTT LIMITED T/A ADAM","7718565","http://opencorporates.com/companies/gb/7718565","198573349"
"London Borough of Redbridge","http://opendatacommunities.org/doc/london-borough-council/redbridge","5BGFHOUSING","General Fund Housing","5CHOMELESS","Homelessness","REV","Revenue","R5630","HAC Temporary Accomodation","05-THIRD","Third Party Payments","05H","Private contractors","6900","Nightly Let Plus Charges","3521436","201905",05/08/2018 00:00:00,797.94,"31230","Employment and Recruitment Agencies","REDACTED DATA","ADAM HTT LIMITED T/A ADAM","7718565","http://opencorporates.com/companies/gb/7718565","198573349"
"London Borough of Redbridge","http://opendatacommunities.org/doc/london-borough-council/redbridge","5BGFHOUSING","General Fund Housing","5CHOMELESS","Homelessness","REV","Revenue","R5630","HAC Temporary Accomodation","05-THIRD","Third Party Payments","05H","Private contractors","6900","Nightly Let Plus Charges","3521436","201905",05/08/2018 00:00:00,1550,"31230","Employment and Recruitment Agencies","REDACTED DATA","ADAM HTT LIMITED T/A ADAM","7718565","http://opencorporates.com/companies/gb/7718565","198573349"
"London Borough of Redbridge","http://opendatacommunities.org/doc/london-borough-council/redbridge","5BGFHOUSING","General Fund Housing","5CHOMELESS","Homelessness","REV","Revenue","R5630","HAC Temporary Accomodation","05-THIRD","Third Party Payments","05H","Private contractors","6900","Nightly Let Plus Charges","3521436","201905",05/08/2018 00:00:00,1395,"31230","Employment and Recruitment Agencies","REDACTED DATA","ADAM HTT LIMITED T/A ADAM","7718565","http://opencorporates.com/companies/gb/7718565","198573349"
"London Borough of Redbridge","http://opendatacommunities.org/doc/london-borough-council/redbridge","5BGFHOUSING","General Fund Housing","5CHOMELESS","Homelessness","REV","Revenue","R5630","HAC Temporary Accomodation","05-THIRD","Third Party Payments","05H","Private contractors","6900","Nightly Let Plus Charges","3521436","201905",05/08/2018 00:00:00,1333,"31230","Employment and Recruitment Agencies","REDACTED DATA","ADAM HTT LIMITED T/A ADAM","7718565","http://opencorporates.com/companies/gb/7718565","198573349"
"London Borough of Redbridge","http://opendatacommunities.org/doc/london-borough-council/redbridge","5BGFHOUSING","General Fund Housing","5CHOMELESS","Homelessness","REV","Revenue","R5630","HAC Temporary Accomodation","05-THIRD","Third Party Payments","05H","Private contractors","6900","Nightly Let Plus Charges","3521436","201905",05/08/2018 00:00:00,1612,"31230","Employment and Recruitment Agencies","REDACTED DATA","ADAM HTT LIMITED T/A ADAM","7718565","http://opencorporates.com/companies/gb/7718565","198573349"
"London Borough of Redbridge","http://opendatacommunities.org/doc/london-borough-council/redbridge","5BGFHOUSING","General Fund Housing","5CHOMELESS","Homelessness","REV","Revenue","R5630","HAC Temporary Accomodation","05-THIRD","Third Party Payments","05H","Private contractors","6900","Nightly Let Plus Charges","3521436","201905",05/08/2018 00:00:00,1333,"31230","Employment and Recruitment Agencies","REDACTED DATA","ADAM HTT LIMITED T/A ADAM","7718565","http://opencorporates.com/companies/gb/7718565","198573349"
"London Borough of Redbridge","http://opendatacommunities.org/doc/london-borough-council/redbridge","5BGFHOUSING","General Fund Housing","5CHOMELESS","Homelessness","REV","Revenue","R5630","HAC Temporary Accomodation","05-THIRD","Third Party Payments","05H","Private contractors","6900","Nightly Let Plus Charges","3521436","201905",05/08/2018 00:00:00,1643,"31230","Employment and Recruitment Agencies","REDACTED DATA","ADAM HTT LIMITED T/A ADAM","7718565","http://opencorporates.com/companies/gb/7718565","198573349"
"London Borough of Redbridge","http://opendatacommunities.org/doc/london-borough-council/redbridge","5BGFHOUSING","General Fund Housing","5CHOMELESS","Homelessness","REV","Revenue","R5630","HAC Temporary Accomodation","05-THIRD","Third Party Payments","05H","Private contractors","6900","Nightly Let Plus Charges","3521436","201905",05/08/2018 00:00:00,1333,"31230","Employment and Recruitment Agencies","REDACTED DATA","ADAM HTT LIMITED T/A ADAM","7718565","http://opencorporates.com/companies/gb/7718565","198573349"
"London Borough of Redbridge","http://opendatacommunities.org/doc/london-borough-council/redbridge","5BGFHOUSING","General Fund Housing","5CHOMELESS","Homelessness","REV","Revenue","R5630","HAC Temporary Accomodation","05-THIRD","Third Party Payments","05H","Private contractors","6900","Nightly Let Plus Charges","3521436","201905",05/08/2018 00:00:00,1395,"31230","Employment and Recruitment Agencies","REDACTED DATA","ADAM HTT LIMITED T/A ADAM","7718565","http://opencorporates.com/companies/gb/7718565","198573349"
"London Borough of Redbridge","http://opendatacommunities.org/doc/london-borough-council/redbridge","9BNONBVO","Outside the BVACOP Objective Structure","9CNONBVO","Outside the BVACOP Objective Structure","CAP","Capital","C2108","Aids and Adaptations","99-NONBV","Capital, Balance Sheet and Control","50E","Capital - Contract Payments","9150","Main Contract","60381952","201905",31/07/2018 00:00:00,8018.2,"21555","Construction Contractors - General","REDACTED DATA","A&E ELKINS LIMITED","846751","http://opencorporates.com/companies/gb/846751","205472976"
"London Borough of Redbridge","http://opendatacommunities.org/doc/london-borough-council/redbridge","3BNONSCHFUND","Non-School Funding","3CNONSCH","Non Schools","REV","Revenue","R3962","Early Years - 3 and 4 Year Olds","05-THIRD","Third Party Payments","05A","Independent units within the council","6517","Non-Maintained Schools","3523397","201905",24/08/2018 00:00:00,9607.98,"17580","Childcare Services","REDACTED DATA","CHESTNUT NURSERY SCHOOL (NORFOLK) LTD","9175049","http://opencorporates.com/companies/gb/9175049",""
"London Borough of Redbridge","http://opendatacommunities.org/doc/london-borough-council/redbridge","3BNONSCHFUND","Non-School Funding","3CNONSCH","Non Schools","REV","Revenue","R3963","Early Years - 2 Year Olds - Statutory Place Funding","05-THIRD","Third Party Payments","05A","Independent units within the council","6517","Non-Maintained Schools","3523397","201905",24/08/2018 00:00:00,3680.42,"17580","Childcare Services","REDACTED DATA","CHESTNUT NURSERY SCHOOL (NORFOLK) LTD","9175049","http://opencorporates.com/companies/gb/9175049",""
"London Borough of Redbridge","http://opendatacommunities.org/doc/london-borough-council/redbridge","9BNONBVO","Outside the BVACOP Objective Structure","9CNONBVO","Outside the BVACOP Objective Structure","CAP","Capital","C4285","South Park Primary School (CAPITAL)","99-NONBV","Capital, Balance Sheet and Control","50B","Capital - Contracted Works","9055","External - Consultants Fees","60379949","201905",30/06/2018 00:00:00,8000,"11400","Building Services","REDACTED DATA","JOHN ROWAN AND PARTNERS LLP","OC302030","http://opencorporates.com/companies/gb/OC302030","229079447"
"London Borough of Redbridge","http://opendatacommunities.org/doc/london-borough-council/redbridge","9BNONBVO","Outside the BVACOP Objective Structure","9CNONBVO","Outside the BVACOP Objective Structure","REV","Revenue","R5132","Repairs and Maintenance - Other","02-PREMISES","Premises","02A","Repairs, alteration and maintenance of buildings","3027","Miscellaneous Maintenance","60382084","201905",31/07/2018 00:00:00,8000,"30586","Electricity Companies","REDACTED DATA","SOUTH EASTERN ELECTRICAL PLC","1579718","http://opencorporates.com/companies/gb/1579718","360921660"
"London Borough of Redbridge","http://opendatacommunities.org/doc/london-borough-council/redbridge","6BADULTSOCIA","Adult Social Care","6CADLEARNDIS","Adults Under 65 with Learning Disabilities","REV","Revenue","R4185","LD - Supported Living","06-TRANSFER","Transfer Payments","06B","Social Services Clients","7066","Supportive Lodgings (Transfer Payments)","90980528","201905",07/08/2018 00:00:00,9592.76,"64710","Residential Care Homes","REDACTED DATA","CMG HOMES LTD (CLEVELAND HOUSE)","2992839","http://opencorporates.com/companies/gb/2992839",""
"London Borough of Redbridge","http://opendatacommunities.org/doc/london-borough-council/redbridge","9BNONBVO","Outside the BVACOP Objective Structure","9CNONBVO","Outside the BVACOP Objective Structure","CAP","Capital","C2108","Aids and Adaptations","99-NONBV","Capital, Balance Sheet and Control","50E","Capital - Contract Payments","9150","Main Contract","60381954","201905",31/07/2018 00:00:00,7977.35,"21555","Construction Contractors - General","REDACTED DATA","A&E ELKINS LIMITED","846751","http://opencorporates.com/companies/gb/846751","205472976"
"London Borough of Redbridge","http://opendatacommunities.org/doc/london-borough-council/redbridge","9BNONBVO","Outside the BVACOP Objective Structure","9CNONBVO","Outside the BVACOP Objective Structure","REV","Revenue","R7602","Street Cleansing","01-EMPLOYEES","Employees","01A","Direct employee expenses","409","Agency Staff Pay","60382407","201905",13/08/2018 00:00:00,7953.68,"31230","Employment and Recruitment Agencies","REDACTED DATA","FUTURE FORCE ENTERPRISES LTD","3773406","http://opencorporates.com/companies/gb/3773406","912280061"
"London Borough of Redbridge","http://opendatacommunities.org/doc/london-borough-council/redbridge","9BNONBVO","Outside the BVACOP Objective Structure","9CNONBVO","Outside the BVACOP Objective Structure","CAP","Capital","C2108","Aids and Adaptations","99-NONBV","Capital, Balance Sheet and Control","50E","Capital - Contract Payments","9150","Main Contract","60381953","201905",31/07/2018 00:00:00,7943,"21555","Construction Contractors - General","REDACTED DATA","A&E ELKINS LIMITED","846751","http://opencorporates.com/companies/gb/846751","205472976"
"London Borough of Redbridge","http://opendatacommunities.org/doc/london-borough-council/redbridge","1BOTHEROPI&E","Other Operating Income & Expenditure","1CTRADSURDEF","Trading Account Surpluses & Deficits","REV","Revenue","R9160","Strategic IT","04-SUPPLIES","Supplies And Services","04F","Communications and computing","5852","Computer Equipment - Repairs & Maintenance","60383209","201905",27/02/2018 00:00:00,7923,"20703","Computer Systems and Software","REDACTED DATA","ITESOFT UK LTD","2692814","http://opencorporates.com/companies/gb/2692814","568634989"
"London Borough of Redbridge","http://opendatacommunities.org/doc/london-borough-council/redbridge","5BGFHOUSING","General Fund Housing","5CHOMELESS","Homelessness","REV","Revenue","R5630","HAC Temporary Accomodation","05-THIRD","Third Party Payments","05H","Private contractors","6900","Nightly Let Plus Charges","3521436","201905",05/08/2018 00:00:00,1767,"31230","Employment and Recruitment Agencies","REDACTED DATA","ADAM HTT LIMITED T/A ADAM","7718565","http://opencorporates.com/companies/gb/7718565","198573349"
"London Borough of Redbridge","http://opendatacommunities.org/doc/london-borough-council/redbridge","5BGFHOUSING","General Fund Housing","5CHOMELESS","Homelessness","REV","Revenue","R5630","HAC Temporary Accomodation","05-THIRD","Third Party Payments","05H","Private contractors","6900","Nightly Let Plus Charges","3521436","201905",05/08/2018 00:00:00,1674,"31230","Employment and Recruitment Agencies","REDACTED DATA","ADAM HTT LIMITED T/A ADAM","7718565","http://opencorporates.com/companies/gb/7718565","198573349"
"London Borough of Redbridge","http://opendatacommunities.org/doc/london-borough-council/redbridge","5BGFHOUSING","General Fund Housing","5CHOMELESS","Homelessness","REV","Revenue","R5630","HAC Temporary Accomodation","05-THIRD","Third Party Payments","05H","Private contractors","6900","Nightly Let Plus Charges","3521436","201905",05/08/2018 00:00:00,1395,"31230","Employment and Recruitment Agencies","REDACTED DATA","ADAM HTT LIMITED T/A ADAM","7718565","http://opencorporates.com/companies/gb/7718565","198573349"
"London Borough of Redbridge","http://opendatacommunities.org/doc/london-borough-council/redbridge","5BGFHOUSING","General Fund Housing","5CHOMELESS","Homelessness","REV","Revenue","R5630","HAC Temporary Accomodation","05-THIRD","Third Party Payments","05H","Private contractors","6900","Nightly Let Plus Charges","3521436","201905",05/08/2018 00:00:00,1767,"31230","Employment and Recruitment Agencies","REDACTED DATA","ADAM HTT LIMITED T/A ADAM","7718565","http://opencorporates.com/companies/gb/7718565","198573349"
"London Borough of Redbridge","http://opendatacommunities.org/doc/london-borough-council/redbridge","5BGFHOUSING","General Fund Housing","5CHOMELESS","Homelessness","REV","Revenue","R5630","HAC Temporary Accomodation","05-THIRD","Third Party Payments","05H","Private contractors","6900","Nightly Let Plus Charges","3521436","201905",05/08/2018 00:00:00,1054,"31230","Employment and Recruitment Agencies","REDACTED DATA","ADAM HTT LIMITED T/A ADAM","7718565","http://opencorporates.com/companies/gb/7718565","198573349"
"London Borough of Redbridge","http://opendatacommunities.org/doc/london-borough-council/redbridge","5BGFHOUSING","General Fund Housing","5CHOMELESS","Homelessness","REV","Revenue","R5630","HAC Temporary Accomodation","05-THIRD","Third Party Payments","05H","Private contractors","6900","Nightly Let Plus Charges","3521436","201905",05/08/2018 00:00:00,1064.54,"31230","Employment and Recruitment Agencies","REDACTED DATA","ADAM HTT LIMITED T/A ADAM","7718565","http://opencorporates.com/companies/gb/7718565","198573349"
"London Borough of Redbridge","http://opendatacommunities.org/doc/london-borough-council/redbridge","5BGFHOUSING","General Fund Housing","5CHOMELESS","Homelessness","REV","Revenue","R5630","HAC Temporary Accomodation","05-THIRD","Third Party Payments","05H","Private contractors","6900","Nightly Let Plus Charges","3521436","201905",27/07/2018 00:00:00,-315,"31230","Employment and Recruitment Agencies","REDACTED DATA","ADAM HTT LIMITED T/A ADAM","7718565","http://opencorporates.com/companies/gb/7718565","198573349"
"London Borough of Redbridge","http://opendatacommunities.org/doc/london-borough-council/redbridge","5BGFHOUSING","General Fund Housing","5CHOMELESS","Homelessness","REV","Revenue","R5630","HAC Temporary Accomodation","05-THIRD","Third Party Payments","05H","Private contractors","6900","Nightly Let Plus Charges","3521436","201905",27/07/2018 00:00:00,765,"31230","Employment and Recruitment Agencies","REDACTED DATA","ADAM HTT LIMITED T/A ADAM","7718565","http://opencorporates.com/companies/gb/7718565","198573349"
"London Borough of Redbridge","http://opendatacommunities.org/doc/london-borough-council/redbridge","5BGFHOUSING","General Fund Housing","5CHOMELESS","Homelessness","REV","Revenue","R5630","HAC Temporary Accomodation","05-THIRD","Third Party Payments","05H","Private contractors","6900","Nightly Let Plus Charges","3521436","201905",05/08/2018 00:00:00,1178,"31230","Employment and Recruitment Agencies","REDACTED DATA","ADAM HTT LIMITED T/A ADAM","7718565","http://opencorporates.com/companies/gb/7718565","198573349"
"London Borough of Redbridge","http://opendatacommunities.org/doc/london-borough-council/redbridge","5BGFHOUSING","General Fund Housing","5CHOMELESS","Homelessness","REV","Revenue","R5630","HAC Temporary Accomodation","05-THIRD","Third Party Payments","05H","Private contractors","6900","Nightly Let Plus Charges","3521436","201905",05/08/2018 00:00:00,1860,"31230","Employment and Recruitment Agencies","REDACTED DATA","ADAM HTT LIMITED T/A ADAM","7718565","http://opencorporates.com/companies/gb/7718565","198573349"
"London Borough of Redbridge","http://opendatacommunities.org/doc/london-borough-council/redbridge","5BGFHOUSING","General Fund Housing","5CHOMELESS","Homelessness","REV","Revenue","R5630","HAC Temporary Accomodation","05-THIRD","Third Party Payments","05H","Private contractors","6900","Nightly Let Plus Charges","3521436","201905",05/08/2018 00:00:00,1116,"31230","Employment and Recruitment Agencies","REDACTED DATA","ADAM HTT LIMITED T/A ADAM","7718565","http://opencorporates.com/companies/gb/7718565","198573349"
"London Borough of Redbridge","http://opendatacommunities.org/doc/london-borough-council/redbridge","5BGFHOUSING","General Fund Housing","5CHOMELESS","Homelessness","REV","Revenue","R5630","HAC Temporary Accomodation","05-THIRD","Third Party Payments","05H","Private contractors","6900","Nightly Let Plus Charges","3521436","201905",05/08/2018 00:00:00,899,"31230","Employment and Recruitment Agencies","REDACTED DATA","ADAM HTT LIMITED T/A ADAM","7718565","http://opencorporates.com/companies/gb/7718565","198573349"
"London Borough of Redbridge","http://opendatacommunities.org/doc/london-borough-council/redbridge","5BGFHOUSING","General Fund Housing","5CHOMELESS","Homelessness","REV","Revenue","R5630","HAC Temporary Accomodation","05-THIRD","Third Party Payments","05H","Private contractors","6900","Nightly Let Plus Charges","3521436","201905",05/08/2018 00:00:00,797.94,"31230","Employment and Recruitment Agencies","REDACTED DATA","ADAM HTT LIMITED T/A ADAM","7718565","http://opencorporates.com/companies/gb/7718565","198573349"
"London Borough of Redbridge","http://opendatacommunities.org/doc/london-borough-council/redbridge","5BGFHOUSING","General Fund Housing","5CHOMELESS","Homelessness","REV","Revenue","R5630","HAC Temporary Accomodation","05-THIRD","Third Party Payments","05H","Private contractors","6900","Nightly Let Plus Charges","3521436","201905",05/08/2018 00:00:00,1240,"31230","Employment and Recruitment Agencies","REDACTED DATA","ADAM HTT LIMITED T/A ADAM","7718565","http://opencorporates.com/companies/gb/7718565","198573349"
"London Borough of Redbridge","http://opendatacommunities.org/doc/london-borough-council/redbridge","5BGFHOUSING","General Fund Housing","5CHOMELESS","Homelessness","REV","Revenue","R5630","HAC Temporary Accomodation","05-THIRD","Third Party Payments","05H","Private contractors","6900","Nightly Let Plus Charges","3521436","201905",05/08/2018 00:00:00,1147,"31230","Employment and Recruitment Agencies","REDACTED DATA","ADAM HTT LIMITED T/A ADAM","7718565","http://opencorporates.com/companies/gb/7718565","198573349"
"London Borough of Redbridge","http://opendatacommunities.org/doc/london-borough-council/redbridge","5BGFHOUSING","General Fund Housing","5CHOMELESS","Homelessness","REV","Revenue","R5630","HAC Temporary Accomodation","05-THIRD","Third Party Payments","05H","Private contractors","6900","Nightly Let Plus Charges","3521436","201905",05/08/2018 00:00:00,1302,"31230","Employment and Recruitment Agencies","REDACTED DATA","ADAM HTT LIMITED T/A ADAM","7718565","http://opencorporates.com/companies/gb/7718565","198573349"
"London Borough of Redbridge","http://opendatacommunities.org/doc/london-borough-council/redbridge","5BGFHOUSING","General Fund Housing","5CHOMELESS","Homelessness","REV","Revenue","R5630","HAC Temporary Accomodation","05-THIRD","Third Party Payments","05H","Private contractors","6900","Nightly Let Plus Charges","3521436","201905",05/08/2018 00:00:00,1302,"31230","Employment and Recruitment Agencies","REDACTED DATA","ADAM HTT LIMITED T/A ADAM","7718565","http://opencorporates.com/companies/gb/7718565","198573349"
"London Borough of Redbridge","http://opendatacommunities.org/doc/london-borough-council/redbridge","5BGFHOUSING","General Fund Housing","5CHOMELESS","Homelessness","REV","Revenue","R5630","HAC Temporary Accomodation","05-THIRD","Third Party Payments","05H","Private contractors","6900","Nightly Let Plus Charges","3521436","201905",05/08/2018 00:00:00,1333,"31230","Employment and Recruitment Agencies","REDACTED DATA","ADAM HTT LIMITED T/A ADAM","7718565","http://opencorporates.com/companies/gb/7718565","198573349"
"London Borough of Redbridge","http://opendatacommunities.org/doc/london-borough-council/redbridge","5BGFHOUSING","General Fund Housing","5CHOMELESS","Homelessness","REV","Revenue","R5630","HAC Temporary Accomodation","05-THIRD","Third Party Payments","05H","Private contractors","6900","Nightly Let Plus Charges","3521436","201905",05/08/2018 00:00:00,1891,"31230","Employment and Recruitment Agencies","REDACTED DATA","ADAM HTT LIMITED T/A ADAM","7718565","http://opencorporates.com/companies/gb/7718565","198573349"
"London Borough of Redbridge","http://opendatacommunities.org/doc/london-borough-council/redbridge","5BGFHOUSING","General Fund Housing","5CHOMELESS","Homelessness","REV","Revenue","R5630","HAC Temporary Accomodation","05-THIRD","Third Party Payments","05H","Private contractors","6900","Nightly Let Plus Charges","3521436","201905",05/08/2018 00:00:00,1395,"31230","Employment and Recruitment Agencies","REDACTED DATA","ADAM HTT LIMITED T/A ADAM","7718565","http://opencorporates.com/companies/gb/7718565","198573349"
"London Borough of Redbridge","http://opendatacommunities.org/doc/london-borough-council/redbridge","5BGFHOUSING","General Fund Housing","5CHOMELESS","Homelessness","REV","Revenue","R5630","HAC Temporary Accomodation","05-THIRD","Third Party Payments","05H","Private contractors","6900","Nightly Let Plus Charges","3521436","201905",05/08/2018 00:00:00,930,"31230","Employment and Recruitment Agencies","REDACTED DATA","ADAM HTT LIMITED T/A ADAM","7718565","http://opencorporates.com/companies/gb/7718565","198573349"
"London Borough of Redbridge","http://opendatacommunities.org/doc/london-borough-council/redbridge","5BGFHOUSING","General Fund Housing","5CHOMELESS","Homelessness","REV","Revenue","R5630","HAC Temporary Accomodation","05-THIRD","Third Party Payments","05H","Private contractors","6900","Nightly Let Plus Charges","3521436","201905",05/08/2018 00:00:00,930,"31230","Employment and Recruitment Agencies","REDACTED DATA","ADAM HTT LIMITED T/A ADAM","7718565","http://opencorporates.com/companies/gb/7718565","198573349"
"London Borough of Redbridge","http://opendatacommunities.org/doc/london-borough-council/redbridge","5BGFHOUSING","General Fund Housing","5CHOMELESS","Homelessness","REV","Revenue","R5630","HAC Temporary Accomodation","05-THIRD","Third Party Payments","05H","Private contractors","6900","Nightly Let Plus Charges","3521436","201905",05/08/2018 00:00:00,797.94,"31230","Employment and Recruitment Agencies","REDACTED DATA","ADAM HTT LIMITED T/A ADAM","7718565","http://opencorporates.com/companies/gb/7718565","198573349"
"London Borough of Redbridge","http://opendatacommunities.org/doc/london-borough-council/redbridge","5BGFHOUSING","General Fund Housing","5CHOMELESS","Homelessness","REV","Revenue","R5630","HAC Temporary Accomodation","05-THIRD","Third Party Payments","05H","Private contractors","6900","Nightly Let Plus Charges","3521436","201905",05/08/2018 00:00:00,1464.75,"31230","Employment and Recruitment Agencies","REDACTED DATA","ADAM HTT LIMITED T/A ADAM","7718565","http://opencorporates.com/companies/gb/7718565","198573349"
"London Borough of Redbridge","http://opendatacommunities.org/doc/london-borough-council/redbridge","5BGFHOUSING","General Fund Housing","5CHOMELESS","Homelessness","REV","Revenue","R5630","HAC Temporary Accomodation","05-THIRD","Third Party Payments","05H","Private contractors","6900","Nightly Let Plus Charges","3521436","201905",05/08/2018 00:00:00,797.94,"31230","Employment and Recruitment Agencies","REDACTED DATA","ADAM HTT LIMITED T/A ADAM","7718565","http://opencorporates.com/companies/gb/7718565","198573349"
"London Borough of Redbridge","http://opendatacommunities.org/doc/london-borough-council/redbridge","5BGFHOUSING","General Fund Housing","5CHOMELESS","Homelessness","REV","Revenue","R5630","HAC Temporary Accomodation","05-THIRD","Third Party Payments","05H","Private contractors","6900","Nightly Let Plus Charges","3521436","201905",05/08/2018 00:00:00,797.94,"31230","Employment and Recruitment Agencies","REDACTED DATA","ADAM HTT LIMITED T/A ADAM","7718565","http://opencorporates.com/companies/gb/7718565","198573349"
"London Borough of Redbridge","http://opendatacommunities.org/doc/london-borough-council/redbridge","5BGFHOUSING","General Fund Housing","5CHOMELESS","Homelessness","REV","Revenue","R5630","HAC Temporary Accomodation","05-THIRD","Third Party Payments","05H","Private contractors","6900","Nightly Let Plus Charges","3521436","201905",05/08/2018 00:00:00,797.94,"31230","Employment and Recruitment Agencies","REDACTED DATA","ADAM HTT LIMITED T/A ADAM","7718565","http://opencorporates.com/companies/gb/7718565","198573349"
"London Borough of Redbridge","http://opendatacommunities.org/doc/london-borough-council/redbridge","5BGFHOUSING","General Fund Housing","5CHOMELESS","Homelessness","REV","Revenue","R5630","HAC Temporary Accomodation","05-THIRD","Third Party Payments","05H","Private contractors","6900","Nightly Let Plus Charges","3521436","201905",05/08/2018 00:00:00,797.94,"31230","Employment and Recruitment Agencies","REDACTED DATA","ADAM HTT LIMITED T/A ADAM","7718565","http://opencorporates.com/companies/gb/7718565","198573349"
"London Borough of Redbridge","http://opendatacommunities.org/doc/london-borough-council/redbridge","5BGFHOUSING","General Fund Housing","5CHOMELESS","Homelessness","REV","Revenue","R5630","HAC Temporary Accomodation","05-THIRD","Third Party Payments","05H","Private contractors","6900","Nightly Let Plus Charges","3521436","201905",05/08/2018 00:00:00,797.94,"31230","Employment and Recruitment Agencies","REDACTED DATA","ADAM HTT LIMITED T/A ADAM","7718565","http://opencorporates.com/companies/gb/7718565","198573349"
"London Borough of Redbridge","http://opendatacommunities.org/doc/london-borough-council/redbridge","5BGFHOUSING","General Fund Housing","5CHOMELESS","Homelessness","REV","Revenue","R5630","HAC Temporary Accomodation","05-THIRD","Third Party Payments","05H","Private contractors","6900","Nightly Let Plus Charges","3521436","201905",05/08/2018 00:00:00,1395,"31230","Employment and Recruitment Agencies","REDACTED DATA","ADAM HTT LIMITED T/A ADAM","7718565","http://opencorporates.com/companies/gb/7718565","198573349"
"London Borough of Redbridge","http://opendatacommunities.org/doc/london-borough-council/redbridge","5BGFHOUSING","General Fund Housing","5CHOMELESS","Homelessness","REV","Revenue","R5630","HAC Temporary Accomodation","05-THIRD","Third Party Payments","05H","Private contractors","6900","Nightly Let Plus Charges","3521436","201905",05/08/2018 00:00:00,1178,"31230","Employment and Recruitment Agencies","REDACTED DATA","ADAM HTT LIMITED T/A ADAM","7718565","http://opencorporates.com/companies/gb/7718565","198573349"
"London Borough of Redbridge","http://opendatacommunities.org/doc/london-borough-council/redbridge","5BGFHOUSING","General Fund Housing","5CHOMELESS","Homelessness","REV","Revenue","R5630","HAC Temporary Accomodation","05-THIRD","Third Party Payments","05H","Private contractors","6900","Nightly Let Plus Charges","3521436","201905",05/08/2018 00:00:00,1550,"31230","Employment and Recruitment Agencies","REDACTED DATA","ADAM HTT LIMITED T/A ADAM","7718565","http://opencorporates.com/companies/gb/7718565","198573349"
"London Borough of Redbridge","http://opendatacommunities.org/doc/london-borough-council/redbridge","5BGFHOUSING","General Fund Housing","5CHOMELESS","Homelessness","REV","Revenue","R5630","HAC Temporary Accomodation","05-THIRD","Third Party Payments","05H","Private contractors","6900","Nightly Let Plus Charges","3521436","201905",05/08/2018 00:00:00,1550,"31230","Employment and Recruitment Agencies","REDACTED DATA","ADAM HTT LIMITED T/A ADAM","7718565","http://opencorporates.com/companies/gb/7718565","198573349"
"London Borough of Redbridge","http://opendatacommunities.org/doc/london-borough-council/redbridge","5BGFHOUSING","General Fund Housing","5CHOMELESS","Homelessness","REV","Revenue","R5630","HAC Temporary Accomodation","05-THIRD","Third Party Payments","05H","Private contractors","6900","Nightly Let Plus Charges","3521436","201905",05/08/2018 00:00:00,1767,"31230","Employment and Recruitment Agencies","REDACTED DATA","ADAM HTT LIMITED T/A ADAM","7718565","http://opencorporates.com/companies/gb/7718565","198573349"
"London Borough of Redbridge","http://opendatacommunities.org/doc/london-borough-council/redbridge","5BGFHOUSING","General Fund Housing","5CHOMELESS","Homelessness","REV","Revenue","R5630","HAC Temporary Accomodation","05-THIRD","Third Party Payments","05H","Private contractors","6900","Nightly Let Plus Charges","3521436","201905",05/08/2018 00:00:00,1441.5,"31230","Employment and Recruitment Agencies","REDACTED DATA","ADAM HTT LIMITED T/A ADAM","7718565","http://opencorporates.com/companies/gb/7718565","198573349"
"London Borough of Redbridge","http://opendatacommunities.org/doc/london-borough-council/redbridge","5BGFHOUSING","General Fund Housing","5CHOMELESS","Homelessness","REV","Revenue","R5630","HAC Temporary Accomodation","05-THIRD","Third Party Payments","05H","Private contractors","6900","Nightly Let Plus Charges","3521436","201905",05/08/2018 00:00:00,1395,"31230","Employment and Recruitment Agencies","REDACTED DATA","ADAM HTT LIMITED T/A ADAM","7718565","http://opencorporates.com/companies/gb/7718565","198573349"
"London Borough of Redbridge","http://opendatacommunities.org/doc/london-borough-council/redbridge","5BGFHOUSING","General Fund Housing","5CHOMELESS","Homelessness","REV","Revenue","R5630","HAC Temporary Accomodation","05-THIRD","Third Party Payments","05H","Private contractors","6900","Nightly Let Plus Charges","3521436","201905",05/08/2018 00:00:00,1395,"31230","Employment and Recruitment Agencies","REDACTED DATA","ADAM HTT LIMITED T/A ADAM","7718565","http://opencorporates.com/companies/gb/7718565","198573349"
"London Borough of Redbridge","http://opendatacommunities.org/doc/london-borough-council/redbridge","5BGFHOUSING","General Fund Housing","5CHOMELESS","Homelessness","REV","Revenue","R5630","HAC Temporary Accomodation","05-THIRD","Third Party Payments","05H","Private contractors","6900","Nightly Let Plus Charges","3521436","201905",05/08/2018 00:00:00,1441.5,"31230","Employment and Recruitment Agencies","REDACTED DATA","ADAM HTT LIMITED T/A ADAM","7718565","http://opencorporates.com/companies/gb/7718565","198573349"
"London Borough of Redbridge","http://opendatacommunities.org/doc/london-borough-council/redbridge","5BGFHOUSING","General Fund Housing","5CHOMELESS","Homelessness","REV","Revenue","R5630","HAC Temporary Accomodation","05-THIRD","Third Party Payments","05H","Private contractors","6900","Nightly Let Plus Charges","3521436","201905",05/08/2018 00:00:00,1550,"31230","Employment and Recruitment Agencies","REDACTED DATA","ADAM HTT LIMITED T/A ADAM","7718565","http://opencorporates.com/companies/gb/7718565","198573349"
"London Borough of Redbridge","http://opendatacommunities.org/doc/london-borough-council/redbridge","5BGFHOUSING","General Fund Housing","5CHOMELESS","Homelessness","REV","Revenue","R5630","HAC Temporary Accomodation","05-THIRD","Third Party Payments","05H","Private contractors","6900","Nightly Let Plus Charges","3521436","201905",05/08/2018 00:00:00,1550,"31230","Employment and Recruitment Agencies","REDACTED DATA","ADAM HTT LIMITED T/A ADAM","7718565","http://opencorporates.com/companies/gb/7718565","198573349"
"London Borough of Redbridge","http://opendatacommunities.org/doc/london-borough-council/redbridge","5BGFHOUSING","General Fund Housing","5CHOMELESS","Homelessness","REV","Revenue","R5630","HAC Temporary Accomodation","05-THIRD","Third Party Payments","05H","Private contractors","6900","Nightly Let Plus Charges","3521436","201905",05/08/2018 00:00:00,1271,"31230","Employment and Recruitment Agencies","REDACTED DATA","ADAM HTT LIMITED T/A ADAM","7718565","http://opencorporates.com/companies/gb/7718565","198573349"
"London Borough of Redbridge","http://opendatacommunities.org/doc/london-borough-council/redbridge","5BGFHOUSING","General Fund Housing","5CHOMELESS","Homelessness","REV","Revenue","R5630","HAC Temporary Accomodation","05-THIRD","Third Party Payments","05H","Private contractors","6900","Nightly Let Plus Charges","3521436","201905",05/08/2018 00:00:00,1395,"31230","Employment and Recruitment Agencies","REDACTED DATA","ADAM HTT LIMITED T/A ADAM","7718565","http://opencorporates.com/companies/gb/7718565","198573349"
"London Borough of Redbridge","http://opendatacommunities.org/doc/london-borough-council/redbridge","5BGFHOUSING","General Fund Housing","5CHOMELESS","Homelessness","REV","Revenue","R5630","HAC Temporary Accomodation","05-THIRD","Third Party Payments","05H","Private contractors","6900","Nightly Let Plus Charges","3521436","201905",09/07/2018 00:00:00,772.2,"31230","Employment and Recruitment Agencies","REDACTED DATA","ADAM HTT LIMITED T/A ADAM","7718565","http://opencorporates.com/companies/gb/7718565","198573349"
"London Borough of Redbridge","http://opendatacommunities.org/doc/london-borough-council/redbridge","5BGFHOUSING","General Fund Housing","5CHOMELESS","Homelessness","REV","Revenue","R5630","HAC Temporary Accomodation","05-THIRD","Third Party Payments","05H","Private contractors","6900","Nightly Let Plus Charges","3521436","201905",09/07/2018 00:00:00,-990,"31230","Employment and Recruitment Agencies","REDACTED DATA","ADAM HTT LIMITED T/A ADAM","7718565","http://opencorporates.com/companies/gb/7718565","198573349"
"London Borough of Redbridge","http://opendatacommunities.org/doc/london-borough-council/redbridge","5BGFHOUSING","General Fund Housing","5CHOMELESS","Homelessness","REV","Revenue","R5630","HAC Temporary Accomodation","05-THIRD","Third Party Payments","05H","Private contractors","6900","Nightly Let Plus Charges","3521436","201905",09/07/2018 00:00:00,-990,"31230","Employment and Recruitment Agencies","REDACTED DATA","ADAM HTT LIMITED T/A ADAM","7718565","http://opencorporates.com/companies/gb/7718565","198573349"
"London Borough of Redbridge","http://opendatacommunities.org/doc/london-borough-council/redbridge","5BGFHOUSING","General Fund Housing","5CHOMELESS","Homelessness","REV","Revenue","R5630","HAC Temporary Accomodation","05-THIRD","Third Party Payments","05H","Private contractors","6900","Nightly Let Plus Charges","3521436","201905",09/07/2018 00:00:00,-627,"31230","Employment and Recruitment Agencies","REDACTED DATA","ADAM HTT LIMITED T/A ADAM","7718565","http://opencorporates.com/companies/gb/7718565","198573349"
"London Borough of Redbridge","http://opendatacommunities.org/doc/london-borough-council/redbridge","5BGFHOUSING","General Fund Housing","5CHOMELESS","Homelessness","REV","Revenue","R5630","HAC Temporary Accomodation","05-THIRD","Third Party Payments","05H","Private contractors","6900","Nightly Let Plus Charges","3521436","201905",05/08/2018 00:00:00,1395,"31230","Employment and Recruitment Agencies","REDACTED DATA","ADAM HTT LIMITED T/A ADAM","7718565","http://opencorporates.com/companies/gb/7718565","198573349"
"London Borough of Redbridge","http://opendatacommunities.org/doc/london-borough-council/redbridge","5BGFHOUSING","General Fund Housing","5CHOMELESS","Homelessness","REV","Revenue","R5630","HAC Temporary Accomodation","05-THIRD","Third Party Payments","05H","Private contractors","6900","Nightly Let Plus Charges","3521436","201905",05/08/2018 00:00:00,1178,"31230","Employment and Recruitment Agencies","REDACTED DATA","ADAM HTT LIMITED T/A ADAM","7718565","http://opencorporates.com/companies/gb/7718565","198573349"
"London Borough of Redbridge","http://opendatacommunities.org/doc/london-borough-council/redbridge","5BGFHOUSING","General Fund Housing","5CHOMELESS","Homelessness","REV","Revenue","R5630","HAC Temporary Accomodation","05-THIRD","Third Party Payments","05H","Private contractors","6900","Nightly Let Plus Charges","3521436","201905",05/08/2018 00:00:00,1426,"31230","Employment and Recruitment Agencies","REDACTED DATA","ADAM HTT LIMITED T/A ADAM","7718565","http://opencorporates.com/companies/gb/7718565","198573349"
"London Borough of Redbridge","http://opendatacommunities.org/doc/london-borough-council/redbridge","5BGFHOUSING","General Fund Housing","5CHOMELESS","Homelessness","REV","Revenue","R5630","HAC Temporary Accomodation","05-THIRD","Third Party Payments","05H","Private contractors","6900","Nightly Let Plus Charges","3521436","201905",05/08/2018 00:00:00,1643,"31230","Employment and Recruitment Agencies","REDACTED DATA","ADAM HTT LIMITED T/A ADAM","7718565","http://opencorporates.com/companies/gb/7718565","198573349"
"London Borough of Redbridge","http://opendatacommunities.org/doc/london-borough-council/redbridge","5BGFHOUSING","General Fund Housing","5CHOMELESS","Homelessness","REV","Revenue","R5630","HAC Temporary Accomodation","05-THIRD","Third Party Payments","05H","Private contractors","6900","Nightly Let Plus Charges","3521436","201905",17/07/2018 00:00:00,-1456,"31230","Employment and Recruitment Agencies","REDACTED DATA","ADAM HTT LIMITED T/A ADAM","7718565","http://opencorporates.com/companies/gb/7718565","198573349"
"London Borough of Redbridge","http://opendatacommunities.org/doc/london-borough-council/redbridge","5BGFHOUSING","General Fund Housing","5CHOMELESS","Homelessness","REV","Revenue","R5630","HAC Temporary Accomodation","05-THIRD","Third Party Payments","05H","Private contractors","6900","Nightly Let Plus Charges","3521436","201905",17/07/2018 00:00:00,1196,"31230","Employment and Recruitment Agencies","REDACTED DATA","ADAM HTT LIMITED T/A ADAM","7718565","http://opencorporates.com/companies/gb/7718565","198573349"
"London Borough of Redbridge","http://opendatacommunities.org/doc/london-borough-council/redbridge","5BGFHOUSING","General Fund Housing","5CHOMELESS","Homelessness","REV","Revenue","R5630","HAC Temporary Accomodation","05-THIRD","Third Party Payments","05H","Private contractors","6900","Nightly Let Plus Charges","3521436","201905",05/08/2018 00:00:00,1333,"31230","Employment and Recruitment Agencies","REDACTED DATA","ADAM HTT LIMITED T/A ADAM","7718565","http://opencorporates.com/companies/gb/7718565","198573349"
"London Borough of Redbridge","http://opendatacommunities.org/doc/london-borough-council/redbridge","5BGFHOUSING","General Fund Housing","5CHOMELESS","Homelessness","REV","Revenue","R5630","HAC Temporary Accomodation","05-THIRD","Third Party Payments","05H","Private contractors","6900","Nightly Let Plus Charges","3521436","201905",05/08/2018 00:00:00,1612,"31230","Employment and Recruitment Agencies","REDACTED DATA","ADAM HTT LIMITED T/A ADAM","7718565","http://opencorporates.com/companies/gb/7718565","198573349"
"London Borough of Redbridge","http://opendatacommunities.org/doc/london-borough-council/redbridge","5BGFHOUSING","General Fund Housing","5CHOMELESS","Homelessness","REV","Revenue","R5630","HAC Temporary Accomodation","05-THIRD","Third Party Payments","05H","Private contractors","6900","Nightly Let Plus Charges","3521436","201905",05/08/2018 00:00:00,1116,"31230","Employment and Recruitment Agencies","REDACTED DATA","ADAM HTT LIMITED T/A ADAM","7718565","http://opencorporates.com/companies/gb/7718565","198573349"
"London Borough of Redbridge","http://opendatacommunities.org/doc/london-borough-council/redbridge","5BGFHOUSING","General Fund Housing","5CHOMELESS","Homelessness","REV","Revenue","R5630","HAC Temporary Accomodation","05-THIRD","Third Party Payments","05H","Private contractors","6900","Nightly Let Plus Charges","3521436","201905",05/08/2018 00:00:00,1674,"31230","Employment and Recruitment Agencies","REDACTED DATA","ADAM HTT LIMITED T/A ADAM","7718565","http://opencorporates.com/companies/gb/7718565","198573349"
"London Borough of Redbridge","http://opendatacommunities.org/doc/london-borough-council/redbridge","5BGFHOUSING","General Fund Housing","5CHOMELESS","Homelessness","REV","Revenue","R5630","HAC Temporary Accomodation","05-THIRD","Third Party Payments","05H","Private contractors","6900","Nightly Let Plus Charges","3521436","201905",05/08/2018 00:00:00,1705,"31230","Employment and Recruitment Agencies","REDACTED DATA","ADAM HTT LIMITED T/A ADAM","7718565","http://opencorporates.com/companies/gb/7718565","198573349"
"London Borough of Redbridge","http://opendatacommunities.org/doc/london-borough-council/redbridge","5BGFHOUSING","General Fund Housing","5CHOMELESS","Homelessness","REV","Revenue","R5630","HAC Temporary Accomodation","05-THIRD","Third Party Payments","05H","Private contractors","6900","Nightly Let Plus Charges","3521436","201905",05/08/2018 00:00:00,1271,"31230","Employment and Recruitment Agencies","REDACTED DATA","ADAM HTT LIMITED T/A ADAM","7718565","http://opencorporates.com/companies/gb/7718565","198573349"
"London Borough of Redbridge","http://opendatacommunities.org/doc/london-borough-council/redbridge","5BGFHOUSING","General Fund Housing","5CHOMELESS","Homelessness","REV","Revenue","R5630","HAC Temporary Accomodation","05-THIRD","Third Party Payments","05H","Private contractors","6900","Nightly Let Plus Charges","3521436","201905",05/08/2018 00:00:00,1860,"31230","Employment and Recruitment Agencies","REDACTED DATA","ADAM HTT LIMITED T/A ADAM","7718565","http://opencorporates.com/companies/gb/7718565","198573349"
"London Borough of Redbridge","http://opendatacommunities.org/doc/london-borough-council/redbridge","5BGFHOUSING","General Fund Housing","5CHOMELESS","Homelessness","REV","Revenue","R5630","HAC Temporary Accomodation","05-THIRD","Third Party Payments","05H","Private contractors","6900","Nightly Let Plus Charges","3521436","201905",05/08/2018 00:00:00,1240,"31230","Employment and Recruitment Agencies","REDACTED DATA","ADAM HTT LIMITED T/A ADAM","7718565","http://opencorporates.com/companies/gb/7718565","198573349"
"London Borough of Redbridge","http://opendatacommunities.org/doc/london-borough-council/redbridge","5BGFHOUSING","General Fund Housing","5CHOMELESS","Homelessness","REV","Revenue","R5630","HAC Temporary Accomodation","05-THIRD","Third Party Payments","05H","Private contractors","6900","Nightly Let Plus Charges","3521436","201905",05/08/2018 00:00:00,1333,"31230","Employment and Recruitment Agencies","REDACTED DATA","ADAM HTT LIMITED T/A ADAM","7718565","http://opencorporates.com/companies/gb/7718565","198573349"
"London Borough of Redbridge","http://opendatacommunities.org/doc/london-borough-council/redbridge","5BGFHOUSING","General Fund Housing","5CHOMELESS","Homelessness","REV","Revenue","R5630","HAC Temporary Accomodation","05-THIRD","Third Party Payments","05H","Private contractors","6900","Nightly Let Plus Charges","3521436","201905",05/08/2018 00:00:00,1891,"31230","Employment and Recruitment Agencies","REDACTED DATA","ADAM HTT LIMITED T/A ADAM","7718565","http://opencorporates.com/companies/gb/7718565","198573349"
"London Borough of Redbridge","http://opendatacommunities.org/doc/london-borough-council/redbridge","5BGFHOUSING","General Fund Housing","5CHOMELESS","Homelessness","REV","Revenue","R5630","HAC Temporary Accomodation","05-THIRD","Third Party Payments","05H","Private contractors","6900","Nightly Let Plus Charges","3521436","201905",05/08/2018 00:00:00,1395,"31230","Employment and Recruitment Agencies","REDACTED DATA","ADAM HTT LIMITED T/A ADAM","7718565","http://opencorporates.com/companies/gb/7718565","198573349"
"London Borough of Redbridge","http://opendatacommunities.org/doc/london-borough-council/redbridge","5BGFHOUSING","General Fund Housing","5CHOMELESS","Homelessness","REV","Revenue","R5630","HAC Temporary Accomodation","05-THIRD","Third Party Payments","05H","Private contractors","6900","Nightly Let Plus Charges","3521436","201905",05/08/2018 00:00:00,1395,"31230","Employment and Recruitment Agencies","REDACTED DATA","ADAM HTT LIMITED T/A ADAM","7718565","http://opencorporates.com/companies/gb/7718565","198573349"
"London Borough of Redbridge","http://opendatacommunities.org/doc/london-borough-council/redbridge","5BGFHOUSING","General Fund Housing","5CHOMELESS","Homelessness","REV","Revenue","R5630","HAC Temporary Accomodation","05-THIRD","Third Party Payments","05H","Private contractors","6900","Nightly Let Plus Charges","3521436","201905",05/08/2018 00:00:00,1441.5,"31230","Employment and Recruitment Agencies","REDACTED DATA","ADAM HTT LIMITED T/A ADAM","7718565","http://opencorporates.com/companies/gb/7718565","198573349"
"London Borough of Redbridge","http://opendatacommunities.org/doc/london-borough-council/redbridge","5BGFHOUSING","General Fund Housing","5CHOMELESS","Homelessness","REV","Revenue","R5630","HAC Temporary Accomodation","05-THIRD","Third Party Payments","05H","Private contractors","6900","Nightly Let Plus Charges","3521436","201905",05/08/2018 00:00:00,1705,"31230","Employment and Recruitment Agencies","REDACTED DATA","ADAM HTT LIMITED T/A ADAM","7718565","http://opencorporates.com/companies/gb/7718565","198573349"
"London Borough of Redbridge","http://opendatacommunities.org/doc/london-borough-council/redbridge","5BGFHOUSING","General Fund Housing","5CHOMELESS","Homelessness","REV","Revenue","R5630","HAC Temporary Accomodation","05-THIRD","Third Party Payments","05H","Private contractors","6900","Nightly Let Plus Charges","3521436","201905",05/08/2018 00:00:00,1178,"31230","Employment and Recruitment Agencies","REDACTED DATA","ADAM HTT LIMITED T/A ADAM","7718565","http://opencorporates.com/companies/gb/7718565","198573349"
"London Borough of Redbridge","http://opendatacommunities.org/doc/london-borough-council/redbridge","5BGFHOUSING","General Fund Housing","5CHOMELESS","Homelessness","REV","Revenue","R5630","HAC Temporary Accomodation","05-THIRD","Third Party Payments","05H","Private contractors","6900","Nightly Let Plus Charges","3521436","201905",05/08/2018 00:00:00,1441.5,"31230","Employment and Recruitment Agencies","REDACTED DATA","ADAM HTT LIMITED T/A ADAM","7718565","http://opencorporates.com/companies/gb/7718565","198573349"
"London Borough of Redbridge","http://opendatacommunities.org/doc/london-borough-council/redbridge","5BGFHOUSING","General Fund Housing","5CHOMELESS","Homelessness","REV","Revenue","R5630","HAC Temporary Accomodation","05-THIRD","Third Party Payments","05H","Private contractors","6900","Nightly Let Plus Charges","3521436","201905",05/08/2018 00:00:00,1178,"31230","Employment and Recruitment Agencies","REDACTED DATA","ADAM HTT LIMITED T/A ADAM","7718565","http://opencorporates.com/companies/gb/7718565","198573349"
"London Borough of Redbridge","http://opendatacommunities.org/doc/london-borough-council/redbridge","5BGFHOUSING","General Fund Housing","5CHOMELESS","Homelessness","REV","Revenue","R5630","HAC Temporary Accomodation","05-THIRD","Third Party Payments","05H","Private contractors","6900","Nightly Let Plus Charges","3521436","201905",05/08/2018 00:00:00,1441.5,"31230","Employment and Recruitment Agencies","REDACTED DATA","ADAM HTT LIMITED T/A ADAM","7718565","http://opencorporates.com/companies/gb/7718565","198573349"
"London Borough of Redbridge","http://opendatacommunities.org/doc/london-borough-council/redbridge","5BGFHOUSING","General Fund Housing","5CHOMELESS","Homelessness","REV","Revenue","R5630","HAC Temporary Accomodation","05-THIRD","Third Party Payments","05H","Private contractors","6900","Nightly Let Plus Charges","3521436","201905",05/08/2018 00:00:00,1705,"31230","Employment and Recruitment Agencies","REDACTED DATA","ADAM HTT LIMITED T/A ADAM","7718565","http://opencorporates.com/companies/gb/7718565","198573349"
"London Borough of Redbridge","http://opendatacommunities.org/doc/london-borough-council/redbridge","5BGFHOUSING","General Fund Housing","5CHOMELESS","Homelessness","REV","Revenue","R5630","HAC Temporary Accomodation","05-THIRD","Third Party Payments","05H","Private contractors","6900","Nightly Let Plus Charges","3521436","201905",05/08/2018 00:00:00,1395,"31230","Employment and Recruitment Agencies","REDACTED DATA","ADAM HTT LIMITED T/A ADAM","7718565","http://opencorporates.com/companies/gb/7718565","198573349"
"London Borough of Redbridge","http://opendatacommunities.org/doc/london-borough-council/redbridge","5BGFHOUSING","General Fund Housing","5CHOMELESS","Homelessness","REV","Revenue","R5630","HAC Temporary Accomodation","05-THIRD","Third Party Payments","05H","Private contractors","6900","Nightly Let Plus Charges","3521436","201905",05/08/2018 00:00:00,1550,"31230","Employment and Recruitment Agencies","REDACTED DATA","ADAM HTT LIMITED T/A ADAM","7718565","http://opencorporates.com/companies/gb/7718565","198573349"
"London Borough of Redbridge","http://opendatacommunities.org/doc/london-borough-council/redbridge","5BGFHOUSING","General Fund Housing","5CHOMELESS","Homelessness","REV","Revenue","R5630","HAC Temporary Accomodation","05-THIRD","Third Party Payments","05H","Private contractors","6900","Nightly Let Plus Charges","3521436","201905",05/08/2018 00:00:00,1395,"31230","Employment and Recruitment Agencies","REDACTED DATA","ADAM HTT LIMITED T/A ADAM","7718565","http://opencorporates.com/companies/gb/7718565","198573349"
"London Borough of Redbridge","http://opendatacommunities.org/doc/london-borough-council/redbridge","5BGFHOUSING","General Fund Housing","5CHOMELESS","Homelessness","REV","Revenue","R5630","HAC Temporary Accomodation","05-THIRD","Third Party Payments","05H","Private contractors","6900","Nightly Let Plus Charges","3521436","201905",05/08/2018 00:00:00,1705,"31230","Employment and Recruitment Agencies","REDACTED DATA","ADAM HTT LIMITED T/A ADAM","7718565","http://opencorporates.com/companies/gb/7718565","198573349"
"London Borough of Redbridge","http://opendatacommunities.org/doc/london-borough-council/redbridge","5BGFHOUSING","General Fund Housing","5CHOMELESS","Homelessness","REV","Revenue","R5630","HAC Temporary Accomodation","05-THIRD","Third Party Payments","05H","Private contractors","6900","Nightly Let Plus Charges","3521436","201905",05/08/2018 00:00:00,1178,"31230","Employment and Recruitment Agencies","REDACTED DATA","ADAM HTT LIMITED T/A ADAM","7718565","http://opencorporates.com/companies/gb/7718565","198573349"
